DepartmentFamily,Entity,Date,ExpenseType,ExpenseArea,Supplier,Transaction Number,Amount,VAT Registration Number
BEIS,The Insolvency Service,03/02/2020,Investigation & Enforcement,Investigations & Enforcement Services,Marston Group Limited,300017685,75.00,795928947
BEIS,The Insolvency Service,03/02/2020,Investigation & Enforcement,Investigations & Enforcement Services,Marston Group Limited,300017686,75.00,795928947
BEIS,The Insolvency Service,03/02/2020,Staff Costs - Non-Perms,Information & Technology,SmartSourcing,300017561,3000.00,788507869
BEIS,The Insolvency Service,03/02/2020,Staff Costs - Non-Perms,Information & Technology,SmartSourcing,300017562,2295.00,788507869
BEIS,The Insolvency Service,03/02/2020,Staff Costs - Non-Perms,Information & Technology,SmartSourcing,300017566,3000.00,788507869
BEIS,The Insolvency Service,03/02/2020,Staff Costs - Non-Perms,Information & Technology,SmartSourcing,300017567,2940.00,788507869
BEIS,The Insolvency Service,03/02/2020,Staff Costs - Non-Perms,Information & Technology,SmartSourcing,300017568,2956.80,788507869
BEIS,The Insolvency Service,03/02/2020,Staff Costs - Non-Perms,Information & Technology,SmartSourcing,300017569,3150.00,788507869
BEIS,The Insolvency Service,03/02/2020,Staff Costs - Non-Perms,Information & Technology,SmartSourcing,300017580,2250.00,788507869
BEIS,The Insolvency Service,03/02/2020,Staff Costs - Non-Perms,Information & Technology,SmartSourcing,300017581,2646.24,788507869
BEIS,The Insolvency Service,03/02/2020,Staff Costs - Non-Perms,Information & Technology,SmartSourcing,300017584,4200.00,788507869
BEIS,The Insolvency Service,03/02/2020,Staff Costs - Non-Perms,Information & Technology,SmartSourcing,300017585,2484.00,788507869
BEIS,The Insolvency Service,03/02/2020,Staff Costs - Non-Perms,Information & Technology,SmartSourcing,300017586,3000.00,788507869
BEIS,The Insolvency Service,03/02/2020,Staff Costs - Non-Perms,Information & Technology,SmartSourcing,300017587,4650.00,788507869
BEIS,The Insolvency Service,03/02/2020,Staff Costs - Non-Perms,Information & Technology,SmartSourcing,300017588,4440.00,788507869
BEIS,The Insolvency Service,03/02/2020,Staff Costs - Non-Perms,Information & Technology,SmartSourcing,300017599,2880.00,788507869
BEIS,The Insolvency Service,03/02/2020,ICT,Information & Technology,Vodafone Corporate Ltd,300017990,44012.69,569953277
BEIS,The Insolvency Service,04/02/2020,"Printing, Stationary & Postage",People & Capability,Allied Publicity Services (Manchester) Ltd T/A Aps Group,300017721,351.95,146494152
BEIS,The Insolvency Service,04/02/2020,HR,People & Capability,Cabinet Office,300017681,75.60,888801080
BEIS,The Insolvency Service,04/02/2020,HR,People & Capability,Cabinet Office,300017681,163.00,888801080
BEIS,The Insolvency Service,04/02/2020,Training,People & Capability,Capita Business Services Ltd,300017693,4558.40,618184140
BEIS,The Insolvency Service,04/02/2020,Staff Costs - Non-Perms,Finance & Commercial,Hays Specialist Recruitment Ltd,300017602,1556.64,773695871
BEIS,The Insolvency Service,04/02/2020,Training,Business Service Division,KPMG LLP,300017683,163.00,791788859
BEIS,The Insolvency Service,04/02/2020,Training,People & Capability,KPMG LLP,300017720,3880.00,791788859
BEIS,The Insolvency Service,04/02/2020,Staff Costs - Non-Perms,Information & Technology,SmartSourcing,300017600,3450.00,788507869
BEIS,The Insolvency Service,04/02/2020,Staff Costs - Non-Perms,Information & Technology,SmartSourcing,300017601,3450.00,788507869
BEIS,The Insolvency Service,04/02/2020,Staff Costs - Non-Perms,Information & Technology,SmartSourcing,300017646,2040.00,788507869
BEIS,The Insolvency Service,04/02/2020,Staff Costs - Non-Perms,Information & Technology,SmartSourcing,300017682,4200.00,788507869
BEIS,The Insolvency Service,04/02/2020,Travel & Subsistence,Official Receiver Services,Staff Payment,900013818,195.75,
BEIS,The Insolvency Service,04/02/2020,Travel & Subsistence,Official Receiver Services,Staff Payment,900014074,195.75,
BEIS,The Insolvency Service,04/02/2020,Travel & Subsistence,Official Receiver Services,Staff Payment,900014192,651.60,
BEIS,The Insolvency Service,04/02/2020,Travel & Subsistence,Official Receiver Services,Staff Payment,900013673,8.00,
BEIS,The Insolvency Service,04/02/2020,Travel & Subsistence,Official Receiver Services,Staff Payment,900013673,4.40,
BEIS,The Insolvency Service,04/02/2020,Travel & Subsistence,Official Receiver Services,Staff Payment,900013673,5.00,
BEIS,The Insolvency Service,04/02/2020,Travel & Subsistence,Official Receiver Services,Staff Payment,900013673,12.40,
BEIS,The Insolvency Service,04/02/2020,Travel & Subsistence,Official Receiver Services,Staff Payment,900013673,10.00,
BEIS,The Insolvency Service,04/02/2020,Travel & Subsistence,Official Receiver Services,Staff Payment,900013976,6.49,
BEIS,The Insolvency Service,04/02/2020,Travel & Subsistence,Official Receiver Services,Staff Payment,900013976,10.00,
BEIS,The Insolvency Service,04/02/2020,Travel & Subsistence,Investigations & Enforcement Services,Staff Payment,900014158,258.00,
BEIS,The Insolvency Service,04/02/2020,Travel & Subsistence,Official Receiver Services,Staff Payment,900014153,4.80,
BEIS,The Insolvency Service,04/02/2020,Travel & Subsistence,People & Capability,Staff Payment,900013939,18.00,
BEIS,The Insolvency Service,04/02/2020,Travel & Subsistence,People & Capability,Staff Payment,900013939,18.00,
BEIS,The Insolvency Service,04/02/2020,Travel & Subsistence,People & Capability,Staff Payment,900013939,15.00,
BEIS,The Insolvency Service,04/02/2020,Travel & Subsistence,People & Capability,Staff Payment,900013939,5.00,
BEIS,The Insolvency Service,04/02/2020,Travel & Subsistence,Official Receiver Services,Staff Payment,900014060,23.94,
BEIS,The Insolvency Service,04/02/2020,Travel & Subsistence,Official Receiver Services,Staff Payment,900014060,23.94,
BEIS,The Insolvency Service,04/02/2020,Travel & Subsistence,Official Receiver Services,Staff Payment,900014060,8.38,
BEIS,The Insolvency Service,04/02/2020,Travel & Subsistence,Official Receiver Services,Staff Payment,900014149,26.95,
BEIS,The Insolvency Service,04/02/2020,Travel & Subsistence,Official Receiver Services,Staff Payment,900014149,10.00,
BEIS,The Insolvency Service,04/02/2020,Travel & Subsistence,Official Receiver Services,Staff Payment,900014149,10.00,
BEIS,The Insolvency Service,04/02/2020,Travel & Subsistence,Official Receiver Services,Staff Payment,900014150,15.00,
BEIS,The Insolvency Service,04/02/2020,Travel & Subsistence,Official Receiver Services,Staff Payment,900014150,5.00,
BEIS,The Insolvency Service,04/02/2020,Travel & Subsistence,Strategy & Change,Staff Payment,900014100,5.00,
BEIS,The Insolvency Service,04/02/2020,Travel & Subsistence,Strategy & Change,Staff Payment,900014100,5.00,
BEIS,The Insolvency Service,04/02/2020,Travel & Subsistence,Strategy & Change,Staff Payment,900014100,5.00,
BEIS,The Insolvency Service,04/02/2020,Travel & Subsistence,Strategy & Change,Staff Payment,900014100,15.00,
BEIS,The Insolvency Service,04/02/2020,Travel & Subsistence,Official Receiver Services,Staff Payment,900013977,22.47,
BEIS,The Insolvency Service,04/02/2020,Travel & Subsistence,Official Receiver Services,Staff Payment,900013977,5.00,
BEIS,The Insolvency Service,04/02/2020,Travel & Subsistence,Official Receiver Services,Staff Payment,900013977,2.65,
BEIS,The Insolvency Service,04/02/2020,Travel & Subsistence,Official Receiver Services,Staff Payment,900013977,4.55,
BEIS,The Insolvency Service,04/02/2020,Travel & Subsistence,Official Receiver Services,Staff Payment,900013977,4.39,
BEIS,The Insolvency Service,04/02/2020,Travel & Subsistence,Official Receiver Services,Staff Payment,900013977,3.00,
BEIS,The Insolvency Service,04/02/2020,Travel & Subsistence,Official Receiver Services,Staff Payment,900014117,5.00,
BEIS,The Insolvency Service,04/02/2020,Travel & Subsistence,Official Receiver Services,Staff Payment,900014117,52.20,
BEIS,The Insolvency Service,04/02/2020,Travel & Subsistence,Official Receiver Services,Staff Payment,900014117,3.60,
BEIS,The Insolvency Service,04/02/2020,Travel & Subsistence,Official Receiver Services,Staff Payment,900014113,5.00,
BEIS,The Insolvency Service,04/02/2020,Travel & Subsistence,Investigations & Enforcement Services,Staff Payment,900014091,5.00,
BEIS,The Insolvency Service,04/02/2020,Travel & Subsistence,Investigations & Enforcement Services,Staff Payment,900014091,2.25,
BEIS,The Insolvency Service,04/02/2020,Travel & Subsistence,Investigations & Enforcement Services,Staff Payment,900014091,2.55,
BEIS,The Insolvency Service,04/02/2020,Travel & Subsistence,Investigations & Enforcement Services,Staff Payment,900014091,3.10,
BEIS,The Insolvency Service,04/02/2020,Travel & Subsistence,Official Receiver Services,Staff Payment,900014127,15.00,
BEIS,The Insolvency Service,04/02/2020,Travel & Subsistence,Official Receiver Services,Staff Payment,900014127,5.00,
BEIS,The Insolvency Service,04/02/2020,Travel & Subsistence,Official Receiver Services,Staff Payment,900014039,124.65,
BEIS,The Insolvency Service,04/02/2020,Travel & Subsistence,Official Receiver Services,Staff Payment,900014039,23.58,
BEIS,The Insolvency Service,04/02/2020,Travel & Subsistence,Official Receiver Services,Staff Payment,900014040,119.88,
BEIS,The Insolvency Service,04/02/2020,Travel & Subsistence,Official Receiver Services,Staff Payment,900014040,23.58,
BEIS,The Insolvency Service,04/02/2020,Travel & Subsistence,Official Receiver Services,Staff Payment,900014040,4.00,
BEIS,The Insolvency Service,04/02/2020,Travel & Subsistence,Official Receiver Services,Staff Payment,900014130,5.00,
BEIS,The Insolvency Service,04/02/2020,Travel & Subsistence,Official Receiver Services,Staff Payment,900014130,56.50,
BEIS,The Insolvency Service,04/02/2020,Travel & Subsistence,Official Receiver Services,Staff Payment,900013971,127.35,
BEIS,The Insolvency Service,04/02/2020,Travel & Subsistence,Official Receiver Services,Staff Payment,900013971,26.00,
BEIS,The Insolvency Service,04/02/2020,Travel & Subsistence,Official Receiver Services,Staff Payment,900013971,4.70,
BEIS,The Insolvency Service,04/02/2020,Travel & Subsistence,Official Receiver Services,Staff Payment,900013971,101.00,
BEIS,The Insolvency Service,04/02/2020,Travel & Subsistence,Official Receiver Services,Staff Payment,900013971,1.80,
BEIS,The Insolvency Service,04/02/2020,Travel & Subsistence,Official Receiver Services,Staff Payment,900013971,4.85,
BEIS,The Insolvency Service,04/02/2020,Travel & Subsistence,Official Receiver Services,Staff Payment,900013971,39.94,
BEIS,The Insolvency Service,04/02/2020,Travel & Subsistence,Official Receiver Services,Staff Payment,900013971,9.70,
BEIS,The Insolvency Service,04/02/2020,Travel & Subsistence,Investigations & Enforcement Services,Staff Payment,900014162,3.00,
BEIS,The Insolvency Service,04/02/2020,Travel & Subsistence,Investigations & Enforcement Services,Staff Payment,900014162,6.36,
BEIS,The Insolvency Service,04/02/2020,Travel & Subsistence,Investigations & Enforcement Services,Staff Payment,900014162,4.80,
BEIS,The Insolvency Service,04/02/2020,Travel & Subsistence,Investigations & Enforcement Services,Staff Payment,900014155,5.20,
BEIS,The Insolvency Service,04/02/2020,Travel & Subsistence,Investigations & Enforcement Services,Staff Payment,900014155,4.20,
BEIS,The Insolvency Service,04/02/2020,Travel & Subsistence,Investigations & Enforcement Services,Staff Payment,900013849,95.85,
BEIS,The Insolvency Service,04/02/2020,Travel & Subsistence,Investigations & Enforcement Services,Staff Payment,900013849,48.15,
BEIS,The Insolvency Service,04/02/2020,Travel & Subsistence,Investigations & Enforcement Services,Staff Payment,900013849,5.00,
BEIS,The Insolvency Service,04/02/2020,Travel & Subsistence,Investigations & Enforcement Services,Staff Payment,900013849,2.70,
BEIS,The Insolvency Service,04/02/2020,Travel & Subsistence,Investigations & Enforcement Services,Staff Payment,900014147,13.05,
BEIS,The Insolvency Service,04/02/2020,Travel & Subsistence,Investigations & Enforcement Services,Staff Payment,900014147,25.20,
BEIS,The Insolvency Service,04/02/2020,Travel & Subsistence,Investigations & Enforcement Services,Staff Payment,900014147,9.00,
BEIS,The Insolvency Service,04/02/2020,Travel & Subsistence,Investigations & Enforcement Services,Staff Payment,900014147,31.50,
BEIS,The Insolvency Service,04/02/2020,Travel & Subsistence,Investigations & Enforcement Services,Staff Payment,900014118,8.55,
BEIS,The Insolvency Service,04/02/2020,Travel & Subsistence,Investigations & Enforcement Services,Staff Payment,900014118,46.80,
BEIS,The Insolvency Service,04/02/2020,Travel & Subsistence,Investigations & Enforcement Services,Staff Payment,900014174,11.25,
BEIS,The Insolvency Service,04/02/2020,Travel & Subsistence,Investigations & Enforcement Services,Staff Payment,900014174,27.90,
BEIS,The Insolvency Service,04/02/2020,Travel & Subsistence,Investigations & Enforcement Services,Staff Payment,900014157,40.50,
BEIS,The Insolvency Service,04/02/2020,Travel & Subsistence,Investigations & Enforcement Services,Staff Payment,900013929,5.00,
BEIS,The Insolvency Service,04/02/2020,Travel & Subsistence,Investigations & Enforcement Services,Staff Payment,900013929,7.60,
BEIS,The Insolvency Service,04/02/2020,Travel & Subsistence,Investigations & Enforcement Services,Staff Payment,900014172,4.55,
BEIS,The Insolvency Service,04/02/2020,Travel & Subsistence,Investigations & Enforcement Services,Staff Payment,900014172,3.40,
BEIS,The Insolvency Service,04/02/2020,Travel & Subsistence,Investigations & Enforcement Services,Staff Payment,900014172,3.40,
BEIS,The Insolvency Service,04/02/2020,Travel & Subsistence,Investigations & Enforcement Services,Staff Payment,900014172,5.00,
BEIS,The Insolvency Service,04/02/2020,Travel & Subsistence,Investigations & Enforcement Services,Staff Payment,900014172,53.10,
BEIS,The Insolvency Service,04/02/2020,Travel & Subsistence,Investigations & Enforcement Services,Staff Payment,900014172,5.00,
BEIS,The Insolvency Service,04/02/2020,Travel & Subsistence,Investigations & Enforcement Services,Staff Payment,900014114,72.90,
BEIS,The Insolvency Service,04/02/2020,Travel & Subsistence,Investigations & Enforcement Services,Staff Payment,900014114,46.35,
BEIS,The Insolvency Service,04/02/2020,Travel & Subsistence,Investigations & Enforcement Services,Staff Payment,900014114,82.80,
BEIS,The Insolvency Service,04/02/2020,Travel & Subsistence,Investigations & Enforcement Services,Staff Payment,900014114,34.65,
BEIS,The Insolvency Service,04/02/2020,Travel & Subsistence,Investigations & Enforcement Services,Staff Payment,900014114,69.30,
BEIS,The Insolvency Service,04/02/2020,Travel & Subsistence,Investigations & Enforcement Services,Staff Payment,900014114,57.15,
BEIS,The Insolvency Service,04/02/2020,Travel & Subsistence,People & Capability,Staff Payment,900014177,26.00,
BEIS,The Insolvency Service,04/02/2020,Travel & Subsistence,People & Capability,Staff Payment,900014177,20.00,
BEIS,The Insolvency Service,04/02/2020,Travel & Subsistence,Official Receiver Services,Staff Payment,900014119,28.40,
BEIS,The Insolvency Service,04/02/2020,Travel & Subsistence,Official Receiver Services,Staff Payment,900014119,28.40,
BEIS,The Insolvency Service,04/02/2020,Travel & Subsistence,Official Receiver Services,Staff Payment,900014119,28.40,
BEIS,The Insolvency Service,04/02/2020,Travel & Subsistence,Official Receiver Services,Staff Payment,900014119,28.40,
BEIS,The Insolvency Service,04/02/2020,Travel & Subsistence,Finance & Commercial,Staff Payment,900014106,5.00,
BEIS,The Insolvency Service,04/02/2020,Travel & Subsistence,Finance & Commercial,Staff Payment,900014106,5.00,
BEIS,The Insolvency Service,04/02/2020,Travel & Subsistence,Finance & Commercial,Staff Payment,900014106,3.85,
BEIS,The Insolvency Service,04/02/2020,Travel & Subsistence,Finance & Commercial,Staff Payment,900014106,4.19,
BEIS,The Insolvency Service,04/02/2020,Travel & Subsistence,Finance & Commercial,Staff Payment,900014106,15.00,
BEIS,The Insolvency Service,04/02/2020,Travel & Subsistence,Finance & Commercial,Staff Payment,900014106,15.00,
BEIS,The Insolvency Service,04/02/2020,Travel & Subsistence,Finance & Commercial,Staff Payment,900014106,5.00,
BEIS,The Insolvency Service,04/02/2020,Travel & Subsistence,Finance & Commercial,Staff Payment,900014106,15.00,
BEIS,The Insolvency Service,04/02/2020,Travel & Subsistence,Finance & Commercial,Staff Payment,900014106,3.55,
BEIS,The Insolvency Service,04/02/2020,Travel & Subsistence,Finance & Commercial,Staff Payment,900014106,15.00,
BEIS,The Insolvency Service,04/02/2020,Travel & Subsistence,Finance & Commercial,Staff Payment,900014106,2.85,
BEIS,The Insolvency Service,04/02/2020,Travel & Subsistence,Finance & Commercial,Staff Payment,900014106,5.00,
BEIS,The Insolvency Service,04/02/2020,Travel & Subsistence,Finance & Commercial,Staff Payment,900014106,20.70,
BEIS,The Insolvency Service,04/02/2020,Travel & Subsistence,Finance & Commercial,Staff Payment,900014106,17.10,
BEIS,The Insolvency Service,04/02/2020,Travel & Subsistence,Finance & Commercial,Staff Payment,900014108,5.00,
BEIS,The Insolvency Service,04/02/2020,Travel & Subsistence,Finance & Commercial,Staff Payment,900014108,4.49,
BEIS,The Insolvency Service,04/02/2020,Travel & Subsistence,Finance & Commercial,Staff Payment,900014110,9.84,
BEIS,The Insolvency Service,04/02/2020,Travel & Subsistence,Finance & Commercial,Staff Payment,900014110,5.00,
BEIS,The Insolvency Service,04/02/2020,Travel & Subsistence,Finance & Commercial,Staff Payment,900014110,15.00,
BEIS,The Insolvency Service,04/02/2020,Travel & Subsistence,Finance & Commercial,Staff Payment,900014110,10.00,
BEIS,The Insolvency Service,04/02/2020,Travel & Subsistence,Finance & Commercial,Staff Payment,900014110,5.00,
BEIS,The Insolvency Service,04/02/2020,Travel & Subsistence,Finance & Commercial,Staff Payment,900014110,5.00,
BEIS,The Insolvency Service,04/02/2020,Travel & Subsistence,Finance & Commercial,Staff Payment,900014110,5.00,
BEIS,The Insolvency Service,04/02/2020,Travel & Subsistence,Finance & Commercial,Staff Payment,900014110,5.00,
BEIS,The Insolvency Service,04/02/2020,Travel & Subsistence,Finance & Commercial,Staff Payment,900014110,5.00,
BEIS,The Insolvency Service,04/02/2020,Travel & Subsistence,Finance & Commercial,Staff Payment,900014110,4.85,
BEIS,The Insolvency Service,04/02/2020,Travel & Subsistence,Finance & Commercial,Staff Payment,900014110,15.00,
BEIS,The Insolvency Service,04/02/2020,Travel & Subsistence,Finance & Commercial,Staff Payment,900014110,5.00,
BEIS,The Insolvency Service,04/02/2020,Travel & Subsistence,Finance & Commercial,Staff Payment,900014110,5.00,
BEIS,The Insolvency Service,04/02/2020,Travel & Subsistence,Finance & Commercial,Staff Payment,900014110,57.20,
BEIS,The Insolvency Service,04/02/2020,Travel & Subsistence,Official Receiver Services,Staff Payment,900014132,5.00,
BEIS,The Insolvency Service,04/02/2020,Travel & Subsistence,Official Receiver Services,Staff Payment,900014133,5.00,
BEIS,The Insolvency Service,04/02/2020,Travel & Subsistence,Official Receiver Services,Staff Payment,900014137,5.00,
BEIS,The Insolvency Service,04/02/2020,Travel & Subsistence,Official Receiver Services,Staff Payment,900014141,5.00,
BEIS,The Insolvency Service,04/02/2020,Travel & Subsistence,People & Capability,Staff Payment,900014128,6.60,
BEIS,The Insolvency Service,04/02/2020,Travel & Subsistence,People & Capability,Staff Payment,900014129,10.70,
BEIS,The Insolvency Service,04/02/2020,Other Costs,Business Service Division,Stratford City Business District Ltd,300017702,529.63,113882616
BEIS,The Insolvency Service,05/02/2020,ICT,Strategy & Change,Atos It Services Uk Ltd,300017665,23669.00,232327983
BEIS,The Insolvency Service,05/02/2020,ICT,Strategy & Change,Atos It Services Uk Ltd,300017666,31000.00,232327983
BEIS,The Insolvency Service,05/02/2020,ICT,Strategy & Change,Atos It Services Uk Ltd,300017667,53632.00,232327983
BEIS,The Insolvency Service,05/02/2020,"Legal, Translation & Consultancy",Chief Executive Office,Bdo Llp,300017643,12000.00,830847032
BEIS,The Insolvency Service,05/02/2020,Civil Litigation Disqualifications,Legal Services Division,Enterprise Chambers,300017814,533.64,938136900
BEIS,The Insolvency Service,05/02/2020,Staff Costs - Non-Perms,Finance & Commercial,Hays Specialist Recruitment Ltd,300017763,1556.64,773695871
BEIS,The Insolvency Service,05/02/2020,Other Costs,Strategy & Change,International Association Of Insolvency Regulators,300017519,1052.00,
BEIS,The Insolvency Service,05/02/2020,Off-Site Storage,Business Service Division,Iron Mountain (Uk) Ltd,300017758,36544.71,607937516
BEIS,The Insolvency Service,05/02/2020,"Printing, Stationary & Postage",Business Service Division,Neopost Limited,300017755,35250.00,
BEIS,The Insolvency Service,05/02/2020,Off-Site Storage,Official Receiver Services,Restore Plc (Records Management),300017813,7166.39,843863011
BEIS,The Insolvency Service,05/02/2020,Training,People & Capability,Right Corecare Ltd,300017719,481.57,
BEIS,The Insolvency Service,05/02/2020,Other Costs,Official Receiver Services,Royal Mail,300017798,10761.00,
BEIS,The Insolvency Service,05/02/2020,Civil Litigation Disqualifications,Legal Services Division,Selbourne Chambers,300017815,768.00,1036299146
BEIS,The Insolvency Service,05/02/2020,Travel & Subsistence,Investigations & Enforcement Services,Staff Payment,900014163,4.19,
BEIS,The Insolvency Service,05/02/2020,Travel & Subsistence,Investigations & Enforcement Services,Staff Payment,900014163,11.75,
BEIS,The Insolvency Service,05/02/2020,Travel & Subsistence,Investigations & Enforcement Services,Staff Payment,900014163,5.00,
BEIS,The Insolvency Service,05/02/2020,Travel & Subsistence,Investigations & Enforcement Services,Staff Payment,900014163,5.00,
BEIS,The Insolvency Service,05/02/2020,Travel & Subsistence,Investigations & Enforcement Services,Staff Payment,900014163,8.60,
BEIS,The Insolvency Service,05/02/2020,Travel & Subsistence,Official Receiver Services,Staff Payment,900013779,5.00,
BEIS,The Insolvency Service,05/02/2020,Travel & Subsistence,Official Receiver Services,Staff Payment,900013779,5.40,
BEIS,The Insolvency Service,05/02/2020,Travel & Subsistence,Official Receiver Services,Staff Payment,900013779,15.00,
BEIS,The Insolvency Service,05/02/2020,Travel & Subsistence,Official Receiver Services,Staff Payment,900013779,5.00,
BEIS,The Insolvency Service,05/02/2020,Travel & Subsistence,Official Receiver Services,Staff Payment,900013779,5.00,
BEIS,The Insolvency Service,05/02/2020,Travel & Subsistence,Official Receiver Services,Staff Payment,900014151,15.00,
BEIS,The Insolvency Service,05/02/2020,Travel & Subsistence,Official Receiver Services,Staff Payment,900014151,10.00,
BEIS,The Insolvency Service,05/02/2020,Travel & Subsistence,Official Receiver Services,Staff Payment,900014151,5.00,
BEIS,The Insolvency Service,05/02/2020,Travel & Subsistence,Business Service Division,Staff Payment,900013950,5.30,
BEIS,The Insolvency Service,05/02/2020,Travel & Subsistence,Business Service Division,Staff Payment,900013950,5.20,
BEIS,The Insolvency Service,05/02/2020,Travel & Subsistence,Business Service Division,Staff Payment,900013950,14.00,
BEIS,The Insolvency Service,05/02/2020,Travel & Subsistence,Business Service Division,Staff Payment,900013950,5.00,
BEIS,The Insolvency Service,05/02/2020,Travel & Subsistence,Business Service Division,Staff Payment,900013950,5.00,
BEIS,The Insolvency Service,05/02/2020,Travel & Subsistence,Investigations & Enforcement Services,Staff Payment,900014176,4.40,
BEIS,The Insolvency Service,05/02/2020,Travel & Subsistence,Investigations & Enforcement Services,Staff Payment,900014176,13.35,
BEIS,The Insolvency Service,05/02/2020,Travel & Subsistence,Investigations & Enforcement Services,Staff Payment,900014176,3.45,
BEIS,The Insolvency Service,05/02/2020,Travel & Subsistence,Investigations & Enforcement Services,Staff Payment,900014176,5.00,
BEIS,The Insolvency Service,05/02/2020,Travel & Subsistence,Official Receiver Services,Staff Payment,900014160,69.30,
BEIS,The Insolvency Service,05/02/2020,Travel & Subsistence,Official Receiver Services,Staff Payment,900014168,5.00,
BEIS,The Insolvency Service,05/02/2020,Travel & Subsistence,Official Receiver Services,Staff Payment,900014057,12.00,
BEIS,The Insolvency Service,05/02/2020,Travel & Subsistence,Official Receiver Services,Staff Payment,900014057,39.60,
BEIS,The Insolvency Service,05/02/2020,Travel & Subsistence,Business Service Division,Staff Payment,900014161,7.90,
BEIS,The Insolvency Service,05/02/2020,Travel & Subsistence,Business Service Division,Staff Payment,900014161,9.00,
BEIS,The Insolvency Service,05/02/2020,Travel & Subsistence,Business Service Division,Staff Payment,900014161,15.00,
BEIS,The Insolvency Service,05/02/2020,Travel & Subsistence,Business Service Division,Staff Payment,900014161,5.00,
BEIS,The Insolvency Service,05/02/2020,Travel & Subsistence,Business Service Division,Staff Payment,900014161,1.99,
BEIS,The Insolvency Service,05/02/2020,Travel & Subsistence,Chief Executive Office,Staff Payment,900014184,65.00,
BEIS,The Insolvency Service,05/02/2020,Travel & Subsistence,Chief Executive Office,Staff Payment,900014184,11.60,
BEIS,The Insolvency Service,05/02/2020,Travel & Subsistence,Chief Executive Office,Staff Payment,900014184,9.19,
BEIS,The Insolvency Service,05/02/2020,Travel & Subsistence,Chief Executive Office,Staff Payment,900014185,47.00,
BEIS,The Insolvency Service,05/02/2020,Travel & Subsistence,Chief Executive Office,Staff Payment,900014185,14.25,
BEIS,The Insolvency Service,05/02/2020,Travel & Subsistence,Investigations & Enforcement Services,Staff Payment,900013571,3.60,
BEIS,The Insolvency Service,05/02/2020,Travel & Subsistence,Investigations & Enforcement Services,Staff Payment,900013571,8.10,
BEIS,The Insolvency Service,05/02/2020,Travel & Subsistence,Investigations & Enforcement Services,Staff Payment,900013571,3.32,
BEIS,The Insolvency Service,05/02/2020,Travel & Subsistence,Investigations & Enforcement Services,Staff Payment,900013571,6.00,
BEIS,The Insolvency Service,05/02/2020,Travel & Subsistence,Investigations & Enforcement Services,Staff Payment,900013571,6.00,
BEIS,The Insolvency Service,05/02/2020,Travel & Subsistence,Investigations & Enforcement Services,Staff Payment,900013571,43.20,
BEIS,The Insolvency Service,05/02/2020,Travel & Subsistence,Investigations & Enforcement Services,Staff Payment,900013571,34.20,
BEIS,The Insolvency Service,05/02/2020,Travel & Subsistence,Investigations & Enforcement Services,Staff Payment,900013571,30.60,
BEIS,The Insolvency Service,05/02/2020,Travel & Subsistence,Investigations & Enforcement Services,Staff Payment,900013571,35.10,
BEIS,The Insolvency Service,05/02/2020,Travel & Subsistence,Investigations & Enforcement Services,Staff Payment,900013571,95.40,
BEIS,The Insolvency Service,05/02/2020,Travel & Subsistence,Investigations & Enforcement Services,Staff Payment,900013571,48.60,
BEIS,The Insolvency Service,05/02/2020,Travel & Subsistence,Investigations & Enforcement Services,Staff Payment,900013571,4.95,
BEIS,The Insolvency Service,05/02/2020,Travel & Subsistence,Investigations & Enforcement Services,Staff Payment,900013571,9.94,
BEIS,The Insolvency Service,05/02/2020,Travel & Subsistence,Investigations & Enforcement Services,Staff Payment,900013571,4.40,
BEIS,The Insolvency Service,05/02/2020,Travel & Subsistence,Investigations & Enforcement Services,Staff Payment,900013571,4.69,
BEIS,The Insolvency Service,05/02/2020,Travel & Subsistence,Investigations & Enforcement Services,Staff Payment,900014202,33.75,
BEIS,The Insolvency Service,05/02/2020,Travel & Subsistence,Investigations & Enforcement Services,Staff Payment,900013868,12.60,
BEIS,The Insolvency Service,05/02/2020,Travel & Subsistence,Investigations & Enforcement Services,Staff Payment,900013868,38.70,
BEIS,The Insolvency Service,05/02/2020,Travel & Subsistence,Investigations & Enforcement Services,Staff Payment,900013868,82.35,
BEIS,The Insolvency Service,05/02/2020,Travel & Subsistence,Investigations & Enforcement Services,Staff Payment,900013868,23.00,
BEIS,The Insolvency Service,05/02/2020,Travel & Subsistence,Investigations & Enforcement Services,Staff Payment,900013868,3.50,
BEIS,The Insolvency Service,05/02/2020,Travel & Subsistence,Investigations & Enforcement Services,Staff Payment,900013868,5.00,
BEIS,The Insolvency Service,05/02/2020,Travel & Subsistence,Investigations & Enforcement Services,Staff Payment,900014063,7.50,
BEIS,The Insolvency Service,05/02/2020,Travel & Subsistence,Investigations & Enforcement Services,Staff Payment,900014063,7.00,
BEIS,The Insolvency Service,05/02/2020,Travel & Subsistence,Investigations & Enforcement Services,Staff Payment,900014063,34.56,
BEIS,The Insolvency Service,05/02/2020,Travel & Subsistence,Investigations & Enforcement Services,Staff Payment,900014063,5.00,
BEIS,The Insolvency Service,05/02/2020,Travel & Subsistence,Investigations & Enforcement Services,Staff Payment,900014063,15.00,
BEIS,The Insolvency Service,05/02/2020,Travel & Subsistence,Investigations & Enforcement Services,Staff Payment,900014063,5.00,
BEIS,The Insolvency Service,05/02/2020,Travel & Subsistence,Investigations & Enforcement Services,Staff Payment,900014063,5.00,
BEIS,The Insolvency Service,05/02/2020,Travel & Subsistence,Investigations & Enforcement Services,Staff Payment,900014063,15.30,
BEIS,The Insolvency Service,05/02/2020,Travel & Subsistence,Investigations & Enforcement Services,Staff Payment,900014063,3.60,
BEIS,The Insolvency Service,05/02/2020,Travel & Subsistence,Investigations & Enforcement Services,Staff Payment,900014063,157.95,
BEIS,The Insolvency Service,05/02/2020,Travel & Subsistence,Investigations & Enforcement Services,Staff Payment,900014063,12.70,
BEIS,The Insolvency Service,05/02/2020,Travel & Subsistence,Investigations & Enforcement Services,Staff Payment,900014063,5.00,
BEIS,The Insolvency Service,05/02/2020,Travel & Subsistence,Investigations & Enforcement Services,Staff Payment,900014063,3.60,
BEIS,The Insolvency Service,05/02/2020,Travel & Subsistence,Official Receiver Services,Staff Payment,900014122,5.00,
BEIS,The Insolvency Service,05/02/2020,Travel & Subsistence,Strategy & Change,Staff Payment,900014166,10.00,
BEIS,The Insolvency Service,05/02/2020,Travel & Subsistence,Strategy & Change,Staff Payment,900014166,3.70,
BEIS,The Insolvency Service,05/02/2020,Travel & Subsistence,Strategy & Change,Staff Payment,900014166,4.78,
BEIS,The Insolvency Service,05/02/2020,Travel & Subsistence,Strategy & Change,Staff Payment,900014166,4.78,
BEIS,The Insolvency Service,05/02/2020,Travel & Subsistence,Strategy & Change,Staff Payment,900014166,14.60,
BEIS,The Insolvency Service,05/02/2020,Travel & Subsistence,Strategy & Change,Staff Payment,900014166,4.15,
BEIS,The Insolvency Service,05/02/2020,Travel & Subsistence,Strategy & Change,Staff Payment,900014166,2.79,
BEIS,The Insolvency Service,05/02/2020,Travel & Subsistence,Strategy & Change,Staff Payment,900014166,4.78,
BEIS,The Insolvency Service,05/02/2020,Travel & Subsistence,Strategy & Change,Staff Payment,900014166,10.00,
BEIS,The Insolvency Service,05/02/2020,Travel & Subsistence,Strategy & Change,Staff Payment,900014166,8.50,
BEIS,The Insolvency Service,05/02/2020,Travel & Subsistence,Strategy & Change,Staff Payment,900014166,8.50,
BEIS,The Insolvency Service,05/02/2020,Travel & Subsistence,Strategy & Change,Staff Payment,900014166,8.50,
BEIS,The Insolvency Service,05/02/2020,Travel & Subsistence,Strategy & Change,Staff Payment,900014166,8.50,
BEIS,The Insolvency Service,05/02/2020,Travel & Subsistence,Strategy & Change,Staff Payment,900014166,5.00,
BEIS,The Insolvency Service,05/02/2020,Travel & Subsistence,Strategy & Change,Staff Payment,900014166,8.50,
BEIS,The Insolvency Service,05/02/2020,Travel & Subsistence,Strategy & Change,Staff Payment,900014166,8.50,
BEIS,The Insolvency Service,05/02/2020,Travel & Subsistence,Strategy & Change,Staff Payment,900014166,5.00,
BEIS,The Insolvency Service,05/02/2020,Travel & Subsistence,Finance & Commercial,Staff Payment,900014167,187.00,
BEIS,The Insolvency Service,05/02/2020,Travel & Subsistence,Finance & Commercial,Staff Payment,900014159,175.00,
BEIS,The Insolvency Service,05/02/2020,Travel & Subsistence,Finance & Commercial,Staff Payment,900014159,175.00,
BEIS,The Insolvency Service,05/02/2020,ICT,Information & Technology,Vodafone - Cable & Wireless Communications,300017739,3276.01,569953277
BEIS,The Insolvency Service,06/02/2020,Legal - Live Investigations,Legal Services Division,5 St Andrews Hill,300017866,10236.00,703074472
BEIS,The Insolvency Service,06/02/2020,Legal - Live Investigations,Legal Services Division,5 St Andrews Hill,300017867,2454.00,703074472
BEIS,The Insolvency Service,06/02/2020,Staff Costs - Non-Perms,Finance & Commercial,ALEXANDER MANN SOLUTIONS,300017847,-1713.62,7444926120
BEIS,The Insolvency Service,06/02/2020,Staff Costs - Non-Perms,Finance & Commercial,ALEXANDER MANN SOLUTIONS,300017886,59163.18,7444926120
BEIS,The Insolvency Service,06/02/2020,Estates - Property,Finance & Commercial,Avison Young,300017756,2100.00,
BEIS,The Insolvency Service,06/02/2020,"Printing, Stationary & Postage",Business Service Division,Banner Business Services Ltd,300017803,10751.48,731860439
BEIS,The Insolvency Service,06/02/2020,Investigation & Enforcement,Investigations & Enforcement Services,Burness Paull & Williamsons Solicitors,300017817,389.13,216218532
BEIS,The Insolvency Service,06/02/2020,Investigation & Enforcement,Investigations & Enforcement Services,Burness Paull & Williamsons Solicitors,300017818,1913.53,216218532
BEIS,The Insolvency Service,06/02/2020,Legal - Outsourced Investigation,Investigations & Enforcement Services,Burness Paull & Williamsons Solicitors,300017819,299.26,216218532
BEIS,The Insolvency Service,06/02/2020,Investigation & Enforcement,Official Receiver Services,Burness Paull & Williamsons Solicitors,300017879,1975.66,216218532
BEIS,The Insolvency Service,06/02/2020,Other Costs,Investigations & Enforcement Services,Companies House,300017870,4.00,GD255
BEIS,The Insolvency Service,06/02/2020,"Printing, Stationary & Postage",Business Service Division,Dx Network Services Ltd,300017760,39.57,849741385
BEIS,The Insolvency Service,06/02/2020,Legal - Outsourced Investigation,Investigations & Enforcement Services,Gowling Wragge Lawrence Graham  & Co,300017824,5278.70,858698838
BEIS,The Insolvency Service,06/02/2020,Investigation & Enforcement,Investigations & Enforcement Services,Gowling Wragge Lawrence Graham  & Co,300017825,10834.34,858698838
BEIS,The Insolvency Service,06/02/2020,Investigation & Enforcement,Investigations & Enforcement Services,Gowling Wragge Lawrence Graham  & Co,300017825,115.00,858698838
BEIS,The Insolvency Service,06/02/2020,Civil Litigation Disqualifications,Legal Services Division,Gowling Wragge Lawrence Graham  & Co,300017826,25904.71,858698838
BEIS,The Insolvency Service,06/02/2020,Civil Litigation Disqualifications,Legal Services Division,Gowling Wragge Lawrence Graham  & Co,300017826,730.20,858698838
BEIS,The Insolvency Service,06/02/2020,Investigation & Enforcement,Official Receiver Services,Gowling Wragge Lawrence Graham  & Co,300017880,6673.80,858698838
BEIS,The Insolvency Service,06/02/2020,Estates - Property,Finance & Commercial,Middlesbrough Council,300017759,344.70,734213854
BEIS,The Insolvency Service,06/02/2020,Estates - Property,Finance & Commercial,Prydis Support Ltd,300017757,2340.00,974841283
BEIS,The Insolvency Service,06/02/2020,Estates - Property,Finance & Commercial,Prydis Support Ltd,300017844,604.54,974841283
BEIS,The Insolvency Service,06/02/2020,Investigation & Enforcement,Investigations & Enforcement Services,Shepherd & Wedderburn,300017822,1867.16,890559386
BEIS,The Insolvency Service,06/02/2020,Civil Litigation Disqualifications,Legal Services Division,Shepherd & Wedderburn,300017823,1263.28,890559386
BEIS,The Insolvency Service,06/02/2020,Investigation & Enforcement,Official Receiver Services,Shepherd & Wedderburn,300017881,3444.62,890559386
BEIS,The Insolvency Service,06/02/2020,Investigation & Enforcement,Investigations & Enforcement Services,Shepherd & Wedderburn,300017885,767.15,125425142
BEIS,The Insolvency Service,06/02/2020,HR,People & Capability,Smart Employee Eyecare,300017812,437.00,
BEIS,The Insolvency Service,06/02/2020,HR,People & Capability,Smart Employee Eyecare,300018227,-19.00,
BEIS,The Insolvency Service,06/02/2020,Civil Litigation Disqualifications,Legal Services Division,St Philips Barristers,300017816,924.00,614053968
BEIS,The Insolvency Service,06/02/2020,Travel & Subsistence,Legal Services Division,Staff Payment,900014003,22.00,
BEIS,The Insolvency Service,06/02/2020,Travel & Subsistence,Legal Services Division,Staff Payment,900014003,9.00,
BEIS,The Insolvency Service,06/02/2020,Travel & Subsistence,Legal Services Division,Staff Payment,900014003,7.00,
BEIS,The Insolvency Service,06/02/2020,Travel & Subsistence,Legal Services Division,Staff Payment,900014003,2.69,
BEIS,The Insolvency Service,06/02/2020,Travel & Subsistence,Legal Services Division,Staff Payment,900014003,2.90,
BEIS,The Insolvency Service,06/02/2020,Travel & Subsistence,Investigations & Enforcement Services,Staff Payment,900010015,49.50,
BEIS,The Insolvency Service,06/02/2020,Travel & Subsistence,Official Receiver Services,Staff Payment,900014230,1.00,
BEIS,The Insolvency Service,06/02/2020,Travel & Subsistence,Official Receiver Services,Staff Payment,900014230,16.65,
BEIS,The Insolvency Service,06/02/2020,Travel & Subsistence,Official Receiver Services,Staff Payment,900014270,10.00,
BEIS,The Insolvency Service,06/02/2020,Travel & Subsistence,Official Receiver Services,Staff Payment,900014270,12.00,
BEIS,The Insolvency Service,06/02/2020,Travel & Subsistence,Official Receiver Services,Staff Payment,900014270,5.00,
BEIS,The Insolvency Service,06/02/2020,Travel & Subsistence,Official Receiver Services,Staff Payment,900014270,5.00,
BEIS,The Insolvency Service,06/02/2020,Travel & Subsistence,Official Receiver Services,Staff Payment,900014272,5.00,
BEIS,The Insolvency Service,06/02/2020,Travel & Subsistence,Official Receiver Services,Staff Payment,900014272,12.00,
BEIS,The Insolvency Service,06/02/2020,Travel & Subsistence,Official Receiver Services,Staff Payment,900014272,15.00,
BEIS,The Insolvency Service,06/02/2020,Travel & Subsistence,Business Service Division,Staff Payment,900013963,7.10,
BEIS,The Insolvency Service,06/02/2020,Travel & Subsistence,Business Service Division,Staff Payment,900013963,12.70,
BEIS,The Insolvency Service,06/02/2020,Travel & Subsistence,Business Service Division,Staff Payment,900013963,10.00,
BEIS,The Insolvency Service,06/02/2020,Travel & Subsistence,Business Service Division,Staff Payment,900013963,9.00,
BEIS,The Insolvency Service,06/02/2020,Travel & Subsistence,Strategy & Change,Staff Payment,900014131,6.28,
BEIS,The Insolvency Service,06/02/2020,Travel & Subsistence,Strategy & Change,Staff Payment,900014131,5.73,
BEIS,The Insolvency Service,06/02/2020,Travel & Subsistence,Strategy & Change,Staff Payment,900014131,10.00,
BEIS,The Insolvency Service,06/02/2020,Travel & Subsistence,Strategy & Change,Staff Payment,900014131,15.00,
BEIS,The Insolvency Service,06/02/2020,Travel & Subsistence,Strategy & Change,Staff Payment,900014131,5.00,
BEIS,The Insolvency Service,06/02/2020,Travel & Subsistence,Strategy & Change,Staff Payment,900014131,5.00,
BEIS,The Insolvency Service,06/02/2020,Travel & Subsistence,Official Receiver Services,Staff Payment,900014199,39.00,
BEIS,The Insolvency Service,06/02/2020,Travel & Subsistence,Official Receiver Services,Staff Payment,900014199,7.20,
BEIS,The Insolvency Service,06/02/2020,Travel & Subsistence,Official Receiver Services,Staff Payment,900014194,5.00,
BEIS,The Insolvency Service,06/02/2020,Travel & Subsistence,Official Receiver Services,Staff Payment,900014194,6.10,
BEIS,The Insolvency Service,06/02/2020,Travel & Subsistence,Official Receiver Services,Staff Payment,900014195,5.00,
BEIS,The Insolvency Service,06/02/2020,Travel & Subsistence,Official Receiver Services,Staff Payment,900014195,2.03,
BEIS,The Insolvency Service,06/02/2020,Travel & Subsistence,Legal Services Division,Staff Payment,900014243,5.00,
BEIS,The Insolvency Service,06/02/2020,Travel & Subsistence,Official Receiver Services,Staff Payment,900014246,7.80,
BEIS,The Insolvency Service,06/02/2020,Travel & Subsistence,Official Receiver Services,Staff Payment,900014246,9.00,
BEIS,The Insolvency Service,06/02/2020,Travel & Subsistence,Strategy & Change,Staff Payment,900013768,3.88,
BEIS,The Insolvency Service,06/02/2020,Travel & Subsistence,Strategy & Change,Staff Payment,900013768,20.00,
BEIS,The Insolvency Service,06/02/2020,Travel & Subsistence,Strategy & Change,Staff Payment,900013768,4.83,
BEIS,The Insolvency Service,06/02/2020,Travel & Subsistence,Strategy & Change,Staff Payment,900013768,30.00,
BEIS,The Insolvency Service,06/02/2020,Travel & Subsistence,Strategy & Change,Staff Payment,900013768,10.00,
BEIS,The Insolvency Service,06/02/2020,Travel & Subsistence,Strategy & Change,Staff Payment,900013768,12.00,
BEIS,The Insolvency Service,06/02/2020,Travel & Subsistence,Strategy & Change,Staff Payment,900013768,12.00,
BEIS,The Insolvency Service,06/02/2020,Travel & Subsistence,Strategy & Change,Staff Payment,900013768,36.00,
BEIS,The Insolvency Service,06/02/2020,Travel & Subsistence,Strategy & Change,Staff Payment,900013768,7.20,
BEIS,The Insolvency Service,06/02/2020,Travel & Subsistence,Strategy & Change,Staff Payment,900013768,7.20,
BEIS,The Insolvency Service,06/02/2020,Travel & Subsistence,Strategy & Change,Staff Payment,900013768,7.20,
BEIS,The Insolvency Service,06/02/2020,Travel & Subsistence,Strategy & Change,Staff Payment,900013768,7.20,
BEIS,The Insolvency Service,06/02/2020,Travel & Subsistence,Investigations & Enforcement Services,Staff Payment,900014259,12.24,
BEIS,The Insolvency Service,06/02/2020,Travel & Subsistence,Official Receiver Services,Staff Payment,900014264,15.00,
BEIS,The Insolvency Service,06/02/2020,Travel & Subsistence,Official Receiver Services,Staff Payment,900014264,15.00,
BEIS,The Insolvency Service,06/02/2020,Travel & Subsistence,Investigations & Enforcement Services,Staff Payment,900014218,15.00,
BEIS,The Insolvency Service,06/02/2020,Travel & Subsistence,Investigations & Enforcement Services,Staff Payment,900014218,5.00,
BEIS,The Insolvency Service,06/02/2020,Travel & Subsistence,Investigations & Enforcement Services,Staff Payment,900014218,5.00,
BEIS,The Insolvency Service,06/02/2020,Travel & Subsistence,Investigations & Enforcement Services,Staff Payment,900014218,27.90,
BEIS,The Insolvency Service,06/02/2020,Travel & Subsistence,Investigations & Enforcement Services,Staff Payment,900014218,18.00,
BEIS,The Insolvency Service,06/02/2020,Travel & Subsistence,Investigations & Enforcement Services,Staff Payment,900014218,51.30,
BEIS,The Insolvency Service,06/02/2020,Travel & Subsistence,Investigations & Enforcement Services,Staff Payment,900014218,51.30,
BEIS,The Insolvency Service,06/02/2020,Travel & Subsistence,Investigations & Enforcement Services,Staff Payment,900014190,10.00,
BEIS,The Insolvency Service,06/02/2020,Travel & Subsistence,Investigations & Enforcement Services,Staff Payment,900014190,7.50,
BEIS,The Insolvency Service,06/02/2020,Travel & Subsistence,Investigations & Enforcement Services,Staff Payment,900014190,10.00,
BEIS,The Insolvency Service,06/02/2020,Travel & Subsistence,Investigations & Enforcement Services,Staff Payment,900014190,36.00,
BEIS,The Insolvency Service,06/02/2020,Travel & Subsistence,Investigations & Enforcement Services,Staff Payment,900014190,137.00,
BEIS,The Insolvency Service,06/02/2020,Travel & Subsistence,Investigations & Enforcement Services,Staff Payment,900014190,36.00,
BEIS,The Insolvency Service,06/02/2020,Travel & Subsistence,Investigations & Enforcement Services,Staff Payment,900014190,19.35,
BEIS,The Insolvency Service,06/02/2020,Travel & Subsistence,Investigations & Enforcement Services,Staff Payment,900014190,5.00,
BEIS,The Insolvency Service,06/02/2020,Travel & Subsistence,Official Receiver Services,Staff Payment,900014235,5.00,
BEIS,The Insolvency Service,06/02/2020,Travel & Subsistence,Chief Executive Office,Staff Payment,900014088,4.00,
BEIS,The Insolvency Service,06/02/2020,Travel & Subsistence,Chief Executive Office,Staff Payment,900014236,4.98,
BEIS,The Insolvency Service,06/02/2020,Travel & Subsistence,Chief Executive Office,Staff Payment,900014197,5.00,
BEIS,The Insolvency Service,06/02/2020,Travel & Subsistence,Chief Executive Office,Staff Payment,900014197,4.50,
BEIS,The Insolvency Service,06/02/2020,Travel & Subsistence,Chief Executive Office,Staff Payment,900014198,5.00,
BEIS,The Insolvency Service,06/02/2020,Travel & Subsistence,Chief Executive Office,Staff Payment,900014198,5.00,
BEIS,The Insolvency Service,06/02/2020,Travel & Subsistence,Chief Executive Office,Staff Payment,900014198,15.00,
BEIS,The Insolvency Service,06/02/2020,Travel & Subsistence,Chief Executive Office,Staff Payment,900014198,5.00,
BEIS,The Insolvency Service,06/02/2020,Travel & Subsistence,People & Capability,Staff Payment,900014209,16.20,
BEIS,The Insolvency Service,06/02/2020,Travel & Subsistence,People & Capability,Staff Payment,900014209,4.99,
BEIS,The Insolvency Service,06/02/2020,Travel & Subsistence,People & Capability,Staff Payment,900014213,5.13,
BEIS,The Insolvency Service,06/02/2020,Travel & Subsistence,People & Capability,Staff Payment,900014213,15.00,
BEIS,The Insolvency Service,06/02/2020,Travel & Subsistence,People & Capability,Staff Payment,900014213,5.00,
BEIS,The Insolvency Service,06/02/2020,Travel & Subsistence,People & Capability,Staff Payment,900014213,5.00,
BEIS,The Insolvency Service,06/02/2020,Travel & Subsistence,Finance & Commercial,Staff Payment,900014066,7.10,
BEIS,The Insolvency Service,06/02/2020,Travel & Subsistence,Finance & Commercial,Staff Payment,900014066,6.40,
BEIS,The Insolvency Service,06/02/2020,Travel & Subsistence,Finance & Commercial,Staff Payment,900014066,8.00,
BEIS,The Insolvency Service,06/02/2020,Travel & Subsistence,Finance & Commercial,Staff Payment,900014066,45.00,
BEIS,The Insolvency Service,06/02/2020,Travel & Subsistence,Finance & Commercial,Staff Payment,900014066,6.30,
BEIS,The Insolvency Service,06/02/2020,Travel & Subsistence,Finance & Commercial,Staff Payment,900014066,8.10,
BEIS,The Insolvency Service,06/02/2020,Travel & Subsistence,Finance & Commercial,Staff Payment,900014066,6.30,
BEIS,The Insolvency Service,06/02/2020,Travel & Subsistence,Finance & Commercial,Staff Payment,900014066,7.60,
BEIS,The Insolvency Service,06/02/2020,Travel & Subsistence,Finance & Commercial,Staff Payment,900014066,7.00,
BEIS,The Insolvency Service,06/02/2020,Travel & Subsistence,Finance & Commercial,Staff Payment,900014066,5.00,
BEIS,The Insolvency Service,06/02/2020,Travel & Subsistence,Finance & Commercial,Staff Payment,900014066,11.50,
BEIS,The Insolvency Service,06/02/2020,Travel & Subsistence,Finance & Commercial,Staff Payment,900014066,20.00,
BEIS,The Insolvency Service,06/02/2020,Travel & Subsistence,Finance & Commercial,Staff Payment,900014066,5.00,
BEIS,The Insolvency Service,06/02/2020,Travel & Subsistence,Finance & Commercial,Staff Payment,900014066,23.50,
BEIS,The Insolvency Service,06/02/2020,Travel & Subsistence,Finance & Commercial,Staff Payment,900014066,5.00,
BEIS,The Insolvency Service,06/02/2020,Travel & Subsistence,Finance & Commercial,Staff Payment,900014066,8.90,
BEIS,The Insolvency Service,06/02/2020,Travel & Subsistence,Finance & Commercial,Staff Payment,900014066,15.00,
BEIS,The Insolvency Service,06/02/2020,Travel & Subsistence,Business Service Division,Staff Payment,900014025,6.57,
BEIS,The Insolvency Service,06/02/2020,Travel & Subsistence,Business Service Division,Staff Payment,900014025,5.00,
BEIS,The Insolvency Service,06/02/2020,Travel & Subsistence,Business Service Division,Staff Payment,900014025,4.99,
BEIS,The Insolvency Service,06/02/2020,Travel & Subsistence,Business Service Division,Staff Payment,900014025,3.95,
BEIS,The Insolvency Service,06/02/2020,Travel & Subsistence,Business Service Division,Staff Payment,900014025,2.00,
BEIS,The Insolvency Service,06/02/2020,Travel & Subsistence,Chief Executive Office,Staff Payment,900014221,10.00,
BEIS,The Insolvency Service,06/02/2020,Travel & Subsistence,Chief Executive Office,Staff Payment,900014221,54.00,
BEIS,The Insolvency Service,06/02/2020,Travel & Subsistence,Chief Executive Office,Staff Payment,900014221,10.00,
BEIS,The Insolvency Service,06/02/2020,Travel & Subsistence,Finance & Commercial,Staff Payment,900014134,5.00,
BEIS,The Insolvency Service,06/02/2020,Travel & Subsistence,Finance & Commercial,Staff Payment,900014134,5.00,
BEIS,The Insolvency Service,06/02/2020,Travel & Subsistence,Finance & Commercial,Staff Payment,900014134,5.00,
BEIS,The Insolvency Service,06/02/2020,Travel & Subsistence,Finance & Commercial,Staff Payment,900014134,15.00,
BEIS,The Insolvency Service,06/02/2020,Travel & Subsistence,Finance & Commercial,Staff Payment,900014135,5.00,
BEIS,The Insolvency Service,06/02/2020,Travel & Subsistence,Finance & Commercial,Staff Payment,900014136,5.00,
BEIS,The Insolvency Service,06/02/2020,Travel & Subsistence,Finance & Commercial,Staff Payment,900014136,5.00,
BEIS,The Insolvency Service,06/02/2020,Travel & Subsistence,Finance & Commercial,Staff Payment,900014138,4.29,
BEIS,The Insolvency Service,06/02/2020,Travel & Subsistence,Finance & Commercial,Staff Payment,900014138,5.00,
BEIS,The Insolvency Service,06/02/2020,Travel & Subsistence,Finance & Commercial,Staff Payment,900014138,15.00,
BEIS,The Insolvency Service,06/02/2020,Travel & Subsistence,Finance & Commercial,Staff Payment,900014138,5.00,
BEIS,The Insolvency Service,06/02/2020,Travel & Subsistence,Finance & Commercial,Staff Payment,900014138,5.00,
BEIS,The Insolvency Service,06/02/2020,Travel & Subsistence,Finance & Commercial,Staff Payment,900014139,15.00,
BEIS,The Insolvency Service,06/02/2020,Travel & Subsistence,Finance & Commercial,Staff Payment,900014139,5.00,
BEIS,The Insolvency Service,06/02/2020,Travel & Subsistence,Finance & Commercial,Staff Payment,900014139,3.30,
BEIS,The Insolvency Service,06/02/2020,Travel & Subsistence,Finance & Commercial,Staff Payment,900014140,5.00,
BEIS,The Insolvency Service,06/02/2020,Travel & Subsistence,Investigations & Enforcement Services,Staff Payment,900014220,12.00,
BEIS,The Insolvency Service,06/02/2020,Travel & Subsistence,Investigations & Enforcement Services,Staff Payment,900014220,4.90,
BEIS,The Insolvency Service,06/02/2020,Travel & Subsistence,Investigations & Enforcement Services,Staff Payment,900014220,13.10,
BEIS,The Insolvency Service,06/02/2020,Travel & Subsistence,Investigations & Enforcement Services,Staff Payment,900014220,5.00,
BEIS,The Insolvency Service,06/02/2020,Travel & Subsistence,Finance & Commercial,Staff Payment,900014215,6.75,
BEIS,The Insolvency Service,06/02/2020,Travel & Subsistence,Finance & Commercial,Staff Payment,900014215,7.99,
BEIS,The Insolvency Service,06/02/2020,Travel & Subsistence,Finance & Commercial,Staff Payment,900014215,7.52,
BEIS,The Insolvency Service,06/02/2020,Travel & Subsistence,Finance & Commercial,Staff Payment,900014216,20.00,
BEIS,The Insolvency Service,06/02/2020,Travel & Subsistence,Finance & Commercial,Staff Payment,900014216,4.28,
BEIS,The Insolvency Service,06/02/2020,Travel & Subsistence,Finance & Commercial,Staff Payment,900014216,5.00,
BEIS,The Insolvency Service,06/02/2020,Travel & Subsistence,Finance & Commercial,Staff Payment,900014216,15.00,
BEIS,The Insolvency Service,06/02/2020,Travel & Subsistence,Finance & Commercial,Staff Payment,900014216,5.00,
BEIS,The Insolvency Service,06/02/2020,Travel & Subsistence,Finance & Commercial,Staff Payment,900014216,1.50,
BEIS,The Insolvency Service,06/02/2020,Travel & Subsistence,Finance & Commercial,Staff Payment,900014216,1.50,
BEIS,The Insolvency Service,06/02/2020,Travel & Subsistence,Strategy & Change,Staff Payment,900014072,9.20,
BEIS,The Insolvency Service,06/02/2020,Travel & Subsistence,Strategy & Change,Staff Payment,900014072,14.70,
BEIS,The Insolvency Service,06/02/2020,Other Costs,Official Receiver Services,The Surveillance Group Ltd,300017802,3285.66,918530324
BEIS,The Insolvency Service,06/02/2020,Investigation & Enforcement,Investigations & Enforcement Services,Tlt Llp,300017821,1290.30,3574583240
BEIS,The Insolvency Service,06/02/2020,Training,People & Capability,Tms Development International Ltd,300017878,1027.20,551650063
BEIS,The Insolvency Service,06/02/2020,Training,People & Capability,Tms Development International Ltd,300017882,310.80,551650063
BEIS,The Insolvency Service,06/02/2020,Civil Litigation Disqualifications,Legal Services Division,Trinity Barristers,300017843,810.00,744811039
BEIS,The Insolvency Service,06/02/2020,ICT,Information & Technology,Trustmarque Solutions Ltd,300017762,492.35,727348615
BEIS,The Insolvency Service,06/02/2020,Off-Site Storage,Official Receiver Services,Ukcloud Ltd,300017799,7920.00,172647982
BEIS,The Insolvency Service,06/02/2020,Off-Site Storage,Official Receiver Services,Ukcloud Ltd,300017800,16815.50,172647982
BEIS,The Insolvency Service,07/02/2020,Staff Costs - Non-Perms,Finance & Commercial,Allen Lane Limited,300017846,12000.00,835970985
BEIS,The Insolvency Service,07/02/2020,ICT,Information & Technology,Atos It Services Uk Ltd,300017919,171305.32,232327983
BEIS,The Insolvency Service,07/02/2020,Estates - Property,Finance & Commercial,Exeter City Council,300017905,42366.24,
BEIS,The Insolvency Service,07/02/2020,ICT,Chief Executive Office,Granicus,300017863,674.73,943669974
BEIS,The Insolvency Service,07/02/2020,Legal - Live Investigations,Investigations & Enforcement Services,National Crime Agency,300017927,279.00,888849824
BEIS,The Insolvency Service,07/02/2020,Staff Costs - Non-Perms,Strategy & Change,Netcompany UK Ltd,300017811,69456.00,171809009
BEIS,The Insolvency Service,07/02/2020,Estates - Property,Business Service Division,Restore Datashred,300017849,65.92,240193143
BEIS,The Insolvency Service,07/02/2020,Estates - Property,Business Service Division,Restore Datashred,300017850,65.92,240193143
BEIS,The Insolvency Service,07/02/2020,Estates - Property,Business Service Division,Restore Datashred,300017851,127.67,240193143
BEIS,The Insolvency Service,07/02/2020,Estates - Property,Business Service Division,Restore Datashred,300017852,417.34,240193143
BEIS,The Insolvency Service,07/02/2020,Estates - Property,Business Service Division,Restore Datashred,300017853,39.09,240193143
BEIS,The Insolvency Service,07/02/2020,Estates - Property,Business Service Division,Restore Datashred,300017854,74.12,240193143
BEIS,The Insolvency Service,07/02/2020,Estates - Property,Business Service Division,Restore Datashred,300017855,65.92,240193143
BEIS,The Insolvency Service,07/02/2020,Estates - Property,Business Service Division,Restore Datashred,300017856,155.02,240193143
BEIS,The Insolvency Service,07/02/2020,Estates - Property,Business Service Division,Restore Datashred,300017857,32.96,240193143
BEIS,The Insolvency Service,07/02/2020,Estates - Property,Business Service Division,Restore Datashred,300017858,33.48,240193143
BEIS,The Insolvency Service,07/02/2020,Estates - Property,Business Service Division,Restore Datashred,300017859,126.85,240193143
BEIS,The Insolvency Service,07/02/2020,Estates - Property,Business Service Division,Restore Datashred,300017860,164.80,240193143
BEIS,The Insolvency Service,07/02/2020,Estates - Property,Business Service Division,Restore Datashred,300017861,117.08,240193143
BEIS,The Insolvency Service,07/02/2020,Estates - Property,Business Service Division,Restore Datashred,300017862,76.32,240193143
BEIS,The Insolvency Service,07/02/2020,"Printing, Stationary & Postage",Business Service Division,Royal Mail,300017864,253.83,243170002
BEIS,The Insolvency Service,07/02/2020,"Printing, Stationary & Postage",Business Service Division,Royal Mail,300017864,380.74,243170002
BEIS,The Insolvency Service,07/02/2020,Civil Litigation Disqualifications,Legal Services Division,Shepherd & Wedderburn,300017883,84.50,125425142
BEIS,The Insolvency Service,07/02/2020,Civil Litigation Disqualifications,Legal Services Division,Shepherd & Wedderburn,300017883,50.00,125425142
BEIS,The Insolvency Service,07/02/2020,Legal - Outsourced Investigation,Investigations & Enforcement Services,Shepherd & Wedderburn,300017908,452.54,125425142
BEIS,The Insolvency Service,07/02/2020,Travel & Subsistence,Official Receiver Services,Staff Payment,900014277,5.00,
BEIS,The Insolvency Service,07/02/2020,Travel & Subsistence,Official Receiver Services,Staff Payment,900014277,4.75,
BEIS,The Insolvency Service,07/02/2020,Travel & Subsistence,Official Receiver Services,Staff Payment,900014277,1.40,
BEIS,The Insolvency Service,07/02/2020,Travel & Subsistence,Official Receiver Services,Staff Payment,900014288,15.00,
BEIS,The Insolvency Service,07/02/2020,Travel & Subsistence,Official Receiver Services,Staff Payment,900014288,10.00,
BEIS,The Insolvency Service,07/02/2020,Travel & Subsistence,People & Capability,Staff Payment,900014291,16.40,
BEIS,The Insolvency Service,07/02/2020,Travel & Subsistence,Official Receiver Services,Staff Payment,900014229,37.50,
BEIS,The Insolvency Service,07/02/2020,Travel & Subsistence,Investigations & Enforcement Services,Staff Payment,900014252,7.00,
BEIS,The Insolvency Service,07/02/2020,Travel & Subsistence,People & Capability,Staff Payment,900014217,5.00,
BEIS,The Insolvency Service,07/02/2020,Travel & Subsistence,People & Capability,Staff Payment,900014217,4.30,
BEIS,The Insolvency Service,07/02/2020,Travel & Subsistence,People & Capability,Staff Payment,900014308,10.00,
BEIS,The Insolvency Service,07/02/2020,Travel & Subsistence,People & Capability,Staff Payment,900014308,5.30,
BEIS,The Insolvency Service,07/02/2020,Travel & Subsistence,People & Capability,Staff Payment,900014308,12.95,
BEIS,The Insolvency Service,07/02/2020,Travel & Subsistence,People & Capability,Staff Payment,900014308,3.20,
BEIS,The Insolvency Service,07/02/2020,Travel & Subsistence,People & Capability,Staff Payment,900014281,15.00,
BEIS,The Insolvency Service,07/02/2020,Travel & Subsistence,People & Capability,Staff Payment,900014281,5.00,
BEIS,The Insolvency Service,07/02/2020,Travel & Subsistence,People & Capability,Staff Payment,900014281,5.00,
BEIS,The Insolvency Service,07/02/2020,Travel & Subsistence,People & Capability,Staff Payment,900014282,14.50,
BEIS,The Insolvency Service,07/02/2020,Travel & Subsistence,People & Capability,Staff Payment,900014116,4.00,
BEIS,The Insolvency Service,07/02/2020,Travel & Subsistence,People & Capability,Staff Payment,900014116,5.60,
BEIS,The Insolvency Service,07/02/2020,Travel & Subsistence,People & Capability,Staff Payment,900014116,5.00,
BEIS,The Insolvency Service,07/02/2020,Travel & Subsistence,People & Capability,Staff Payment,900014116,4.50,
BEIS,The Insolvency Service,07/02/2020,Travel & Subsistence,People & Capability,Staff Payment,900014253,15.00,
BEIS,The Insolvency Service,07/02/2020,Travel & Subsistence,People & Capability,Staff Payment,900014253,20.00,
BEIS,The Insolvency Service,07/02/2020,Travel & Subsistence,People & Capability,Staff Payment,900014253,0.50,
BEIS,The Insolvency Service,07/02/2020,Travel & Subsistence,People & Capability,Staff Payment,900014253,2.30,
BEIS,The Insolvency Service,07/02/2020,Travel & Subsistence,People & Capability,Staff Payment,900014253,6.99,
BEIS,The Insolvency Service,07/02/2020,Travel & Subsistence,People & Capability,Staff Payment,900014253,2.50,
BEIS,The Insolvency Service,07/02/2020,Travel & Subsistence,People & Capability,Staff Payment,900014253,4.50,
BEIS,The Insolvency Service,07/02/2020,Travel & Subsistence,People & Capability,Staff Payment,900014253,12.00,
BEIS,The Insolvency Service,07/02/2020,Travel & Subsistence,Official Receiver Services,Staff Payment,900014261,41.50,
BEIS,The Insolvency Service,07/02/2020,Travel & Subsistence,Official Receiver Services,Staff Payment,900014262,23.50,
BEIS,The Insolvency Service,07/02/2020,Travel & Subsistence,Official Receiver Services,Staff Payment,900014260,22.80,
BEIS,The Insolvency Service,07/02/2020,Travel & Subsistence,Official Receiver Services,Staff Payment,900014260,5.00,
BEIS,The Insolvency Service,07/02/2020,Travel & Subsistence,Investigations & Enforcement Services,Staff Payment,900014251,46.00,
BEIS,The Insolvency Service,07/02/2020,Travel & Subsistence,Official Receiver Services,Staff Payment,900014275,85.50,
BEIS,The Insolvency Service,07/02/2020,Travel & Subsistence,Official Receiver Services,Staff Payment,900014275,5.20,
BEIS,The Insolvency Service,07/02/2020,Travel & Subsistence,Official Receiver Services,Staff Payment,900014055,12.50,
BEIS,The Insolvency Service,07/02/2020,Travel & Subsistence,Official Receiver Services,Staff Payment,900014055,5.00,
BEIS,The Insolvency Service,07/02/2020,Travel & Subsistence,People & Capability,Staff Payment,900014278,23.65,
BEIS,The Insolvency Service,07/02/2020,Travel & Subsistence,People & Capability,Staff Payment,900014278,5.00,
BEIS,The Insolvency Service,07/02/2020,Travel & Subsistence,People & Capability,Staff Payment,900014278,10.00,
BEIS,The Insolvency Service,07/02/2020,Travel & Subsistence,People & Capability,Staff Payment,900014278,10.20,
BEIS,The Insolvency Service,07/02/2020,Travel & Subsistence,Official Receiver Services,Staff Payment,900014289,6.00,
BEIS,The Insolvency Service,07/02/2020,Travel & Subsistence,Official Receiver Services,Staff Payment,900014290,5.40,
BEIS,The Insolvency Service,07/02/2020,Travel & Subsistence,Official Receiver Services,Staff Payment,900014279,3.39,
BEIS,The Insolvency Service,07/02/2020,Travel & Subsistence,Official Receiver Services,Staff Payment,900014292,3.60,
BEIS,The Insolvency Service,07/02/2020,Travel & Subsistence,People & Capability,Staff Payment,900014222,10.00,
BEIS,The Insolvency Service,07/02/2020,Travel & Subsistence,People & Capability,Staff Payment,900014222,10.00,
BEIS,The Insolvency Service,07/02/2020,Travel & Subsistence,People & Capability,Staff Payment,900014222,49.34,
BEIS,The Insolvency Service,07/02/2020,Travel & Subsistence,People & Capability,Staff Payment,900014223,15.00,
BEIS,The Insolvency Service,07/02/2020,Travel & Subsistence,People & Capability,Staff Payment,900014223,20.00,
BEIS,The Insolvency Service,07/02/2020,Travel & Subsistence,People & Capability,Staff Payment,900014223,29.85,
BEIS,The Insolvency Service,07/02/2020,Travel & Subsistence,People & Capability,Staff Payment,900014223,19.66,
BEIS,The Insolvency Service,07/02/2020,Travel & Subsistence,People & Capability,Staff Payment,900014224,8.48,
BEIS,The Insolvency Service,07/02/2020,Travel & Subsistence,People & Capability,Staff Payment,900014224,5.00,
BEIS,The Insolvency Service,07/02/2020,Travel & Subsistence,People & Capability,Staff Payment,900014224,15.00,
BEIS,The Insolvency Service,07/02/2020,Travel & Subsistence,People & Capability,Staff Payment,900014224,10.00,
BEIS,The Insolvency Service,07/02/2020,Travel & Subsistence,People & Capability,Staff Payment,900014225,15.00,
BEIS,The Insolvency Service,07/02/2020,Travel & Subsistence,People & Capability,Staff Payment,900014225,10.00,
BEIS,The Insolvency Service,07/02/2020,Travel & Subsistence,People & Capability,Staff Payment,900014225,5.00,
BEIS,The Insolvency Service,07/02/2020,Travel & Subsistence,People & Capability,Staff Payment,900014225,7.30,
BEIS,The Insolvency Service,07/02/2020,Travel & Subsistence,People & Capability,Staff Payment,900014225,4.10,
BEIS,The Insolvency Service,07/02/2020,Travel & Subsistence,People & Capability,Staff Payment,900014096,5.00,
BEIS,The Insolvency Service,07/02/2020,Travel & Subsistence,People & Capability,Staff Payment,900014096,15.00,
BEIS,The Insolvency Service,07/02/2020,Travel & Subsistence,Finance & Commercial,Staff Payment,900014248,95.00,
BEIS,The Insolvency Service,07/02/2020,Travel & Subsistence,Official Receiver Services,Staff Payment,900014307,14.00,
BEIS,The Insolvency Service,07/02/2020,Travel & Subsistence,Official Receiver Services,Staff Payment,900014307,5.00,
BEIS,The Insolvency Service,07/02/2020,Travel & Subsistence,Investigations & Enforcement Services,Staff Payment,900014250,18.00,
BEIS,The Insolvency Service,07/02/2020,Travel & Subsistence,Investigations & Enforcement Services,Staff Payment,900014250,5.00,
BEIS,The Insolvency Service,07/02/2020,Travel & Subsistence,Official Receiver Services,Staff Payment,900014245,5.00,
BEIS,The Insolvency Service,07/02/2020,Travel & Subsistence,People & Capability,Staff Payment,900014256,14.13,
BEIS,The Insolvency Service,07/02/2020,Travel & Subsistence,People & Capability,Staff Payment,900014256,5.00,
BEIS,The Insolvency Service,07/02/2020,Travel & Subsistence,People & Capability,Staff Payment,900014256,15.00,
BEIS,The Insolvency Service,07/02/2020,Travel & Subsistence,People & Capability,Staff Payment,900014256,10.00,
BEIS,The Insolvency Service,07/02/2020,Travel & Subsistence,Business Service Division,Staff Payment,900014191,12.90,
BEIS,The Insolvency Service,07/02/2020,Travel & Subsistence,People & Capability,Staff Payment,900014271,8.50,
BEIS,The Insolvency Service,07/02/2020,Travel & Subsistence,People & Capability,Staff Payment,900014271,15.00,
BEIS,The Insolvency Service,07/02/2020,Travel & Subsistence,People & Capability,Staff Payment,900014271,5.00,
BEIS,The Insolvency Service,07/02/2020,Travel & Subsistence,People & Capability,Staff Payment,900014271,19.50,
BEIS,The Insolvency Service,07/02/2020,Travel & Subsistence,People & Capability,Staff Payment,900014271,43.74,
BEIS,The Insolvency Service,07/02/2020,Travel & Subsistence,People & Capability,Staff Payment,900014271,2.90,
BEIS,The Insolvency Service,07/02/2020,Travel & Subsistence,People & Capability,Staff Payment,900014271,7.57,
BEIS,The Insolvency Service,07/02/2020,Travel & Subsistence,Official Receiver Services,Staff Payment,900014284,60.00,
BEIS,The Insolvency Service,07/02/2020,Travel & Subsistence,Official Receiver Services,Staff Payment,900014287,5.00,
BEIS,The Insolvency Service,07/02/2020,Travel & Subsistence,Official Receiver Services,Staff Payment,900014287,5.00,
BEIS,The Insolvency Service,07/02/2020,Travel & Subsistence,Official Receiver Services,Staff Payment,900014204,34.20,
BEIS,The Insolvency Service,07/02/2020,Travel & Subsistence,Official Receiver Services,Staff Payment,900014204,1.00,
BEIS,The Insolvency Service,07/02/2020,Travel & Subsistence,Official Receiver Services,Staff Payment,900014205,34.20,
BEIS,The Insolvency Service,07/02/2020,Travel & Subsistence,Official Receiver Services,Staff Payment,900014205,1.00,
BEIS,The Insolvency Service,07/02/2020,Travel & Subsistence,Official Receiver Services,Staff Payment,900014206,34.20,
BEIS,The Insolvency Service,07/02/2020,Travel & Subsistence,Official Receiver Services,Staff Payment,900014206,1.00,
BEIS,The Insolvency Service,07/02/2020,Travel & Subsistence,Official Receiver Services,Staff Payment,900014208,99.00,
BEIS,The Insolvency Service,07/02/2020,Travel & Subsistence,Official Receiver Services,Staff Payment,900014208,1.00,
BEIS,The Insolvency Service,07/02/2020,Travel & Subsistence,Official Receiver Services,Staff Payment,900014208,5.00,
BEIS,The Insolvency Service,07/02/2020,Travel & Subsistence,Official Receiver Services,Staff Payment,900014210,5.00,
BEIS,The Insolvency Service,07/02/2020,Travel & Subsistence,Official Receiver Services,Staff Payment,900014211,4.80,
BEIS,The Insolvency Service,07/02/2020,Travel & Subsistence,Official Receiver Services,Staff Payment,900014212,17.10,
BEIS,The Insolvency Service,07/02/2020,Travel & Subsistence,Official Receiver Services,Staff Payment,900014212,2.00,
BEIS,The Insolvency Service,07/02/2020,Travel & Subsistence,Investigations & Enforcement Services,Staff Payment,900014058,6.75,
BEIS,The Insolvency Service,07/02/2020,Travel & Subsistence,Investigations & Enforcement Services,Staff Payment,900014058,24.00,
BEIS,The Insolvency Service,07/02/2020,Travel & Subsistence,Investigations & Enforcement Services,Staff Payment,900014058,2.75,
BEIS,The Insolvency Service,07/02/2020,Travel & Subsistence,Investigations & Enforcement Services,Staff Payment,900014058,21.72,
BEIS,The Insolvency Service,07/02/2020,Travel & Subsistence,Investigations & Enforcement Services,Staff Payment,900014058,5.00,
BEIS,The Insolvency Service,07/02/2020,Travel & Subsistence,Investigations & Enforcement Services,Staff Payment,900014058,5.00,
BEIS,The Insolvency Service,07/02/2020,Travel & Subsistence,Investigations & Enforcement Services,Staff Payment,900014297,1.80,
BEIS,The Insolvency Service,07/02/2020,Travel & Subsistence,Investigations & Enforcement Services,Staff Payment,900014297,15.00,
BEIS,The Insolvency Service,07/02/2020,Travel & Subsistence,Investigations & Enforcement Services,Staff Payment,900014297,5.00,
BEIS,The Insolvency Service,07/02/2020,Travel & Subsistence,Investigations & Enforcement Services,Staff Payment,900014297,5.00,
BEIS,The Insolvency Service,07/02/2020,Travel & Subsistence,Investigations & Enforcement Services,Staff Payment,900014297,4.25,
BEIS,The Insolvency Service,07/02/2020,Travel & Subsistence,Investigations & Enforcement Services,Staff Payment,900014156,13.50,
BEIS,The Insolvency Service,07/02/2020,Travel & Subsistence,Investigations & Enforcement Services,Staff Payment,900014156,12.50,
BEIS,The Insolvency Service,07/02/2020,Travel & Subsistence,Investigations & Enforcement Services,Staff Payment,900014156,63.90,
BEIS,The Insolvency Service,07/02/2020,Travel & Subsistence,Investigations & Enforcement Services,Staff Payment,900014156,19.80,
BEIS,The Insolvency Service,07/02/2020,Travel & Subsistence,Investigations & Enforcement Services,Staff Payment,900014156,81.00,
BEIS,The Insolvency Service,07/02/2020,Travel & Subsistence,Investigations & Enforcement Services,Staff Payment,900014156,10.00,
BEIS,The Insolvency Service,07/02/2020,Travel & Subsistence,Investigations & Enforcement Services,Staff Payment,900014156,15.00,
BEIS,The Insolvency Service,07/02/2020,Travel & Subsistence,People & Capability,Staff Payment,900014276,5.00,
BEIS,The Insolvency Service,07/02/2020,Travel & Subsistence,People & Capability,Staff Payment,900014276,15.00,
BEIS,The Insolvency Service,07/02/2020,Travel & Subsistence,People & Capability,Staff Payment,900014276,5.00,
BEIS,The Insolvency Service,07/02/2020,Travel & Subsistence,People & Capability,Staff Payment,900014276,4.25,
BEIS,The Insolvency Service,07/02/2020,Travel & Subsistence,People & Capability,Staff Payment,900014276,2.90,
BEIS,The Insolvency Service,07/02/2020,Travel & Subsistence,Official Receiver Services,Staff Payment,900014254,9.60,
BEIS,The Insolvency Service,07/02/2020,Travel & Subsistence,Official Receiver Services,Staff Payment,900014254,10.00,
BEIS,The Insolvency Service,07/02/2020,Travel & Subsistence,Official Receiver Services,Staff Payment,900014254,9.05,
BEIS,The Insolvency Service,07/02/2020,Travel & Subsistence,Official Receiver Services,Staff Payment,900014254,5.00,
BEIS,The Insolvency Service,07/02/2020,Travel & Subsistence,Chief Executive Office,Staff Payment,900014244,5.00,
BEIS,The Insolvency Service,07/02/2020,Travel & Subsistence,Business Service Division,Staff Payment,900014099,5.00,
BEIS,The Insolvency Service,07/02/2020,Travel & Subsistence,Business Service Division,Staff Payment,900014099,5.00,
BEIS,The Insolvency Service,07/02/2020,Travel & Subsistence,Business Service Division,Staff Payment,900014099,15.00,
BEIS,The Insolvency Service,07/02/2020,Travel & Subsistence,Business Service Division,Staff Payment,900014099,5.00,
BEIS,The Insolvency Service,07/02/2020,Travel & Subsistence,Business Service Division,Staff Payment,900014099,5.00,
BEIS,The Insolvency Service,07/02/2020,Travel & Subsistence,Business Service Division,Staff Payment,900014099,5.00,
BEIS,The Insolvency Service,07/02/2020,Travel & Subsistence,Business Service Division,Staff Payment,900014099,15.00,
BEIS,The Insolvency Service,07/02/2020,Travel & Subsistence,Business Service Division,Staff Payment,900014099,5.00,
BEIS,The Insolvency Service,07/02/2020,Travel & Subsistence,Business Service Division,Staff Payment,900014099,5.00,
BEIS,The Insolvency Service,07/02/2020,Travel & Subsistence,Business Service Division,Staff Payment,900014099,5.00,
BEIS,The Insolvency Service,07/02/2020,Travel & Subsistence,Business Service Division,Staff Payment,900014099,15.00,
BEIS,The Insolvency Service,07/02/2020,Travel & Subsistence,Business Service Division,Staff Payment,900014099,5.00,
BEIS,The Insolvency Service,07/02/2020,Travel & Subsistence,Business Service Division,Staff Payment,900014099,5.00,
BEIS,The Insolvency Service,07/02/2020,Travel & Subsistence,Business Service Division,Staff Payment,900014099,5.00,
BEIS,The Insolvency Service,07/02/2020,Travel & Subsistence,Business Service Division,Staff Payment,900014099,18.50,
BEIS,The Insolvency Service,07/02/2020,Travel & Subsistence,People & Capability,Staff Payment,900014024,11.70,
BEIS,The Insolvency Service,07/02/2020,Travel & Subsistence,People & Capability,Staff Payment,900014024,5.00,
BEIS,The Insolvency Service,07/02/2020,Travel & Subsistence,People & Capability,Staff Payment,900014024,3.30,
BEIS,The Insolvency Service,07/02/2020,Travel & Subsistence,Business Service Division,Staff Payment,900014258,26.80,
BEIS,The Insolvency Service,07/02/2020,Travel & Subsistence,Business Service Division,Staff Payment,900014258,20.00,
BEIS,The Insolvency Service,07/02/2020,Travel & Subsistence,Business Service Division,Staff Payment,900014258,19.30,
BEIS,The Insolvency Service,07/02/2020,Travel & Subsistence,Business Service Division,Staff Payment,900014258,1.70,
BEIS,The Insolvency Service,07/02/2020,Travel & Subsistence,Official Receiver Services,Staff Payment,900013326,5.00,
BEIS,The Insolvency Service,07/02/2020,Travel & Subsistence,Official Receiver Services,Staff Payment,900013326,5.00,
BEIS,The Insolvency Service,07/02/2020,Travel & Subsistence,Legal Services Division,Staff Payment,900014257,12.05,
BEIS,The Insolvency Service,07/02/2020,Legal - Live Investigations,Legal Services Division,SUNDRY SUPPLIER,300017890,2412.90,
BEIS,The Insolvency Service,07/02/2020,Compensation/Disbursements,Business Service Division,SUNDRY SUPPLIER,300017913,175.00,
BEIS,The Insolvency Service,07/02/2020,ICT,Business Service Division,Syntec Ltd,300017809,1578.23,264618586
BEIS,The Insolvency Service,07/02/2020,Civil Litigation Disqualifications,Legal Services Division,Tlt Llp,300017920,5265.70,3574583240
BEIS,The Insolvency Service,07/02/2020,Civil Litigation Disqualifications,Legal Services Division,Tlt Llp,300017920,100.00,3574583240
BEIS,The Insolvency Service,07/02/2020,Civil Litigation Disqualifications,Legal Services Division,Tlt Llp,300017921,76.80,3574583240
BEIS,The Insolvency Service,07/02/2020,Investigation & Enforcement,Investigations & Enforcement Services,Womble Bond Dickinson,300017923,5822.95,123392627
BEIS,The Insolvency Service,07/02/2020,Investigation & Enforcement,Investigations & Enforcement Services,Womble Bond Dickinson,300017923,106.04,123392627
BEIS,The Insolvency Service,07/02/2020,Legal - Outsourced Investigation,Investigations & Enforcement Services,Womble Bond Dickinson,300017924,1458.90,123392627
BEIS,The Insolvency Service,07/02/2020,Civil Litigation Disqualifications,Legal Services Division,Womble Bond Dickinson,300017925,5635.37,123392627
BEIS,The Insolvency Service,07/02/2020,Investigation & Enforcement,Official Receiver Services,Womble Bond Dickinson,300017933,3318.31,123392627
BEIS,The Insolvency Service,10/02/2020,ICT,Information & Technology,Bt Conferencing Services,300017918,2175.82,245719348000
BEIS,The Insolvency Service,10/02/2020,Civil Litigation Disqualifications,Legal Services Division,Burness Paull & Williamsons Solicitors,300017922,17348.86,216218532
BEIS,The Insolvency Service,10/02/2020,Civil Litigation Disqualifications,Legal Services Division,Burness Paull & Williamsons Solicitors,300017922,129.00,216218532
BEIS,The Insolvency Service,10/02/2020,Legal - Live Investigations,Investigations & Enforcement Services,Gowling Wragge Lawrence Graham  & Co,300017888,31244.35,858698838
BEIS,The Insolvency Service,10/02/2020,Legal - Live Investigations,Investigations & Enforcement Services,Gowling Wragge Lawrence Graham  & Co,300017888,10582.00,858698838
BEIS,The Insolvency Service,10/02/2020,Investigation & Enforcement,Investigations & Enforcement Services,Howes Percival,300017954,5464.49,119523573
BEIS,The Insolvency Service,10/02/2020,Investigation & Enforcement,Investigations & Enforcement Services,Howes Percival,300017954,304.00,119523573
BEIS,The Insolvency Service,10/02/2020,Legal - Outsourced Investigation,Investigations & Enforcement Services,Howes Percival,300017955,5988.20,119523573
BEIS,The Insolvency Service,10/02/2020,ICT,Information & Technology,Insight Direct (UK) Ltd,300017541,725.96,746075129
BEIS,The Insolvency Service,10/02/2020,Other Costs,Official Receiver Services,John Pye & Sons Limited,300017914,304.38,117777249
BEIS,The Insolvency Service,10/02/2020,Other Costs,Official Receiver Services,John Pye & Sons Limited,300017915,420.00,117777249
BEIS,The Insolvency Service,10/02/2020,Legal - Outsourced Investigation,Investigations & Enforcement Services,Shepherd & Wedderburn,300017902,3573.38,890559386
BEIS,The Insolvency Service,10/02/2020,Legal - Live Investigations,Investigations & Enforcement Services,Shepherd & Wedderburn,300017903,66.75,890559386
BEIS,The Insolvency Service,10/02/2020,Staff Costs - Non-Perms,Information & Technology,SmartSourcing,300017804,2250.00,788507869
BEIS,The Insolvency Service,10/02/2020,Staff Costs - Non-Perms,Information & Technology,SmartSourcing,300017805,3150.00,788507869
BEIS,The Insolvency Service,10/02/2020,Staff Costs - Non-Perms,Information & Technology,SmartSourcing,300017806,3000.00,788507869
BEIS,The Insolvency Service,10/02/2020,Staff Costs - Non-Perms,Information & Technology,SmartSourcing,300017838,2760.00,788507869
BEIS,The Insolvency Service,10/02/2020,Staff Costs - Non-Perms,Information & Technology,SmartSourcing,300017840,3750.00,788507869
BEIS,The Insolvency Service,10/02/2020,Staff Costs - Non-Perms,Information & Technology,SmartSourcing,300017841,2646.24,788507869
BEIS,The Insolvency Service,10/02/2020,Staff Costs - Non-Perms,Information & Technology,SmartSourcing,300017896,4650.00,788507869
BEIS,The Insolvency Service,10/02/2020,Staff Costs - Non-Perms,Information & Technology,SmartSourcing,300017897,4440.00,788507869
BEIS,The Insolvency Service,10/02/2020,Staff Costs - Non-Perms,Information & Technology,SmartSourcing,300017898,3600.00,788507869
BEIS,The Insolvency Service,10/02/2020,Staff Costs - Non-Perms,Information & Technology,SmartSourcing,300017899,3450.00,788507869
BEIS,The Insolvency Service,10/02/2020,Staff Costs - Non-Perms,Information & Technology,SmartSourcing,300017900,4200.00,788507869
BEIS,The Insolvency Service,10/02/2020,Staff Costs - Non-Perms,Information & Technology,SmartSourcing,300017901,3450.00,788507869
BEIS,The Insolvency Service,10/02/2020,Staff Costs - Non-Perms,Information & Technology,SmartSourcing,300017907,2295.00,788507869
BEIS,The Insolvency Service,10/02/2020,Staff Costs - Non-Perms,Information & Technology,SmartSourcing,300017926,3750.00,788507869
BEIS,The Insolvency Service,10/02/2020,Travel & Subsistence,Finance & Commercial,Staff Payment,900014296,5.00,
BEIS,The Insolvency Service,10/02/2020,Travel & Subsistence,Finance & Commercial,Staff Payment,900014296,5.00,
BEIS,The Insolvency Service,10/02/2020,Travel & Subsistence,Finance & Commercial,Staff Payment,900014296,5.00,
BEIS,The Insolvency Service,10/02/2020,Travel & Subsistence,Finance & Commercial,Staff Payment,900014296,15.00,
BEIS,The Insolvency Service,10/02/2020,Travel & Subsistence,Official Receiver Services,Staff Payment,900014340,15.00,
BEIS,The Insolvency Service,10/02/2020,Travel & Subsistence,Investigations & Enforcement Services,Staff Payment,900014293,6.50,
BEIS,The Insolvency Service,10/02/2020,Travel & Subsistence,Investigations & Enforcement Services,Staff Payment,900014293,17.55,
BEIS,The Insolvency Service,10/02/2020,Travel & Subsistence,Investigations & Enforcement Services,Staff Payment,900014294,6.50,
BEIS,The Insolvency Service,10/02/2020,Travel & Subsistence,Investigations & Enforcement Services,Staff Payment,900014294,17.55,
BEIS,The Insolvency Service,10/02/2020,Travel & Subsistence,Investigations & Enforcement Services,Staff Payment,900014050,16.00,
BEIS,The Insolvency Service,10/02/2020,Travel & Subsistence,Investigations & Enforcement Services,Staff Payment,900014050,16.00,
BEIS,The Insolvency Service,10/02/2020,Travel & Subsistence,Investigations & Enforcement Services,Staff Payment,900014050,5.00,
BEIS,The Insolvency Service,10/02/2020,Travel & Subsistence,Investigations & Enforcement Services,Staff Payment,900014050,1.00,
BEIS,The Insolvency Service,10/02/2020,Travel & Subsistence,Investigations & Enforcement Services,Staff Payment,900014050,37.50,
BEIS,The Insolvency Service,10/02/2020,Travel & Subsistence,Investigations & Enforcement Services,Staff Payment,900014050,18.90,
BEIS,The Insolvency Service,10/02/2020,Travel & Subsistence,Investigations & Enforcement Services,Staff Payment,900014050,21.60,
BEIS,The Insolvency Service,10/02/2020,Travel & Subsistence,Investigations & Enforcement Services,Staff Payment,900014050,10.50,
BEIS,The Insolvency Service,10/02/2020,Travel & Subsistence,Investigations & Enforcement Services,Staff Payment,900014050,9.50,
BEIS,The Insolvency Service,10/02/2020,Travel & Subsistence,Investigations & Enforcement Services,Staff Payment,900014050,3.50,
BEIS,The Insolvency Service,10/02/2020,Travel & Subsistence,Investigations & Enforcement Services,Staff Payment,900014050,13.00,
BEIS,The Insolvency Service,10/02/2020,Travel & Subsistence,Investigations & Enforcement Services,Staff Payment,900014050,21.60,
BEIS,The Insolvency Service,10/02/2020,Travel & Subsistence,Investigations & Enforcement Services,Staff Payment,900014050,2.00,
BEIS,The Insolvency Service,10/02/2020,Travel & Subsistence,Investigations & Enforcement Services,Staff Payment,900014050,18.90,
BEIS,The Insolvency Service,10/02/2020,Travel & Subsistence,Investigations & Enforcement Services,Staff Payment,900014050,32.00,
BEIS,The Insolvency Service,10/02/2020,Travel & Subsistence,Investigations & Enforcement Services,Staff Payment,900014050,5.00,
BEIS,The Insolvency Service,10/02/2020,Travel & Subsistence,Investigations & Enforcement Services,Staff Payment,900014050,5.00,
BEIS,The Insolvency Service,10/02/2020,Travel & Subsistence,Investigations & Enforcement Services,Staff Payment,900014050,3.60,
BEIS,The Insolvency Service,10/02/2020,Travel & Subsistence,Investigations & Enforcement Services,Staff Payment,900014050,5.00,
BEIS,The Insolvency Service,10/02/2020,Travel & Subsistence,Investigations & Enforcement Services,Staff Payment,900014050,3.30,
BEIS,The Insolvency Service,10/02/2020,Travel & Subsistence,Investigations & Enforcement Services,Staff Payment,900014285,10.00,
BEIS,The Insolvency Service,10/02/2020,Travel & Subsistence,Investigations & Enforcement Services,Staff Payment,900014285,5.00,
BEIS,The Insolvency Service,10/02/2020,Travel & Subsistence,Investigations & Enforcement Services,Staff Payment,900014285,5.00,
BEIS,The Insolvency Service,10/02/2020,Travel & Subsistence,Investigations & Enforcement Services,Staff Payment,900014285,4.50,
BEIS,The Insolvency Service,10/02/2020,Travel & Subsistence,Investigations & Enforcement Services,Staff Payment,900014285,14.24,
BEIS,The Insolvency Service,10/02/2020,Travel & Subsistence,People & Capability,Staff Payment,900014280,7.50,
BEIS,The Insolvency Service,10/02/2020,Travel & Subsistence,People & Capability,Staff Payment,900014280,8.55,
BEIS,The Insolvency Service,10/02/2020,Travel & Subsistence,People & Capability,Staff Payment,900014280,3.55,
BEIS,The Insolvency Service,10/02/2020,Travel & Subsistence,People & Capability,Staff Payment,900014280,5.00,
BEIS,The Insolvency Service,10/02/2020,Travel & Subsistence,Investigations & Enforcement Services,Staff Payment,900014051,21.60,
BEIS,The Insolvency Service,10/02/2020,Travel & Subsistence,Investigations & Enforcement Services,Staff Payment,900014051,18.90,
BEIS,The Insolvency Service,10/02/2020,Travel & Subsistence,Investigations & Enforcement Services,Staff Payment,900014331,5.00,
BEIS,The Insolvency Service,10/02/2020,Travel & Subsistence,Investigations & Enforcement Services,Staff Payment,900014331,4.78,
BEIS,The Insolvency Service,10/02/2020,Travel & Subsistence,Investigations & Enforcement Services,Staff Payment,900014337,4.00,
BEIS,The Insolvency Service,10/02/2020,Travel & Subsistence,Investigations & Enforcement Services,Staff Payment,900014337,33.21,
BEIS,The Insolvency Service,10/02/2020,Travel & Subsistence,Official Receiver Services,Staff Payment,900014301,5.00,
BEIS,The Insolvency Service,10/02/2020,Travel & Subsistence,Official Receiver Services,Staff Payment,900014301,41.40,
BEIS,The Insolvency Service,10/02/2020,Travel & Subsistence,Official Receiver Services,Staff Payment,900014301,2.50,
BEIS,The Insolvency Service,10/02/2020,Travel & Subsistence,Investigations & Enforcement Services,Staff Payment,900014309,4.85,
BEIS,The Insolvency Service,10/02/2020,Travel & Subsistence,Finance & Commercial,Staff Payment,900013878,15.00,
BEIS,The Insolvency Service,10/02/2020,Travel & Subsistence,Finance & Commercial,Staff Payment,900013878,5.00,
BEIS,The Insolvency Service,10/02/2020,Travel & Subsistence,Finance & Commercial,Staff Payment,900013880,10.00,
BEIS,The Insolvency Service,10/02/2020,Travel & Subsistence,Finance & Commercial,Staff Payment,900013880,5.00,
BEIS,The Insolvency Service,10/02/2020,Travel & Subsistence,Finance & Commercial,Staff Payment,900013880,4.50,
BEIS,The Insolvency Service,10/02/2020,Travel & Subsistence,Finance & Commercial,Staff Payment,900013880,8.00,
BEIS,The Insolvency Service,10/02/2020,Travel & Subsistence,Finance & Commercial,Staff Payment,900013880,4.50,
BEIS,The Insolvency Service,10/02/2020,Travel & Subsistence,Finance & Commercial,Staff Payment,900013880,8.00,
BEIS,The Insolvency Service,10/02/2020,Travel & Subsistence,Finance & Commercial,Staff Payment,900013918,2.40,
BEIS,The Insolvency Service,10/02/2020,Travel & Subsistence,Finance & Commercial,Staff Payment,900013918,5.00,
BEIS,The Insolvency Service,10/02/2020,Travel & Subsistence,Finance & Commercial,Staff Payment,900013918,6.80,
BEIS,The Insolvency Service,10/02/2020,Travel & Subsistence,Finance & Commercial,Staff Payment,900013918,14.99,
BEIS,The Insolvency Service,10/02/2020,Travel & Subsistence,Finance & Commercial,Staff Payment,900013918,5.00,
BEIS,The Insolvency Service,10/02/2020,Travel & Subsistence,Finance & Commercial,Staff Payment,900013919,8.00,
BEIS,The Insolvency Service,10/02/2020,Travel & Subsistence,Finance & Commercial,Staff Payment,900013919,5.00,
BEIS,The Insolvency Service,10/02/2020,Travel & Subsistence,Finance & Commercial,Staff Payment,900013920,11.20,
BEIS,The Insolvency Service,10/02/2020,Travel & Subsistence,Finance & Commercial,Staff Payment,900013920,2.40,
BEIS,The Insolvency Service,10/02/2020,Travel & Subsistence,Finance & Commercial,Staff Payment,900013920,5.00,
BEIS,The Insolvency Service,10/02/2020,Travel & Subsistence,Finance & Commercial,Staff Payment,900013920,15.00,
BEIS,The Insolvency Service,10/02/2020,Travel & Subsistence,Finance & Commercial,Staff Payment,900013920,5.00,
BEIS,The Insolvency Service,10/02/2020,Travel & Subsistence,Legal Services Division,Staff Payment,900014300,63.10,
BEIS,The Insolvency Service,10/02/2020,Travel & Subsistence,Legal Services Division,Staff Payment,900014105,7.00,
BEIS,The Insolvency Service,10/02/2020,Travel & Subsistence,Legal Services Division,Staff Payment,900014237,10.49,
BEIS,The Insolvency Service,10/02/2020,Travel & Subsistence,Legal Services Division,Staff Payment,900014238,13.97,
BEIS,The Insolvency Service,10/02/2020,Travel & Subsistence,Legal Services Division,Staff Payment,900014239,5.00,
BEIS,The Insolvency Service,10/02/2020,Travel & Subsistence,Legal Services Division,Staff Payment,900014239,13.97,
BEIS,The Insolvency Service,10/02/2020,Travel & Subsistence,Legal Services Division,Staff Payment,900014242,5.00,
BEIS,The Insolvency Service,10/02/2020,Legal - Live Investigations,Investigations & Enforcement Services,Tlt Llp,300017820,3481.30,3574583240
BEIS,The Insolvency Service,10/02/2020,Legal - Live Investigations,Investigations & Enforcement Services,Tlt Llp,300017820,410.00,3574583240
BEIS,The Insolvency Service,10/02/2020,ICT,Information & Technology,Trustmarque Solutions Ltd,300017761,2726.92,727348615
BEIS,The Insolvency Service,10/02/2020,ICT,Information & Technology,Ukcloud Ltd,300017801,9018.38,172647982
BEIS,The Insolvency Service,10/02/2020,HR,People & Capability,Uksbs Shared Services Centre Ltd,300018388,67119.91,888825550
BEIS,The Insolvency Service,10/02/2020,ICT,Information & Technology,Vodafone - Cable & Wireless Communications,300017904,1322.96,569953277
BEIS,The Insolvency Service,11/02/2020,"Legal, Translation & Consultancy",Business Service Division,Agilisys Ltd,300017906,25080.00,791711713
BEIS,The Insolvency Service,11/02/2020,"Legal, Translation & Consultancy",Business Service Division,Agilisys Ltd,300017909,12600.00,791711713
BEIS,The Insolvency Service,11/02/2020,Other Costs,Business Service Division,Companies House,300017865,4.00,GD255
BEIS,The Insolvency Service,11/02/2020,Other Costs,Official Receiver Services,Companies House,300017916,4.00,GD255
BEIS,The Insolvency Service,11/02/2020,Legal - Live Investigations,Legal Services Division,Exchange Chambers,300017984,301.20,
BEIS,The Insolvency Service,11/02/2020,Legal - Live Investigations,Legal Services Division,Exchange Chambers,300017985,360.00,
BEIS,The Insolvency Service,11/02/2020,"Printing, Stationary & Postage",Business Service Division,Hague Computer Supplies,300017810,1967.88,333613774
BEIS,The Insolvency Service,11/02/2020,Civil Litigation Disqualifications,Legal Services Division,Howes Percival,300017952,17046.50,119523573
BEIS,The Insolvency Service,11/02/2020,Civil Litigation Disqualifications,Legal Services Division,Howes Percival,300017952,1245.00,119523573
BEIS,The Insolvency Service,11/02/2020,Legal - Live Investigations,Investigations & Enforcement Services,Howes Percival,300017956,11432.79,119523573
BEIS,The Insolvency Service,11/02/2020,Legal - Live Investigations,Investigations & Enforcement Services,Howes Percival,300017956,5000.00,119523573
BEIS,The Insolvency Service,11/02/2020,Training,People & Capability,KPMG LLP,300017549,110.00,791788859
BEIS,The Insolvency Service,11/02/2020,Training,People & Capability,KPMG LLP,300017550,163.00,791788859
BEIS,The Insolvency Service,11/02/2020,Training,Investigations & Enforcement Services,National Crime Agency,300017928,142.00,888849824
BEIS,The Insolvency Service,11/02/2020,Legal - Live Investigations,Legal Services Division,Police And Crime Commissioner For Hampshire,300017983,180.00,
BEIS,The Insolvency Service,11/02/2020,Estates - Property,Finance & Commercial,Prydis Support Ltd,300017957,13959.12,974841283
BEIS,The Insolvency Service,11/02/2020,Staff Costs - Non-Perms,Strategy & Change,SmartSourcing,300017868,3750.00,788507869
BEIS,The Insolvency Service,11/02/2020,Staff Costs - Non-Perms,Strategy & Change,SmartSourcing,300017869,3600.00,788507869
BEIS,The Insolvency Service,11/02/2020,Staff Costs - Non-Perms,Strategy & Change,SmartSourcing,300017871,3570.00,788507869
BEIS,The Insolvency Service,11/02/2020,Staff Costs - Non-Perms,Strategy & Change,SmartSourcing,300017872,4500.00,788507869
BEIS,The Insolvency Service,11/02/2020,Staff Costs - Non-Perms,Strategy & Change,SmartSourcing,300017873,3132.00,788507869
BEIS,The Insolvency Service,11/02/2020,Staff Costs - Non-Perms,Strategy & Change,SmartSourcing,300017874,4500.00,788507869
BEIS,The Insolvency Service,11/02/2020,Staff Costs - Non-Perms,Strategy & Change,SmartSourcing,300017875,3480.00,788507869
BEIS,The Insolvency Service,11/02/2020,Staff Costs - Non-Perms,Strategy & Change,SmartSourcing,300017876,1056.00,788507869
BEIS,The Insolvency Service,11/02/2020,Staff Costs - Non-Perms,Strategy & Change,SmartSourcing,300017877,4020.00,788507869
BEIS,The Insolvency Service,11/02/2020,Staff Costs - Non-Perms,Strategy & Change,SmartSourcing,300017884,3300.00,788507869
BEIS,The Insolvency Service,11/02/2020,Travel & Subsistence,Official Receiver Services,Staff Payment,900014354,5.00,
BEIS,The Insolvency Service,11/02/2020,Travel & Subsistence,Official Receiver Services,Staff Payment,900014354,8.89,
BEIS,The Insolvency Service,11/02/2020,Travel & Subsistence,Official Receiver Services,Staff Payment,900014354,8.40,
BEIS,The Insolvency Service,11/02/2020,Travel & Subsistence,Investigations & Enforcement Services,Staff Payment,900014342,258.00,
BEIS,The Insolvency Service,11/02/2020,Travel & Subsistence,Investigations & Enforcement Services,Staff Payment,900014341,332.00,
BEIS,The Insolvency Service,11/02/2020,Travel & Subsistence,Investigations & Enforcement Services,Staff Payment,900014343,5.00,
BEIS,The Insolvency Service,11/02/2020,Travel & Subsistence,Investigations & Enforcement Services,Staff Payment,900014344,11.00,
BEIS,The Insolvency Service,11/02/2020,Travel & Subsistence,Investigations & Enforcement Services,Staff Payment,900014344,4.55,
BEIS,The Insolvency Service,11/02/2020,Travel & Subsistence,Investigations & Enforcement Services,Staff Payment,900014344,5.00,
BEIS,The Insolvency Service,11/02/2020,Travel & Subsistence,Investigations & Enforcement Services,Staff Payment,900014346,22.00,
BEIS,The Insolvency Service,11/02/2020,Travel & Subsistence,Investigations & Enforcement Services,Staff Payment,900014346,5.00,
BEIS,The Insolvency Service,11/02/2020,Travel & Subsistence,Investigations & Enforcement Services,Staff Payment,900014346,9.95,
BEIS,The Insolvency Service,11/02/2020,Travel & Subsistence,Investigations & Enforcement Services,Staff Payment,900014346,5.00,
BEIS,The Insolvency Service,11/02/2020,Travel & Subsistence,Official Receiver Services,Staff Payment,900014335,3.95,
BEIS,The Insolvency Service,11/02/2020,Travel & Subsistence,Official Receiver Services,Staff Payment,900014335,4.95,
BEIS,The Insolvency Service,11/02/2020,Travel & Subsistence,Investigations & Enforcement Services,Staff Payment,900013644,24.00,
BEIS,The Insolvency Service,11/02/2020,Travel & Subsistence,Investigations & Enforcement Services,Staff Payment,900013644,4.80,
BEIS,The Insolvency Service,11/02/2020,Travel & Subsistence,Investigations & Enforcement Services,Staff Payment,900014266,7.50,
BEIS,The Insolvency Service,11/02/2020,Travel & Subsistence,Investigations & Enforcement Services,Staff Payment,900014266,5.00,
BEIS,The Insolvency Service,11/02/2020,Travel & Subsistence,Investigations & Enforcement Services,Staff Payment,900014321,7.50,
BEIS,The Insolvency Service,11/02/2020,Travel & Subsistence,Investigations & Enforcement Services,Staff Payment,900014321,4.23,
BEIS,The Insolvency Service,11/02/2020,Travel & Subsistence,Official Receiver Services,Staff Payment,900014303,14.90,
BEIS,The Insolvency Service,11/02/2020,Travel & Subsistence,Official Receiver Services,Staff Payment,900014303,5.00,
BEIS,The Insolvency Service,11/02/2020,Travel & Subsistence,Official Receiver Services,Staff Payment,900014315,2.00,
BEIS,The Insolvency Service,11/02/2020,Travel & Subsistence,Official Receiver Services,Staff Payment,900014315,75.87,
BEIS,The Insolvency Service,11/02/2020,Travel & Subsistence,Official Receiver Services,Staff Payment,900014316,13.00,
BEIS,The Insolvency Service,11/02/2020,Travel & Subsistence,Official Receiver Services,Staff Payment,900014316,52.20,
BEIS,The Insolvency Service,11/02/2020,Travel & Subsistence,Official Receiver Services,Staff Payment,900014317,52.20,
BEIS,The Insolvency Service,11/02/2020,Travel & Subsistence,Investigations & Enforcement Services,Staff Payment,900014267,22.50,
BEIS,The Insolvency Service,11/02/2020,Travel & Subsistence,Investigations & Enforcement Services,Staff Payment,900014267,22.50,
BEIS,The Insolvency Service,11/02/2020,Travel & Subsistence,Investigations & Enforcement Services,Staff Payment,900014267,5.00,
BEIS,The Insolvency Service,11/02/2020,Travel & Subsistence,Investigations & Enforcement Services,Staff Payment,900014267,5.00,
BEIS,The Insolvency Service,11/02/2020,Travel & Subsistence,Investigations & Enforcement Services,Staff Payment,900014267,5.70,
BEIS,The Insolvency Service,11/02/2020,Travel & Subsistence,Investigations & Enforcement Services,Staff Payment,900014267,6.80,
BEIS,The Insolvency Service,11/02/2020,Travel & Subsistence,Investigations & Enforcement Services,Staff Payment,900014267,2.40,
BEIS,The Insolvency Service,11/02/2020,Travel & Subsistence,Investigations & Enforcement Services,Staff Payment,900014267,2.40,
BEIS,The Insolvency Service,11/02/2020,Travel & Subsistence,Official Receiver Services,Staff Payment,900014298,10.00,
BEIS,The Insolvency Service,11/02/2020,Travel & Subsistence,Official Receiver Services,Staff Payment,900014298,15.00,
BEIS,The Insolvency Service,11/02/2020,Travel & Subsistence,Official Receiver Services,Staff Payment,900014299,5.00,
BEIS,The Insolvency Service,11/02/2020,Travel & Subsistence,Investigations & Enforcement Services,Staff Payment,900014327,6.00,
BEIS,The Insolvency Service,11/02/2020,Travel & Subsistence,Investigations & Enforcement Services,Staff Payment,900014327,6.00,
BEIS,The Insolvency Service,11/02/2020,Travel & Subsistence,Investigations & Enforcement Services,Staff Payment,900014327,6.00,
BEIS,The Insolvency Service,11/02/2020,Travel & Subsistence,Investigations & Enforcement Services,Staff Payment,900014327,5.00,
BEIS,The Insolvency Service,11/02/2020,Travel & Subsistence,Investigations & Enforcement Services,Staff Payment,900014327,72.00,
BEIS,The Insolvency Service,11/02/2020,Travel & Subsistence,Investigations & Enforcement Services,Staff Payment,900014327,72.00,
BEIS,The Insolvency Service,11/02/2020,Travel & Subsistence,Investigations & Enforcement Services,Staff Payment,900014327,72.00,
BEIS,The Insolvency Service,11/02/2020,Travel & Subsistence,Investigations & Enforcement Services,Staff Payment,900014327,102.60,
BEIS,The Insolvency Service,11/02/2020,Travel & Subsistence,People & Capability,Staff Payment,900014328,125.10,
BEIS,The Insolvency Service,11/02/2020,Travel & Subsistence,Investigations & Enforcement Services,Staff Payment,900013852,5.70,
BEIS,The Insolvency Service,11/02/2020,Travel & Subsistence,Investigations & Enforcement Services,Staff Payment,900013852,2.70,
BEIS,The Insolvency Service,11/02/2020,Travel & Subsistence,Investigations & Enforcement Services,Staff Payment,900013852,8.69,
BEIS,The Insolvency Service,11/02/2020,Travel & Subsistence,Investigations & Enforcement Services,Staff Payment,900013852,10.00,
BEIS,The Insolvency Service,11/02/2020,Travel & Subsistence,Investigations & Enforcement Services,Staff Payment,900013852,5.00,
BEIS,The Insolvency Service,11/02/2020,Travel & Subsistence,Investigations & Enforcement Services,Staff Payment,900013852,9.90,
BEIS,The Insolvency Service,11/02/2020,Travel & Subsistence,Official Receiver Services,Staff Payment,900014313,52.20,
BEIS,The Insolvency Service,11/02/2020,Travel & Subsistence,Official Receiver Services,Staff Payment,900014313,3.60,
BEIS,The Insolvency Service,11/02/2020,Travel & Subsistence,Official Receiver Services,Staff Payment,900014313,5.00,
BEIS,The Insolvency Service,11/02/2020,Travel & Subsistence,Business Service Division,Staff Payment,900014377,69.75,
BEIS,The Insolvency Service,11/02/2020,Travel & Subsistence,Business Service Division,Staff Payment,900014377,4.00,
BEIS,The Insolvency Service,11/02/2020,Travel & Subsistence,Business Service Division,Staff Payment,900014377,5.00,
BEIS,The Insolvency Service,11/02/2020,Travel & Subsistence,Official Receiver Services,Staff Payment,900014240,4.00,
BEIS,The Insolvency Service,11/02/2020,Travel & Subsistence,Official Receiver Services,Staff Payment,900014240,120.06,
BEIS,The Insolvency Service,11/02/2020,Travel & Subsistence,Official Receiver Services,Staff Payment,900014240,23.58,
BEIS,The Insolvency Service,11/02/2020,Travel & Subsistence,Official Receiver Services,Staff Payment,900014182,4.50,
BEIS,The Insolvency Service,11/02/2020,Travel & Subsistence,Official Receiver Services,Staff Payment,900014188,5.00,
BEIS,The Insolvency Service,11/02/2020,Travel & Subsistence,Investigations & Enforcement Services,Staff Payment,900014320,19.99,
BEIS,The Insolvency Service,11/02/2020,Travel & Subsistence,Investigations & Enforcement Services,Staff Payment,900014320,5.00,
BEIS,The Insolvency Service,11/02/2020,Travel & Subsistence,Investigations & Enforcement Services,Staff Payment,900014320,15.00,
BEIS,The Insolvency Service,11/02/2020,Travel & Subsistence,Investigations & Enforcement Services,Staff Payment,900014320,5.00,
BEIS,The Insolvency Service,11/02/2020,Travel & Subsistence,Information & Technology,Staff Payment,900014314,114.00,
BEIS,The Insolvency Service,11/02/2020,Travel & Subsistence,Information & Technology,Staff Payment,900014314,2.85,
BEIS,The Insolvency Service,11/02/2020,Travel & Subsistence,Information & Technology,Staff Payment,900014339,26.60,
BEIS,The Insolvency Service,11/02/2020,Travel & Subsistence,Information & Technology,Staff Payment,900014339,19.70,
BEIS,The Insolvency Service,11/02/2020,Travel & Subsistence,Information & Technology,Staff Payment,900014339,56.25,
BEIS,The Insolvency Service,11/02/2020,Travel & Subsistence,Information & Technology,Staff Payment,900014339,56.25,
BEIS,The Insolvency Service,11/02/2020,Travel & Subsistence,Information & Technology,Staff Payment,900014352,44.70,
BEIS,The Insolvency Service,11/02/2020,Travel & Subsistence,Information & Technology,Staff Payment,900014352,62.10,
BEIS,The Insolvency Service,11/02/2020,Travel & Subsistence,Information & Technology,Staff Payment,900014352,62.10,
BEIS,The Insolvency Service,11/02/2020,Travel & Subsistence,Information & Technology,Staff Payment,900014352,14.95,
BEIS,The Insolvency Service,11/02/2020,Travel & Subsistence,Information & Technology,Staff Payment,900014352,11.50,
BEIS,The Insolvency Service,11/02/2020,Travel & Subsistence,People & Capability,Staff Payment,900014361,13.00,
BEIS,The Insolvency Service,11/02/2020,Travel & Subsistence,Business Service Division,Staff Payment,900014334,12.15,
BEIS,The Insolvency Service,11/02/2020,Travel & Subsistence,Business Service Division,Staff Payment,900014334,7.40,
BEIS,The Insolvency Service,11/02/2020,Travel & Subsistence,Business Service Division,Staff Payment,900014369,5.00,
BEIS,The Insolvency Service,11/02/2020,Travel & Subsistence,Official Receiver Services,Staff Payment,900014144,5.00,
BEIS,The Insolvency Service,11/02/2020,Travel & Subsistence,Finance & Commercial,Staff Payment,900014273,5.00,
BEIS,The Insolvency Service,11/02/2020,Travel & Subsistence,Finance & Commercial,Staff Payment,900014273,21.49,
BEIS,The Insolvency Service,11/02/2020,Travel & Subsistence,Finance & Commercial,Staff Payment,900014273,2.16,
BEIS,The Insolvency Service,11/02/2020,Travel & Subsistence,Finance & Commercial,Staff Payment,900014273,3.90,
BEIS,The Insolvency Service,11/02/2020,Travel & Subsistence,Finance & Commercial,Staff Payment,900014273,3.70,
BEIS,The Insolvency Service,11/02/2020,Civil Litigation Disqualifications,Legal Services Division,SUNDRY SUPPLIER,300017992,1786.14,
BEIS,The Insolvency Service,11/02/2020,ICT,Information & Technology,Trustmarque Solutions Ltd,300017887,1390.12,727348615
BEIS,The Insolvency Service,11/02/2020,ICT,Strategy & Change,Trustmarque Solutions Ltd,300017962,527.30,727348615
BEIS,The Insolvency Service,12/02/2020,Training,Finance & Commercial,Capita Business Services Ltd,300017530,618.60,618184140
BEIS,The Insolvency Service,12/02/2020,"Printing, Stationary & Postage",Business Service Division,City Sprint Uk Ltd,300017981,2363.40,997327364
BEIS,The Insolvency Service,12/02/2020,ICT,Information & Technology,Ee Ltd,300018008,24318.62,771592016
BEIS,The Insolvency Service,12/02/2020,ICT,Information & Technology,Experian Qas Ltd,300018002,2501.82,887133593
BEIS,The Insolvency Service,12/02/2020,ICT,Information & Technology,Experian Qas Ltd,300018003,9783.60,887133593
BEIS,The Insolvency Service,12/02/2020,ICT,Information & Technology,Gamma Business Communications Ltd,300018001,2981.59,823820344
BEIS,The Insolvency Service,12/02/2020,Legal - Live Investigations,Investigations & Enforcement Services,Mendip Media Group Ltd (Now Trading As Appen) - (Transcri),300018027,396.24,609546425
BEIS,The Insolvency Service,12/02/2020,ICT,Information & Technology,Smartcomms Sc Ltd,300017980,33000.00,
BEIS,The Insolvency Service,12/02/2020,Staff Costs - Non-Perms,Information & Technology,SmartSourcing,300017807,3000.00,788507869
BEIS,The Insolvency Service,12/02/2020,Staff Costs - Non-Perms,Information & Technology,SmartSourcing,300017839,2956.80,788507869
BEIS,The Insolvency Service,12/02/2020,Staff Costs - Non-Perms,Information & Technology,SmartSourcing,300017845,2940.00,788507869
BEIS,The Insolvency Service,12/02/2020,Travel & Subsistence,Strategy & Change,Staff Payment,900014332,4.15,
BEIS,The Insolvency Service,12/02/2020,Travel & Subsistence,Strategy & Change,Staff Payment,900014332,15.00,
BEIS,The Insolvency Service,12/02/2020,Travel & Subsistence,Strategy & Change,Staff Payment,900014332,5.00,
BEIS,The Insolvency Service,12/02/2020,Travel & Subsistence,Strategy & Change,Staff Payment,900014332,4.76,
BEIS,The Insolvency Service,12/02/2020,Travel & Subsistence,Strategy & Change,Staff Payment,900014332,5.00,
BEIS,The Insolvency Service,12/02/2020,Travel & Subsistence,Official Receiver Services,Staff Payment,900013954,16.04,
BEIS,The Insolvency Service,12/02/2020,Travel & Subsistence,Official Receiver Services,Staff Payment,900013954,5.00,
BEIS,The Insolvency Service,12/02/2020,Travel & Subsistence,Official Receiver Services,Staff Payment,900013954,10.00,
BEIS,The Insolvency Service,12/02/2020,Travel & Subsistence,Official Receiver Services,Staff Payment,900013954,258.00,
BEIS,The Insolvency Service,12/02/2020,Travel & Subsistence,Official Receiver Services,Staff Payment,900013954,2.40,
BEIS,The Insolvency Service,12/02/2020,Travel & Subsistence,Official Receiver Services,Staff Payment,900013954,2.40,
BEIS,The Insolvency Service,12/02/2020,Travel & Subsistence,Official Receiver Services,Staff Payment,900013954,9.80,
BEIS,The Insolvency Service,12/02/2020,Travel & Subsistence,Official Receiver Services,Staff Payment,900013954,2.40,
BEIS,The Insolvency Service,12/02/2020,Travel & Subsistence,Official Receiver Services,Staff Payment,900013954,2.40,
BEIS,The Insolvency Service,12/02/2020,Travel & Subsistence,Strategy & Change,Staff Payment,900014263,4.60,
BEIS,The Insolvency Service,12/02/2020,Travel & Subsistence,Strategy & Change,Staff Payment,900014263,5.00,
BEIS,The Insolvency Service,12/02/2020,Travel & Subsistence,Official Receiver Services,Staff Payment,900014345,3.10,
BEIS,The Insolvency Service,12/02/2020,Travel & Subsistence,Official Receiver Services,Staff Payment,900013889,5.00,
BEIS,The Insolvency Service,12/02/2020,Travel & Subsistence,Official Receiver Services,Staff Payment,900013889,5.00,
BEIS,The Insolvency Service,12/02/2020,Travel & Subsistence,Official Receiver Services,Staff Payment,900013889,4.75,
BEIS,The Insolvency Service,12/02/2020,Travel & Subsistence,Official Receiver Services,Staff Payment,900013889,4.50,
BEIS,The Insolvency Service,12/02/2020,Travel & Subsistence,Official Receiver Services,Staff Payment,900013889,13.00,
BEIS,The Insolvency Service,12/02/2020,Travel & Subsistence,Official Receiver Services,Staff Payment,900013889,3.40,
BEIS,The Insolvency Service,12/02/2020,Travel & Subsistence,Official Receiver Services,Staff Payment,900014154,2.25,
BEIS,The Insolvency Service,12/02/2020,Travel & Subsistence,Official Receiver Services,Staff Payment,900014154,10.00,
BEIS,The Insolvency Service,12/02/2020,Travel & Subsistence,Official Receiver Services,Staff Payment,900014154,5.90,
BEIS,The Insolvency Service,12/02/2020,Travel & Subsistence,Official Receiver Services,Staff Payment,900014154,6.50,
BEIS,The Insolvency Service,12/02/2020,Travel & Subsistence,Official Receiver Services,Staff Payment,900014154,12.00,
BEIS,The Insolvency Service,12/02/2020,Travel & Subsistence,Official Receiver Services,Staff Payment,900014302,12.00,
BEIS,The Insolvency Service,12/02/2020,Travel & Subsistence,Official Receiver Services,Staff Payment,900014302,11.80,
BEIS,The Insolvency Service,12/02/2020,Travel & Subsistence,Investigations & Enforcement Services,Staff Payment,900013839,134.10,
BEIS,The Insolvency Service,12/02/2020,Travel & Subsistence,Official Receiver Services,Staff Payment,900014329,5.00,
BEIS,The Insolvency Service,12/02/2020,Travel & Subsistence,Official Receiver Services,Staff Payment,900014329,5.00,
BEIS,The Insolvency Service,12/02/2020,Travel & Subsistence,Official Receiver Services,Staff Payment,900014329,5.00,
BEIS,The Insolvency Service,12/02/2020,Travel & Subsistence,Official Receiver Services,Staff Payment,900014329,5.00,
BEIS,The Insolvency Service,12/02/2020,Travel & Subsistence,Official Receiver Services,Staff Payment,900014329,14.70,
BEIS,The Insolvency Service,12/02/2020,Travel & Subsistence,Official Receiver Services,Staff Payment,900014329,15.00,
BEIS,The Insolvency Service,12/02/2020,Travel & Subsistence,People & Capability,Staff Payment,900013938,8.55,
BEIS,The Insolvency Service,12/02/2020,Travel & Subsistence,People & Capability,Staff Payment,900013938,4.69,
BEIS,The Insolvency Service,12/02/2020,Travel & Subsistence,People & Capability,Staff Payment,900013938,4.99,
BEIS,The Insolvency Service,12/02/2020,Travel & Subsistence,People & Capability,Staff Payment,900013941,7.50,
BEIS,The Insolvency Service,12/02/2020,Travel & Subsistence,People & Capability,Staff Payment,900014142,7.50,
BEIS,The Insolvency Service,12/02/2020,Travel & Subsistence,People & Capability,Staff Payment,900014142,8.55,
BEIS,The Insolvency Service,12/02/2020,Travel & Subsistence,People & Capability,Staff Payment,900014142,4.79,
BEIS,The Insolvency Service,12/02/2020,Travel & Subsistence,People & Capability,Staff Payment,900014142,5.00,
BEIS,The Insolvency Service,12/02/2020,Travel & Subsistence,Official Receiver Services,Staff Payment,900014393,5.00,
BEIS,The Insolvency Service,12/02/2020,Travel & Subsistence,Investigations & Enforcement Services,Staff Payment,900014372,8.00,
BEIS,The Insolvency Service,12/02/2020,Travel & Subsistence,Investigations & Enforcement Services,Staff Payment,900014372,5.00,
BEIS,The Insolvency Service,12/02/2020,Travel & Subsistence,Investigations & Enforcement Services,Staff Payment,900014268,3.20,
BEIS,The Insolvency Service,12/02/2020,Travel & Subsistence,Investigations & Enforcement Services,Staff Payment,900014268,15.30,
BEIS,The Insolvency Service,12/02/2020,Travel & Subsistence,Investigations & Enforcement Services,Staff Payment,900014268,15.30,
BEIS,The Insolvency Service,12/02/2020,Travel & Subsistence,Investigations & Enforcement Services,Staff Payment,900014349,4.30,
BEIS,The Insolvency Service,12/02/2020,Travel & Subsistence,Investigations & Enforcement Services,Staff Payment,900014349,15.30,
BEIS,The Insolvency Service,12/02/2020,Travel & Subsistence,Investigations & Enforcement Services,Staff Payment,900014349,15.30,
BEIS,The Insolvency Service,12/02/2020,Travel & Subsistence,Investigations & Enforcement Services,Staff Payment,900014350,4.30,
BEIS,The Insolvency Service,12/02/2020,Travel & Subsistence,Investigations & Enforcement Services,Staff Payment,900014350,15.30,
BEIS,The Insolvency Service,12/02/2020,Travel & Subsistence,Investigations & Enforcement Services,Staff Payment,900014350,4.95,
BEIS,The Insolvency Service,12/02/2020,Travel & Subsistence,Investigations & Enforcement Services,Staff Payment,900014351,4.30,
BEIS,The Insolvency Service,12/02/2020,Travel & Subsistence,Investigations & Enforcement Services,Staff Payment,900014351,4.95,
BEIS,The Insolvency Service,12/02/2020,Travel & Subsistence,Investigations & Enforcement Services,Staff Payment,900014351,15.30,
BEIS,The Insolvency Service,12/02/2020,Travel & Subsistence,Business Service Division,Staff Payment,900014382,10.61,
BEIS,The Insolvency Service,12/02/2020,Travel & Subsistence,Business Service Division,Staff Payment,900014382,13.33,
BEIS,The Insolvency Service,12/02/2020,Travel & Subsistence,Business Service Division,Staff Payment,900014382,64.10,
BEIS,The Insolvency Service,12/02/2020,Travel & Subsistence,Business Service Division,Staff Payment,900014382,15.00,
BEIS,The Insolvency Service,12/02/2020,Travel & Subsistence,Legal Services Division,Staff Payment,900014364,12.00,
BEIS,The Insolvency Service,12/02/2020,Travel & Subsistence,Legal Services Division,Staff Payment,900014364,5.00,
BEIS,The Insolvency Service,12/02/2020,Travel & Subsistence,Official Receiver Services,Staff Payment,900014359,4.00,
BEIS,The Insolvency Service,12/02/2020,Travel & Subsistence,Official Receiver Services,Staff Payment,900014359,39.60,
BEIS,The Insolvency Service,12/02/2020,Travel & Subsistence,Official Receiver Services,Staff Payment,900014360,5.00,
BEIS,The Insolvency Service,12/02/2020,Travel & Subsistence,Official Receiver Services,Staff Payment,900014360,39.60,
BEIS,The Insolvency Service,12/02/2020,Travel & Subsistence,Chief Executive Office,Staff Payment,900014318,4.60,
BEIS,The Insolvency Service,12/02/2020,Travel & Subsistence,Chief Executive Office,Staff Payment,900014318,22.50,
BEIS,The Insolvency Service,12/02/2020,Travel & Subsistence,Chief Executive Office,Staff Payment,900014318,23.00,
BEIS,The Insolvency Service,12/02/2020,Travel & Subsistence,Chief Executive Office,Staff Payment,900014318,77.55,
BEIS,The Insolvency Service,12/02/2020,Travel & Subsistence,Chief Executive Office,Staff Payment,900014318,5.00,
BEIS,The Insolvency Service,12/02/2020,Travel & Subsistence,Chief Executive Office,Staff Payment,900014366,32.00,
BEIS,The Insolvency Service,12/02/2020,Travel & Subsistence,Chief Executive Office,Staff Payment,900014366,18.00,
BEIS,The Insolvency Service,12/02/2020,Travel & Subsistence,Chief Executive Office,Staff Payment,900014366,106.50,
BEIS,The Insolvency Service,12/02/2020,Travel & Subsistence,Investigations & Enforcement Services,Staff Payment,900010656,4.00,
BEIS,The Insolvency Service,12/02/2020,Travel & Subsistence,Investigations & Enforcement Services,Staff Payment,900010656,12.00,
BEIS,The Insolvency Service,12/02/2020,Travel & Subsistence,Investigations & Enforcement Services,Staff Payment,900010656,4.00,
BEIS,The Insolvency Service,12/02/2020,Travel & Subsistence,Investigations & Enforcement Services,Staff Payment,900010656,6.00,
BEIS,The Insolvency Service,12/02/2020,Travel & Subsistence,Investigations & Enforcement Services,Staff Payment,900010656,29.25,
BEIS,The Insolvency Service,12/02/2020,Travel & Subsistence,Investigations & Enforcement Services,Staff Payment,900010656,16.20,
BEIS,The Insolvency Service,12/02/2020,Travel & Subsistence,Investigations & Enforcement Services,Staff Payment,900010656,29.25,
BEIS,The Insolvency Service,12/02/2020,Travel & Subsistence,Investigations & Enforcement Services,Staff Payment,900010656,6.30,
BEIS,The Insolvency Service,12/02/2020,Travel & Subsistence,Investigations & Enforcement Services,Staff Payment,900010656,29.25,
BEIS,The Insolvency Service,12/02/2020,Travel & Subsistence,Investigations & Enforcement Services,Staff Payment,900010656,29.25,
BEIS,The Insolvency Service,12/02/2020,Travel & Subsistence,Investigations & Enforcement Services,Staff Payment,900010656,12.60,
BEIS,The Insolvency Service,12/02/2020,Travel & Subsistence,Investigations & Enforcement Services,Staff Payment,900010656,6.30,
BEIS,The Insolvency Service,12/02/2020,Travel & Subsistence,Investigations & Enforcement Services,Staff Payment,900010656,21.60,
BEIS,The Insolvency Service,12/02/2020,Travel & Subsistence,Investigations & Enforcement Services,Staff Payment,900010656,26.50,
BEIS,The Insolvency Service,12/02/2020,Travel & Subsistence,Investigations & Enforcement Services,Staff Payment,900010656,15.00,
BEIS,The Insolvency Service,12/02/2020,Travel & Subsistence,Investigations & Enforcement Services,Staff Payment,900010656,15.00,
BEIS,The Insolvency Service,12/02/2020,Travel & Subsistence,Investigations & Enforcement Services,Staff Payment,900010656,5.87,
BEIS,The Insolvency Service,12/02/2020,Travel & Subsistence,Investigations & Enforcement Services,Staff Payment,900010656,5.00,
BEIS,The Insolvency Service,12/02/2020,Travel & Subsistence,Investigations & Enforcement Services,Staff Payment,900010656,5.00,
BEIS,The Insolvency Service,12/02/2020,Travel & Subsistence,Official Receiver Services,Staff Payment,900014379,15.00,
BEIS,The Insolvency Service,12/02/2020,Travel & Subsistence,Official Receiver Services,Staff Payment,900014379,3.25,
BEIS,The Insolvency Service,12/02/2020,Travel & Subsistence,Official Receiver Services,Staff Payment,900014379,4.89,
BEIS,The Insolvency Service,12/02/2020,Travel & Subsistence,Official Receiver Services,Staff Payment,900014379,14.00,
BEIS,The Insolvency Service,12/02/2020,Travel & Subsistence,Official Receiver Services,Staff Payment,900014379,5.00,
BEIS,The Insolvency Service,12/02/2020,Travel & Subsistence,Official Receiver Services,Staff Payment,900014379,15.00,
BEIS,The Insolvency Service,12/02/2020,Travel & Subsistence,Official Receiver Services,Staff Payment,900014383,16.25,
BEIS,The Insolvency Service,12/02/2020,Travel & Subsistence,Official Receiver Services,Staff Payment,900014383,16.25,
BEIS,The Insolvency Service,12/02/2020,Travel & Subsistence,Information & Technology,Staff Payment,900014385,19.70,
BEIS,The Insolvency Service,12/02/2020,Travel & Subsistence,Information & Technology,Staff Payment,900014385,75.15,
BEIS,The Insolvency Service,12/02/2020,Travel & Subsistence,Information & Technology,Staff Payment,900014385,72.90,
BEIS,The Insolvency Service,12/02/2020,Travel & Subsistence,Information & Technology,Staff Payment,900014385,15.00,
BEIS,The Insolvency Service,12/02/2020,Travel & Subsistence,Information & Technology,Staff Payment,900014385,5.00,
BEIS,The Insolvency Service,12/02/2020,Travel & Subsistence,Finance & Commercial,Staff Payment,900011688,10.00,
BEIS,The Insolvency Service,12/02/2020,Travel & Subsistence,Business Service Division,Staff Payment,900014333,3.55,
BEIS,The Insolvency Service,12/02/2020,Travel & Subsistence,Business Service Division,Staff Payment,900014333,13.53,
BEIS,The Insolvency Service,12/02/2020,Travel & Subsistence,Business Service Division,Staff Payment,900014333,5.00,
BEIS,The Insolvency Service,12/02/2020,Travel & Subsistence,Business Service Division,Staff Payment,900014333,5.00,
BEIS,The Insolvency Service,12/02/2020,Travel & Subsistence,Business Service Division,Staff Payment,900014371,5.00,
BEIS,The Insolvency Service,12/02/2020,Travel & Subsistence,Business Service Division,Staff Payment,900014371,7.50,
BEIS,The Insolvency Service,12/02/2020,Travel & Subsistence,Business Service Division,Staff Payment,900014371,12.49,
BEIS,The Insolvency Service,12/02/2020,Travel & Subsistence,Business Service Division,Staff Payment,900014371,5.00,
BEIS,The Insolvency Service,12/02/2020,Travel & Subsistence,Business Service Division,Staff Payment,900014371,3.80,
BEIS,The Insolvency Service,12/02/2020,Travel & Subsistence,Business Service Division,Staff Payment,900014371,1.70,
BEIS,The Insolvency Service,12/02/2020,Investigation & Enforcement,Official Receiver Services,Womble Bond Dickinson,300017974,116362.70,123392627
BEIS,The Insolvency Service,12/02/2020,"Legal, Translation & Consultancy",Official Receiver Services,Womble Bond Dickinson,300017975,6123.00,123392627
BEIS,The Insolvency Service,12/02/2020,"Legal, Translation & Consultancy",Official Receiver Services,Womble Bond Dickinson,300017976,22578.00,123392627
BEIS,The Insolvency Service,13/02/2020,Legal - Live Investigations,Legal Services Division,18 Red Lion Court Chambers,300018062,257.80,766793665
BEIS,The Insolvency Service,13/02/2020,Civil Litigation Disqualifications,Legal Services Division,4 Stone Buildings,300018068,2448.00,820863729
BEIS,The Insolvency Service,13/02/2020,Legal - Live Investigations,Legal Services Division,9 King's Bench Walk,300017986,3565.56,397241918
BEIS,The Insolvency Service,13/02/2020,Civil Litigation Disqualifications,Legal Services Division,9 Stone Buildings ,300018064,176.00,168754953
BEIS,The Insolvency Service,13/02/2020,Staff Costs - Non-Perms,Finance & Commercial,ALEXANDER MANN SOLUTIONS,300018028,50830.27,7444926120
BEIS,The Insolvency Service,13/02/2020,Staff Costs - Non-Perms,Finance & Commercial,ALEXANDER MANN SOLUTIONS,300018077,-1495.74,7444926120
BEIS,The Insolvency Service,13/02/2020,Training,Investigations & Enforcement Services,Blackstage Forensics Limited,300018076,3000.00,115573032
BEIS,The Insolvency Service,13/02/2020,Estates - Property,Finance & Commercial,E.On,300018057,653.05,559097889
BEIS,The Insolvency Service,13/02/2020,Civil Litigation Disqualifications,Legal Services Division,Enterprise Chambers,300018065,1080.00,938136900
BEIS,The Insolvency Service,13/02/2020,Training,Strategy & Change,Focus on Training,300018069,3695.00,864455303
BEIS,The Insolvency Service,13/02/2020,ICT,Information & Technology,Geoff Smith Associates Ltd,300018075,20810.00,813047166
BEIS,The Insolvency Service,13/02/2020,"Legal, Translation & Consultancy",Finance & Commercial,Government Legal Department,300018056,1126.08,888823066
BEIS,The Insolvency Service,13/02/2020,ICT,Chief Executive Office,Granicus,300018055,975.80,943669974
BEIS,The Insolvency Service,13/02/2020,Staff Costs - Non-Perms,Finance & Commercial,Hays Specialist Recruitment Ltd,300018074,1556.64,773695871
BEIS,The Insolvency Service,13/02/2020,Estates - Property,Finance & Commercial,London Borough of Newham,300018073,132259.90,248481537
BEIS,The Insolvency Service,13/02/2020,Staff Costs - Non-Perms,Strategy & Change,Netcompany UK Ltd,300017989,57612.00,171809009
BEIS,The Insolvency Service,13/02/2020,Civil Litigation Disqualifications,Legal Services Division,No 5 Barristers Chambers,300018063,1593.72,871522820
BEIS,The Insolvency Service,13/02/2020,Training,Information & Technology,Qa Limited,300017961,1099.00,
BEIS,The Insolvency Service,13/02/2020,Civil Litigation Disqualifications,Legal Services Division,Selbourne Chambers,300018066,528.00,1036299146
BEIS,The Insolvency Service,13/02/2020,Travel & Subsistence,Official Receiver Services,Staff Payment,900013788,53.45,
BEIS,The Insolvency Service,13/02/2020,Travel & Subsistence,Official Receiver Services,Staff Payment,900013788,20.00,
BEIS,The Insolvency Service,13/02/2020,Travel & Subsistence,Official Receiver Services,Staff Payment,900013788,17.15,
BEIS,The Insolvency Service,13/02/2020,Travel & Subsistence,Official Receiver Services,Staff Payment,900013945,30.00,
BEIS,The Insolvency Service,13/02/2020,Travel & Subsistence,Official Receiver Services,Staff Payment,900013945,10.00,
BEIS,The Insolvency Service,13/02/2020,Travel & Subsistence,Official Receiver Services,Staff Payment,900013945,8.84,
BEIS,The Insolvency Service,13/02/2020,Travel & Subsistence,Official Receiver Services,Staff Payment,900014002,2.50,
BEIS,The Insolvency Service,13/02/2020,Travel & Subsistence,Official Receiver Services,Staff Payment,900014002,62.10,
BEIS,The Insolvency Service,13/02/2020,Travel & Subsistence,Official Receiver Services,Staff Payment,900014101,5.00,
BEIS,The Insolvency Service,13/02/2020,Travel & Subsistence,Official Receiver Services,Staff Payment,900014102,62.10,
BEIS,The Insolvency Service,13/02/2020,Travel & Subsistence,Official Receiver Services,Staff Payment,900014411,2.95,
BEIS,The Insolvency Service,13/02/2020,Travel & Subsistence,Official Receiver Services,Staff Payment,900014411,4.15,
BEIS,The Insolvency Service,13/02/2020,Travel & Subsistence,Official Receiver Services,Staff Payment,900014413,3.50,
BEIS,The Insolvency Service,13/02/2020,Travel & Subsistence,Official Receiver Services,Staff Payment,900014417,2.95,
BEIS,The Insolvency Service,13/02/2020,Travel & Subsistence,Official Receiver Services,Staff Payment,900014417,4.15,
BEIS,The Insolvency Service,13/02/2020,Travel & Subsistence,Finance & Commercial,Staff Payment,900014044,15.00,
BEIS,The Insolvency Service,13/02/2020,Travel & Subsistence,Finance & Commercial,Staff Payment,900014044,5.00,
BEIS,The Insolvency Service,13/02/2020,Travel & Subsistence,Official Receiver Services,Staff Payment,900014395,15.00,
BEIS,The Insolvency Service,13/02/2020,Travel & Subsistence,Investigations & Enforcement Services,Staff Payment,900014412,20.70,
BEIS,The Insolvency Service,13/02/2020,Travel & Subsistence,Investigations & Enforcement Services,Staff Payment,900014412,20.70,
BEIS,The Insolvency Service,13/02/2020,Travel & Subsistence,Investigations & Enforcement Services,Staff Payment,900014412,5.00,
BEIS,The Insolvency Service,13/02/2020,Travel & Subsistence,Investigations & Enforcement Services,Staff Payment,900014429,5.85,
BEIS,The Insolvency Service,13/02/2020,Travel & Subsistence,Investigations & Enforcement Services,Staff Payment,900014429,1.80,
BEIS,The Insolvency Service,13/02/2020,Travel & Subsistence,Official Receiver Services,Staff Payment,900014323,3.04,
BEIS,The Insolvency Service,13/02/2020,Travel & Subsistence,People & Capability,Staff Payment,900014449,2.89,
BEIS,The Insolvency Service,13/02/2020,Travel & Subsistence,People & Capability,Staff Payment,900013421,7.20,
BEIS,The Insolvency Service,13/02/2020,Travel & Subsistence,Official Receiver Services,Staff Payment,900013421,5.00,
BEIS,The Insolvency Service,13/02/2020,Travel & Subsistence,Official Receiver Services,Staff Payment,900013421,5.00,
BEIS,The Insolvency Service,13/02/2020,Travel & Subsistence,Official Receiver Services,Staff Payment,900013992,3.60,
BEIS,The Insolvency Service,13/02/2020,Travel & Subsistence,Official Receiver Services,Staff Payment,900013992,3.60,
BEIS,The Insolvency Service,13/02/2020,Travel & Subsistence,Official Receiver Services,Staff Payment,900013992,30.00,
BEIS,The Insolvency Service,13/02/2020,Travel & Subsistence,Official Receiver Services,Staff Payment,900013992,10.00,
BEIS,The Insolvency Service,13/02/2020,Travel & Subsistence,Official Receiver Services,Staff Payment,900014247,5.00,
BEIS,The Insolvency Service,13/02/2020,Travel & Subsistence,Official Receiver Services,Staff Payment,900014249,3.60,
BEIS,The Insolvency Service,13/02/2020,Travel & Subsistence,Official Receiver Services,Staff Payment,900014249,3.60,
BEIS,The Insolvency Service,13/02/2020,Travel & Subsistence,Official Receiver Services,Staff Payment,900014249,15.00,
BEIS,The Insolvency Service,13/02/2020,Travel & Subsistence,Official Receiver Services,Staff Payment,900014249,10.00,
BEIS,The Insolvency Service,13/02/2020,Travel & Subsistence,Official Receiver Services,Staff Payment,900014249,15.00,
BEIS,The Insolvency Service,13/02/2020,Travel & Subsistence,Official Receiver Services,Staff Payment,900014415,5.00,
BEIS,The Insolvency Service,13/02/2020,Travel & Subsistence,Official Receiver Services,Staff Payment,900014416,5.00,
BEIS,The Insolvency Service,13/02/2020,Travel & Subsistence,Official Receiver Services,Staff Payment,900014423,3.00,
BEIS,The Insolvency Service,13/02/2020,Travel & Subsistence,Official Receiver Services,Staff Payment,900014164,14.40,
BEIS,The Insolvency Service,13/02/2020,Travel & Subsistence,Official Receiver Services,Staff Payment,900014164,14.40,
BEIS,The Insolvency Service,13/02/2020,Travel & Subsistence,Official Receiver Services,Staff Payment,900014004,1.00,
BEIS,The Insolvency Service,13/02/2020,Travel & Subsistence,Official Receiver Services,Staff Payment,900014004,4.95,
BEIS,The Insolvency Service,13/02/2020,Travel & Subsistence,Official Receiver Services,Staff Payment,900014004,3.10,
BEIS,The Insolvency Service,13/02/2020,Travel & Subsistence,Finance & Commercial,Staff Payment,900014325,11.17,
BEIS,The Insolvency Service,13/02/2020,Travel & Subsistence,Investigations & Enforcement Services,Staff Payment,900013648,44.10,
BEIS,The Insolvency Service,13/02/2020,Travel & Subsistence,Investigations & Enforcement Services,Staff Payment,900013648,15.30,
BEIS,The Insolvency Service,13/02/2020,Travel & Subsistence,Investigations & Enforcement Services,Staff Payment,900013648,5.00,
BEIS,The Insolvency Service,13/02/2020,Travel & Subsistence,Investigations & Enforcement Services,Staff Payment,900013648,10.00,
BEIS,The Insolvency Service,13/02/2020,Travel & Subsistence,Investigations & Enforcement Services,Staff Payment,900013648,15.00,
BEIS,The Insolvency Service,13/02/2020,Travel & Subsistence,Investigations & Enforcement Services,Staff Payment,900013648,5.00,
BEIS,The Insolvency Service,13/02/2020,Travel & Subsistence,Investigations & Enforcement Services,Staff Payment,900013648,5.00,
BEIS,The Insolvency Service,13/02/2020,Travel & Subsistence,Investigations & Enforcement Services,Staff Payment,900013648,4.90,
BEIS,The Insolvency Service,13/02/2020,Travel & Subsistence,Investigations & Enforcement Services,Staff Payment,900014406,4.45,
BEIS,The Insolvency Service,13/02/2020,Travel & Subsistence,Investigations & Enforcement Services,Staff Payment,900014406,12.98,
BEIS,The Insolvency Service,13/02/2020,Travel & Subsistence,Investigations & Enforcement Services,Staff Payment,900014406,15.00,
BEIS,The Insolvency Service,13/02/2020,Travel & Subsistence,Investigations & Enforcement Services,Staff Payment,900014406,15.00,
BEIS,The Insolvency Service,13/02/2020,Travel & Subsistence,Investigations & Enforcement Services,Staff Payment,900014406,10.00,
BEIS,The Insolvency Service,13/02/2020,Travel & Subsistence,Investigations & Enforcement Services,Staff Payment,900014399,3.10,
BEIS,The Insolvency Service,13/02/2020,Travel & Subsistence,Investigations & Enforcement Services,Staff Payment,900014399,3.10,
BEIS,The Insolvency Service,13/02/2020,Travel & Subsistence,Investigations & Enforcement Services,Staff Payment,900014399,5.00,
BEIS,The Insolvency Service,13/02/2020,Travel & Subsistence,Investigations & Enforcement Services,Staff Payment,900014399,125.00,
BEIS,The Insolvency Service,13/02/2020,Travel & Subsistence,Investigations & Enforcement Services,Staff Payment,900014399,125.00,
BEIS,The Insolvency Service,13/02/2020,Travel & Subsistence,Investigations & Enforcement Services,Staff Payment,900014399,125.00,
BEIS,The Insolvency Service,13/02/2020,Travel & Subsistence,Investigations & Enforcement Services,Staff Payment,900014389,4.99,
BEIS,The Insolvency Service,13/02/2020,Travel & Subsistence,Official Receiver Services,Staff Payment,900014397,2.00,
BEIS,The Insolvency Service,13/02/2020,Travel & Subsistence,Official Receiver Services,Staff Payment,900014397,4.95,
BEIS,The Insolvency Service,13/02/2020,Travel & Subsistence,Official Receiver Services,Staff Payment,900014397,4.50,
BEIS,The Insolvency Service,13/02/2020,Travel & Subsistence,Finance & Commercial,Staff Payment,900014233,7.50,
BEIS,The Insolvency Service,13/02/2020,Travel & Subsistence,Finance & Commercial,Staff Payment,900014233,43.20,
BEIS,The Insolvency Service,13/02/2020,Travel & Subsistence,Finance & Commercial,Staff Payment,900014233,130.05,
BEIS,The Insolvency Service,13/02/2020,Travel & Subsistence,Finance & Commercial,Staff Payment,900014233,90.27,
BEIS,The Insolvency Service,13/02/2020,Travel & Subsistence,Finance & Commercial,Staff Payment,900014233,16.00,
BEIS,The Insolvency Service,13/02/2020,Travel & Subsistence,Finance & Commercial,Staff Payment,900014233,5.00,
BEIS,The Insolvency Service,13/02/2020,Travel & Subsistence,Finance & Commercial,Staff Payment,900014233,15.00,
BEIS,The Insolvency Service,13/02/2020,Travel & Subsistence,Finance & Commercial,Staff Payment,900014233,15.00,
BEIS,The Insolvency Service,13/02/2020,Travel & Subsistence,Finance & Commercial,Staff Payment,900014233,5.00,
BEIS,The Insolvency Service,13/02/2020,Travel & Subsistence,Finance & Commercial,Staff Payment,900014233,15.00,
BEIS,The Insolvency Service,13/02/2020,Travel & Subsistence,Finance & Commercial,Staff Payment,900014233,4.13,
BEIS,The Insolvency Service,13/02/2020,Travel & Subsistence,Finance & Commercial,Staff Payment,900014234,12.00,
BEIS,The Insolvency Service,13/02/2020,Travel & Subsistence,Finance & Commercial,Staff Payment,900014234,5.31,
BEIS,The Insolvency Service,13/02/2020,Travel & Subsistence,Finance & Commercial,Staff Payment,900014234,3.50,
BEIS,The Insolvency Service,13/02/2020,Travel & Subsistence,Finance & Commercial,Staff Payment,900014234,10.10,
BEIS,The Insolvency Service,13/02/2020,Travel & Subsistence,Finance & Commercial,Staff Payment,900014274,23.40,
BEIS,The Insolvency Service,13/02/2020,Travel & Subsistence,Finance & Commercial,Staff Payment,900014274,3.60,
BEIS,The Insolvency Service,13/02/2020,Travel & Subsistence,Finance & Commercial,Staff Payment,900014274,3.98,
BEIS,The Insolvency Service,13/02/2020,Legal - Live Investigations,Legal Services Division,SUNDRY SUPPLIER,300018040,568.00,
BEIS,The Insolvency Service,13/02/2020,Other Costs,Official Receiver Services,The Stationery Office Ltd,300018010,77.10,662774703
BEIS,The Insolvency Service,13/02/2020,Legal - Outsourced Investigation,Investigations & Enforcement Services,Tlt Llp,300018058,10335.20,3574583240
BEIS,The Insolvency Service,13/02/2020,HR,Legal Services Division,Tmp (Uk) Ltd,300018061,5410.00,872904502
BEIS,The Insolvency Service,14/02/2020,ICT,Strategy & Change,Atos It Services Uk Ltd,300018092,28358.68,232327983
BEIS,The Insolvency Service,14/02/2020,Estates - Property,Strategy & Change,Cbre Limited,300018026,736.31,
BEIS,The Insolvency Service,14/02/2020,Legal - Live Investigations,Legal Services Division,Exchange Chambers,300018096,387.90,
BEIS,The Insolvency Service,14/02/2020,Legal - Live Investigations,Legal Services Division,Government Legal Department,300018097,256.08,888823066
BEIS,The Insolvency Service,14/02/2020,ICT,Information & Technology,Gradian Systems Ltd,300018007,76320.00,777353982
BEIS,The Insolvency Service,14/02/2020,Staff Costs - Non-Perms,Strategy & Change,SmartSourcing,300018029,4500.00,788507869
BEIS,The Insolvency Service,14/02/2020,Staff Costs - Non-Perms,Strategy & Change,SmartSourcing,300018030,3300.00,788507869
BEIS,The Insolvency Service,14/02/2020,Staff Costs - Non-Perms,Information & Technology,SmartSourcing,300018031,2250.00,788507869
BEIS,The Insolvency Service,14/02/2020,Staff Costs - Non-Perms,Strategy & Change,SmartSourcing,300018032,924.00,788507869
BEIS,The Insolvency Service,14/02/2020,Staff Costs - Non-Perms,Information & Technology,SmartSourcing,300018033,2550.00,788507869
BEIS,The Insolvency Service,14/02/2020,Staff Costs - Non-Perms,Strategy & Change,SmartSourcing,300018034,3480.00,788507869
BEIS,The Insolvency Service,14/02/2020,Staff Costs - Non-Perms,Strategy & Change,SmartSourcing,300018035,4020.00,788507869
BEIS,The Insolvency Service,14/02/2020,Staff Costs - Non-Perms,Strategy & Change,SmartSourcing,300018036,4500.00,788507869
BEIS,The Insolvency Service,14/02/2020,Staff Costs - Non-Perms,Information & Technology,SmartSourcing,300018037,2646.24,788507869
BEIS,The Insolvency Service,14/02/2020,Staff Costs - Non-Perms,Information & Technology,SmartSourcing,300018038,3750.00,788507869
BEIS,The Insolvency Service,14/02/2020,Staff Costs - Non-Perms,Information & Technology,SmartSourcing,300018039,3750.00,788507869
BEIS,The Insolvency Service,14/02/2020,Staff Costs - Non-Perms,Information & Technology,SmartSourcing,300018041,2760.00,788507869
BEIS,The Insolvency Service,14/02/2020,Staff Costs - Non-Perms,Strategy & Change,SmartSourcing,300018042,3570.00,788507869
BEIS,The Insolvency Service,14/02/2020,Staff Costs - Non-Perms,Information & Technology,SmartSourcing,300018043,3000.00,788507869
BEIS,The Insolvency Service,14/02/2020,Staff Costs - Non-Perms,Strategy & Change,SmartSourcing,300018044,3480.00,788507869
BEIS,The Insolvency Service,14/02/2020,Staff Costs - Non-Perms,Information & Technology,SmartSourcing,300018045,3000.00,788507869
BEIS,The Insolvency Service,14/02/2020,Staff Costs - Non-Perms,Strategy & Change,SmartSourcing,300018046,3600.00,788507869
BEIS,The Insolvency Service,14/02/2020,Staff Costs - Non-Perms,Information & Technology,SmartSourcing,300018047,3450.00,788507869
BEIS,The Insolvency Service,14/02/2020,Staff Costs - Non-Perms,Strategy & Change,SmartSourcing,300018048,3750.00,788507869
BEIS,The Insolvency Service,14/02/2020,Staff Costs - Non-Perms,Information & Technology,SmartSourcing,300018049,4440.00,788507869
BEIS,The Insolvency Service,14/02/2020,Staff Costs - Non-Perms,Information & Technology,SmartSourcing,300018050,13200.00,788507869
BEIS,The Insolvency Service,14/02/2020,Staff Costs - Non-Perms,Information & Technology,SmartSourcing,300018051,4650.00,788507869
BEIS,The Insolvency Service,14/02/2020,Staff Costs - Non-Perms,Information & Technology,SmartSourcing,300018052,3450.00,788507869
BEIS,The Insolvency Service,14/02/2020,Staff Costs - Non-Perms,Information & Technology,SmartSourcing,300018053,3600.00,788507869
BEIS,The Insolvency Service,14/02/2020,Travel & Subsistence,Investigations & Enforcement Services,Staff Payment,900014493,10.00,
BEIS,The Insolvency Service,14/02/2020,Travel & Subsistence,Official Receiver Services,Staff Payment,900014422,258.00,
BEIS,The Insolvency Service,14/02/2020,Travel & Subsistence,Investigations & Enforcement Services,Staff Payment,900014470,14.00,
BEIS,The Insolvency Service,14/02/2020,Travel & Subsistence,Official Receiver Services,Staff Payment,900014454,5.00,
BEIS,The Insolvency Service,14/02/2020,Travel & Subsistence,Official Receiver Services,Staff Payment,900014454,13.27,
BEIS,The Insolvency Service,14/02/2020,Travel & Subsistence,Official Receiver Services,Staff Payment,900014454,5.00,
BEIS,The Insolvency Service,14/02/2020,Travel & Subsistence,Official Receiver Services,Staff Payment,900014454,5.00,
BEIS,The Insolvency Service,14/02/2020,Travel & Subsistence,Official Receiver Services,Staff Payment,900014485,5.00,
BEIS,The Insolvency Service,14/02/2020,Travel & Subsistence,People & Capability,Staff Payment,900014486,15.00,
BEIS,The Insolvency Service,14/02/2020,Travel & Subsistence,People & Capability,Staff Payment,900014486,5.00,
BEIS,The Insolvency Service,14/02/2020,Travel & Subsistence,People & Capability,Staff Payment,900014486,4.39,
BEIS,The Insolvency Service,14/02/2020,Travel & Subsistence,Official Receiver Services,Staff Payment,900014452,5.00,
BEIS,The Insolvency Service,14/02/2020,Travel & Subsistence,Official Receiver Services,Staff Payment,900014452,15.00,
BEIS,The Insolvency Service,14/02/2020,Travel & Subsistence,Official Receiver Services,Staff Payment,900014452,5.00,
BEIS,The Insolvency Service,14/02/2020,Travel & Subsistence,Investigations & Enforcement Services,Staff Payment,900014471,3.00,
BEIS,The Insolvency Service,14/02/2020,Travel & Subsistence,Investigations & Enforcement Services,Staff Payment,900014471,31.50,
BEIS,The Insolvency Service,14/02/2020,Travel & Subsistence,Investigations & Enforcement Services,Staff Payment,900014472,49.50,
BEIS,The Insolvency Service,14/02/2020,Travel & Subsistence,Official Receiver Services,Staff Payment,900014474,8.10,
BEIS,The Insolvency Service,14/02/2020,Travel & Subsistence,Official Receiver Services,Staff Payment,900014474,8.10,
BEIS,The Insolvency Service,14/02/2020,Travel & Subsistence,Business Service Division,Staff Payment,900014401,5.20,
BEIS,The Insolvency Service,14/02/2020,Travel & Subsistence,Business Service Division,Staff Payment,900014401,5.20,
BEIS,The Insolvency Service,14/02/2020,Travel & Subsistence,Business Service Division,Staff Payment,900014401,5.00,
BEIS,The Insolvency Service,14/02/2020,Travel & Subsistence,Business Service Division,Staff Payment,900014402,17.22,
BEIS,The Insolvency Service,14/02/2020,Travel & Subsistence,Official Receiver Services,Staff Payment,900014437,10.50,
BEIS,The Insolvency Service,14/02/2020,Travel & Subsistence,Official Receiver Services,Staff Payment,900014437,5.90,
BEIS,The Insolvency Service,14/02/2020,Travel & Subsistence,Official Receiver Services,Staff Payment,900014437,4.10,
BEIS,The Insolvency Service,14/02/2020,Travel & Subsistence,Official Receiver Services,Staff Payment,900014438,8.00,
BEIS,The Insolvency Service,14/02/2020,Travel & Subsistence,Official Receiver Services,Staff Payment,900014427,18.00,
BEIS,The Insolvency Service,14/02/2020,Travel & Subsistence,Official Receiver Services,Staff Payment,900014427,22.50,
BEIS,The Insolvency Service,14/02/2020,Travel & Subsistence,Official Receiver Services,Staff Payment,900014427,3.60,
BEIS,The Insolvency Service,14/02/2020,Travel & Subsistence,Official Receiver Services,Staff Payment,900014427,13.50,
BEIS,The Insolvency Service,14/02/2020,Travel & Subsistence,Official Receiver Services,Staff Payment,900014427,5.00,
BEIS,The Insolvency Service,14/02/2020,Travel & Subsistence,Official Receiver Services,Staff Payment,900014427,5.00,
BEIS,The Insolvency Service,14/02/2020,Travel & Subsistence,People & Capability,Staff Payment,900014453,5.00,
BEIS,The Insolvency Service,14/02/2020,Travel & Subsistence,People & Capability,Staff Payment,900014453,19.10,
BEIS,The Insolvency Service,14/02/2020,Travel & Subsistence,Business Service Division,Staff Payment,900014436,103.05,
BEIS,The Insolvency Service,14/02/2020,Travel & Subsistence,Business Service Division,Staff Payment,900014436,103.95,
BEIS,The Insolvency Service,14/02/2020,Travel & Subsistence,Business Service Division,Staff Payment,900014436,7.80,
BEIS,The Insolvency Service,14/02/2020,Travel & Subsistence,Business Service Division,Staff Payment,900014436,6.20,
BEIS,The Insolvency Service,14/02/2020,Travel & Subsistence,Business Service Division,Staff Payment,900014436,27.45,
BEIS,The Insolvency Service,14/02/2020,Travel & Subsistence,Business Service Division,Staff Payment,900014436,23.70,
BEIS,The Insolvency Service,14/02/2020,Travel & Subsistence,Business Service Division,Staff Payment,900014436,25.50,
BEIS,The Insolvency Service,14/02/2020,Travel & Subsistence,Business Service Division,Staff Payment,900014436,51.08,
BEIS,The Insolvency Service,14/02/2020,Travel & Subsistence,Business Service Division,Staff Payment,900014436,4.60,
BEIS,The Insolvency Service,14/02/2020,Travel & Subsistence,Business Service Division,Staff Payment,900014436,5.40,
BEIS,The Insolvency Service,14/02/2020,Travel & Subsistence,Strategy & Change,Staff Payment,900014355,3.00,
BEIS,The Insolvency Service,14/02/2020,Travel & Subsistence,Strategy & Change,Staff Payment,900014355,5.00,
BEIS,The Insolvency Service,14/02/2020,Travel & Subsistence,Strategy & Change,Staff Payment,900014356,15.00,
BEIS,The Insolvency Service,14/02/2020,Travel & Subsistence,Strategy & Change,Staff Payment,900014356,4.90,
BEIS,The Insolvency Service,14/02/2020,Travel & Subsistence,Strategy & Change,Staff Payment,900014357,5.00,
BEIS,The Insolvency Service,14/02/2020,Travel & Subsistence,Strategy & Change,Staff Payment,900014357,15.00,
BEIS,The Insolvency Service,14/02/2020,Travel & Subsistence,Strategy & Change,Staff Payment,900014357,5.00,
BEIS,The Insolvency Service,14/02/2020,Travel & Subsistence,Investigations & Enforcement Services,Staff Payment,900014324,4.25,
BEIS,The Insolvency Service,14/02/2020,Travel & Subsistence,Investigations & Enforcement Services,Staff Payment,900014324,5.00,
BEIS,The Insolvency Service,14/02/2020,Travel & Subsistence,Business Service Division,Staff Payment,900014020,3.40,
BEIS,The Insolvency Service,14/02/2020,Travel & Subsistence,Business Service Division,Staff Payment,900014020,15.00,
BEIS,The Insolvency Service,14/02/2020,Travel & Subsistence,Business Service Division,Staff Payment,900014020,21.70,
BEIS,The Insolvency Service,14/02/2020,Travel & Subsistence,Business Service Division,Staff Payment,900014020,21.70,
BEIS,The Insolvency Service,14/02/2020,Travel & Subsistence,Business Service Division,Staff Payment,900014020,37.35,
BEIS,The Insolvency Service,14/02/2020,Travel & Subsistence,Business Service Division,Staff Payment,900014020,37.35,
BEIS,The Insolvency Service,14/02/2020,Travel & Subsistence,Business Service Division,Staff Payment,900014020,10.50,
BEIS,The Insolvency Service,14/02/2020,Travel & Subsistence,Business Service Division,Staff Payment,900014020,13.50,
BEIS,The Insolvency Service,14/02/2020,Travel & Subsistence,Business Service Division,Staff Payment,900014020,5.00,
BEIS,The Insolvency Service,14/02/2020,Travel & Subsistence,Business Service Division,Staff Payment,900014020,15.00,
BEIS,The Insolvency Service,14/02/2020,Travel & Subsistence,Business Service Division,Staff Payment,900014020,15.00,
BEIS,The Insolvency Service,14/02/2020,Travel & Subsistence,Business Service Division,Staff Payment,900014020,29.55,
BEIS,The Insolvency Service,14/02/2020,Travel & Subsistence,Business Service Division,Staff Payment,900014020,3.69,
BEIS,The Insolvency Service,14/02/2020,Travel & Subsistence,Business Service Division,Staff Payment,900014020,5.00,
BEIS,The Insolvency Service,14/02/2020,Travel & Subsistence,Official Receiver Services,Staff Payment,900014424,2.80,
BEIS,The Insolvency Service,14/02/2020,Travel & Subsistence,Official Receiver Services,Staff Payment,900014424,5.00,
BEIS,The Insolvency Service,14/02/2020,Travel & Subsistence,Official Receiver Services,Staff Payment,900014424,2.80,
BEIS,The Insolvency Service,14/02/2020,Travel & Subsistence,Official Receiver Services,Staff Payment,900014424,4.29,
BEIS,The Insolvency Service,14/02/2020,Travel & Subsistence,Investigations & Enforcement Services,Staff Payment,900014398,14.00,
BEIS,The Insolvency Service,14/02/2020,Travel & Subsistence,Official Receiver Services,Staff Payment,900014475,5.00,
BEIS,The Insolvency Service,14/02/2020,Travel & Subsistence,Official Receiver Services,Staff Payment,900014475,15.00,
BEIS,The Insolvency Service,14/02/2020,Travel & Subsistence,Official Receiver Services,Staff Payment,900014475,5.00,
BEIS,The Insolvency Service,14/02/2020,Travel & Subsistence,Official Receiver Services,Staff Payment,900014475,10.00,
BEIS,The Insolvency Service,14/02/2020,Travel & Subsistence,Official Receiver Services,Staff Payment,900014475,15.00,
BEIS,The Insolvency Service,14/02/2020,Travel & Subsistence,Legal Services Division,Staff Payment,900014507,24.30,
BEIS,The Insolvency Service,14/02/2020,Travel & Subsistence,Legal Services Division,Staff Payment,900014507,24.30,
BEIS,The Insolvency Service,14/02/2020,Travel & Subsistence,Legal Services Division,Staff Payment,900014507,5.00,
BEIS,The Insolvency Service,14/02/2020,Travel & Subsistence,Investigations & Enforcement Services,Staff Payment,900014410,12.50,
BEIS,The Insolvency Service,14/02/2020,Travel & Subsistence,Investigations & Enforcement Services,Staff Payment,900014410,13.50,
BEIS,The Insolvency Service,14/02/2020,Travel & Subsistence,Investigations & Enforcement Services,Staff Payment,900014434,4.05,
BEIS,The Insolvency Service,14/02/2020,Travel & Subsistence,Finance & Commercial,Staff Payment,900014310,10.20,
BEIS,The Insolvency Service,14/02/2020,Travel & Subsistence,Finance & Commercial,Staff Payment,900014430,10.06,
BEIS,The Insolvency Service,14/02/2020,Travel & Subsistence,Finance & Commercial,Staff Payment,900014430,4.39,
BEIS,The Insolvency Service,14/02/2020,Travel & Subsistence,Finance & Commercial,Staff Payment,900014430,3.00,
BEIS,The Insolvency Service,14/02/2020,Travel & Subsistence,Finance & Commercial,Staff Payment,900014430,2.00,
BEIS,The Insolvency Service,14/02/2020,Travel & Subsistence,Official Receiver Services,Staff Payment,900014444,6.80,
BEIS,The Insolvency Service,14/02/2020,Travel & Subsistence,Official Receiver Services,Staff Payment,900014444,5.00,
BEIS,The Insolvency Service,14/02/2020,Travel & Subsistence,Official Receiver Services,Staff Payment,900014444,4.95,
BEIS,The Insolvency Service,14/02/2020,Travel & Subsistence,Official Receiver Services,Staff Payment,900014444,15.00,
BEIS,The Insolvency Service,14/02/2020,Travel & Subsistence,Strategy & Change,Staff Payment,900014381,5.00,
BEIS,The Insolvency Service,14/02/2020,Travel & Subsistence,Strategy & Change,Staff Payment,900014381,3.00,
BEIS,The Insolvency Service,14/02/2020,Travel & Subsistence,Strategy & Change,Staff Payment,900014381,3.00,
BEIS,The Insolvency Service,14/02/2020,Travel & Subsistence,Strategy & Change,Staff Payment,900014381,5.00,
BEIS,The Insolvency Service,14/02/2020,Travel & Subsistence,Strategy & Change,Staff Payment,900014381,4.60,
BEIS,The Insolvency Service,14/02/2020,Other Costs,Official Receiver Services,The Stationery Office Ltd,300018011,84.00,662774703
BEIS,The Insolvency Service,14/02/2020,Other Costs,Official Receiver Services,The Stationery Office Ltd,300018012,84.00,662774703
BEIS,The Insolvency Service,14/02/2020,Other Costs,Official Receiver Services,The Stationery Office Ltd,300018013,84.00,662774703
BEIS,The Insolvency Service,14/02/2020,Other Costs,Official Receiver Services,The Stationery Office Ltd,300018014,84.00,662774703
BEIS,The Insolvency Service,14/02/2020,Other Costs,Official Receiver Services,The Stationery Office Ltd,300018015,168.00,662774703
BEIS,The Insolvency Service,14/02/2020,Other Costs,Official Receiver Services,The Stationery Office Ltd,300018016,84.00,662774703
BEIS,The Insolvency Service,14/02/2020,Other Costs,Official Receiver Services,The Stationery Office Ltd,300018017,336.00,662774703
BEIS,The Insolvency Service,14/02/2020,Other Costs,Official Receiver Services,The Stationery Office Ltd,300018018,168.00,662774703
BEIS,The Insolvency Service,14/02/2020,Other Costs,Official Receiver Services,The Stationery Office Ltd,300018019,84.00,662774703
BEIS,The Insolvency Service,14/02/2020,Other Costs,Official Receiver Services,The Stationery Office Ltd,300018020,84.00,662774703
BEIS,The Insolvency Service,14/02/2020,Other Costs,Official Receiver Services,The Stationery Office Ltd,300018021,84.00,662774703
BEIS,The Insolvency Service,14/02/2020,ICT,Information & Technology,Vodafone - Cable & Wireless Communications,300018070,240.00,569953277
BEIS,The Insolvency Service,14/02/2020,ICT,Information & Technology,Vodafone - Cable & Wireless Communications,300018071,945.36,569953277
BEIS,The Insolvency Service,14/02/2020,ICT,Information & Technology,Vodafone - Cable & Wireless Communications,300018072,240.00,569953277
BEIS,The Insolvency Service,17/02/2020,Legal - Live Investigations,Legal Services Division,Government Legal Department,300018100,1438.08,888823066
BEIS,The Insolvency Service,17/02/2020,Legal - Live Investigations,Legal Services Division,Government Legal Department,300018101,2939.28,888823066
BEIS,The Insolvency Service,17/02/2020,Investigation & Enforcement,Official Receiver Services,Mills & Reeve LLP,300018110,7471.20,104834588
BEIS,The Insolvency Service,17/02/2020,Investigation & Enforcement,Official Receiver Services,Mills & Reeve LLP,300018116,8712.20,104834588
BEIS,The Insolvency Service,17/02/2020,Investigation & Enforcement,Official Receiver Services,Mills & Reeve LLP,300018117,1380.80,104834588
BEIS,The Insolvency Service,17/02/2020,Legal - Outsourced Investigation,Investigations & Enforcement Services,Mills & Reeve LLP,300018118,3845.10,104834588
BEIS,The Insolvency Service,17/02/2020,Civil Litigation Disqualifications,Legal Services Division,Mills & Reeve LLP,300018119,568.00,104834588
BEIS,The Insolvency Service,17/02/2020,Civil Litigation Disqualifications,Legal Services Division,Mills & Reeve LLP,300018120,397.00,104834588
BEIS,The Insolvency Service,17/02/2020,Civil Litigation Disqualifications,Legal Services Division,Mills & Reeve LLP,300018121,364.50,104834588
BEIS,The Insolvency Service,17/02/2020,Civil Litigation Disqualifications,Legal Services Division,Mills & Reeve LLP,300018122,2500.00,104834588
BEIS,The Insolvency Service,17/02/2020,Civil Litigation Disqualifications,Legal Services Division,Mills & Reeve LLP,300018123,721.70,104834588
BEIS,The Insolvency Service,17/02/2020,Civil Litigation Disqualifications,Legal Services Division,Mills & Reeve LLP,300018124,1608.00,104834588
BEIS,The Insolvency Service,17/02/2020,Civil Litigation Disqualifications,Legal Services Division,Mills & Reeve LLP,300018124,528.00,104834588
BEIS,The Insolvency Service,17/02/2020,Civil Litigation Disqualifications,Legal Services Division,Mills & Reeve LLP,300018125,4775.87,104834588
BEIS,The Insolvency Service,17/02/2020,Civil Litigation Disqualifications,Legal Services Division,Mills & Reeve LLP,300018126,1132.70,104834588
BEIS,The Insolvency Service,17/02/2020,Civil Litigation Disqualifications,Legal Services Division,Mills & Reeve LLP,300018126,673.00,104834588
BEIS,The Insolvency Service,17/02/2020,"Printing, Stationary & Postage",Business Service Division,Royal Mail,300018095,171.00,243170002
BEIS,The Insolvency Service,17/02/2020,"Printing, Stationary & Postage",Business Service Division,Royal Mail,300018095,114.00,243170002
BEIS,The Insolvency Service,17/02/2020,Travel & Subsistence,Investigations & Enforcement Services,Staff Payment,900014465,5.00,
BEIS,The Insolvency Service,17/02/2020,Travel & Subsistence,Investigations & Enforcement Services,Staff Payment,900014467,3.20,
BEIS,The Insolvency Service,17/02/2020,Travel & Subsistence,Official Receiver Services,Staff Payment,900014483,4.60,
BEIS,The Insolvency Service,17/02/2020,Travel & Subsistence,Official Receiver Services,Staff Payment,900014483,14.50,
BEIS,The Insolvency Service,17/02/2020,Travel & Subsistence,Official Receiver Services,Staff Payment,900014531,14.50,
BEIS,The Insolvency Service,17/02/2020,Travel & Subsistence,Official Receiver Services,Staff Payment,900014531,2.80,
BEIS,The Insolvency Service,17/02/2020,Travel & Subsistence,Official Receiver Services,Staff Payment,900014531,4.60,
BEIS,The Insolvency Service,17/02/2020,Travel & Subsistence,Official Receiver Services,Staff Payment,900014531,9.00,
BEIS,The Insolvency Service,17/02/2020,Travel & Subsistence,Official Receiver Services,Staff Payment,900014435,36.00,
BEIS,The Insolvency Service,17/02/2020,Travel & Subsistence,Official Receiver Services,Staff Payment,900014476,2.65,
BEIS,The Insolvency Service,17/02/2020,Travel & Subsistence,Official Receiver Services,Staff Payment,900014476,14.00,
BEIS,The Insolvency Service,17/02/2020,Travel & Subsistence,Official Receiver Services,Staff Payment,900014487,15.00,
BEIS,The Insolvency Service,17/02/2020,Travel & Subsistence,Official Receiver Services,Staff Payment,900014487,10.00,
BEIS,The Insolvency Service,17/02/2020,Travel & Subsistence,Official Receiver Services,Staff Payment,900014488,14.52,
BEIS,The Insolvency Service,17/02/2020,Travel & Subsistence,Official Receiver Services,Staff Payment,900014488,5.00,
BEIS,The Insolvency Service,17/02/2020,Travel & Subsistence,Official Receiver Services,Staff Payment,900014488,4.89,
BEIS,The Insolvency Service,17/02/2020,Travel & Subsistence,Official Receiver Services,Staff Payment,900014488,2.79,
BEIS,The Insolvency Service,17/02/2020,Travel & Subsistence,Official Receiver Services,Staff Payment,900014488,4.69,
BEIS,The Insolvency Service,17/02/2020,Travel & Subsistence,Official Receiver Services,Staff Payment,900014489,30.00,
BEIS,The Insolvency Service,17/02/2020,Travel & Subsistence,Strategy & Change,Staff Payment,900014348,20.00,
BEIS,The Insolvency Service,17/02/2020,Travel & Subsistence,Strategy & Change,Staff Payment,900014348,44.95,
BEIS,The Insolvency Service,17/02/2020,Travel & Subsistence,Strategy & Change,Staff Payment,900014348,20.00,
BEIS,The Insolvency Service,17/02/2020,Travel & Subsistence,Strategy & Change,Staff Payment,900014348,9.20,
BEIS,The Insolvency Service,17/02/2020,Travel & Subsistence,Strategy & Change,Staff Payment,900014348,12.80,
BEIS,The Insolvency Service,17/02/2020,Travel & Subsistence,Strategy & Change,Staff Payment,900014348,12.80,
BEIS,The Insolvency Service,17/02/2020,Travel & Subsistence,Strategy & Change,Staff Payment,900014348,3.00,
BEIS,The Insolvency Service,17/02/2020,Travel & Subsistence,Strategy & Change,Staff Payment,900014348,4.80,
BEIS,The Insolvency Service,17/02/2020,Travel & Subsistence,Strategy & Change,Staff Payment,900013026,4.65,
BEIS,The Insolvency Service,17/02/2020,Travel & Subsistence,Strategy & Change,Staff Payment,900013026,1.99,
BEIS,The Insolvency Service,17/02/2020,Travel & Subsistence,Strategy & Change,Staff Payment,900013026,15.00,
BEIS,The Insolvency Service,17/02/2020,Travel & Subsistence,Strategy & Change,Staff Payment,900013026,5.00,
BEIS,The Insolvency Service,17/02/2020,Travel & Subsistence,Strategy & Change,Staff Payment,900013026,2.88,
BEIS,The Insolvency Service,17/02/2020,Travel & Subsistence,Strategy & Change,Staff Payment,900013026,4.65,
BEIS,The Insolvency Service,17/02/2020,Travel & Subsistence,Strategy & Change,Staff Payment,900013026,2.59,
BEIS,The Insolvency Service,17/02/2020,Travel & Subsistence,Strategy & Change,Staff Payment,900013026,10.35,
BEIS,The Insolvency Service,17/02/2020,Travel & Subsistence,Strategy & Change,Staff Payment,900013026,5.00,
BEIS,The Insolvency Service,17/02/2020,Travel & Subsistence,Strategy & Change,Staff Payment,900013026,22.00,
BEIS,The Insolvency Service,17/02/2020,Travel & Subsistence,Strategy & Change,Staff Payment,900013026,16.20,
BEIS,The Insolvency Service,17/02/2020,Travel & Subsistence,Strategy & Change,Staff Payment,900013026,16.20,
BEIS,The Insolvency Service,17/02/2020,Travel & Subsistence,Strategy & Change,Staff Payment,900013026,60.75,
BEIS,The Insolvency Service,17/02/2020,Travel & Subsistence,Strategy & Change,Staff Payment,900013026,60.75,
BEIS,The Insolvency Service,17/02/2020,Travel & Subsistence,Strategy & Change,Staff Payment,900013026,5.00,
BEIS,The Insolvency Service,17/02/2020,Travel & Subsistence,Strategy & Change,Staff Payment,900013026,5.00,
BEIS,The Insolvency Service,17/02/2020,Travel & Subsistence,Strategy & Change,Staff Payment,900013026,5.00,
BEIS,The Insolvency Service,17/02/2020,Travel & Subsistence,Strategy & Change,Staff Payment,900013026,4.40,
BEIS,The Insolvency Service,17/02/2020,Travel & Subsistence,Strategy & Change,Staff Payment,900013026,9.70,
BEIS,The Insolvency Service,17/02/2020,Travel & Subsistence,Strategy & Change,Staff Payment,900013026,5.00,
BEIS,The Insolvency Service,17/02/2020,Travel & Subsistence,Strategy & Change,Staff Payment,900013026,4.99,
BEIS,The Insolvency Service,17/02/2020,Travel & Subsistence,Strategy & Change,Staff Payment,900013026,4.65,
BEIS,The Insolvency Service,17/02/2020,Travel & Subsistence,Strategy & Change,Staff Payment,900013026,4.69,
BEIS,The Insolvency Service,17/02/2020,Travel & Subsistence,Strategy & Change,Staff Payment,900013026,5.00,
BEIS,The Insolvency Service,17/02/2020,Travel & Subsistence,Chief Executive Office,Staff Payment,900014543,78.30,
BEIS,The Insolvency Service,17/02/2020,Travel & Subsistence,Chief Executive Office,Staff Payment,900014543,1.75,
BEIS,The Insolvency Service,17/02/2020,Travel & Subsistence,Chief Executive Office,Staff Payment,900014544,5.00,
BEIS,The Insolvency Service,17/02/2020,Travel & Subsistence,Chief Executive Office,Staff Payment,900014544,14.65,
BEIS,The Insolvency Service,17/02/2020,Travel & Subsistence,Chief Executive Office,Staff Payment,900014544,72.00,
BEIS,The Insolvency Service,17/02/2020,Travel & Subsistence,Chief Executive Office,Staff Payment,900014544,28.59,
BEIS,The Insolvency Service,17/02/2020,Travel & Subsistence,Chief Executive Office,Staff Payment,900014544,5.00,
BEIS,The Insolvency Service,17/02/2020,Travel & Subsistence,Chief Executive Office,Staff Payment,900014544,5.00,
BEIS,The Insolvency Service,17/02/2020,Travel & Subsistence,Chief Executive Office,Staff Payment,900014544,4.25,
BEIS,The Insolvency Service,17/02/2020,Travel & Subsistence,Chief Executive Office,Staff Payment,900014544,15.00,
BEIS,The Insolvency Service,17/02/2020,Travel & Subsistence,Chief Executive Office,Staff Payment,900014544,5.00,
BEIS,The Insolvency Service,17/02/2020,Travel & Subsistence,Chief Executive Office,Staff Payment,900014544,5.00,
BEIS,The Insolvency Service,17/02/2020,Travel & Subsistence,Chief Executive Office,Staff Payment,900014544,13.45,
BEIS,The Insolvency Service,17/02/2020,Travel & Subsistence,Official Receiver Services,Staff Payment,900014494,4.80,
BEIS,The Insolvency Service,17/02/2020,Travel & Subsistence,Official Receiver Services,Staff Payment,900014495,3.80,
BEIS,The Insolvency Service,17/02/2020,Travel & Subsistence,Official Receiver Services,Staff Payment,900014528,5.00,
BEIS,The Insolvency Service,17/02/2020,Travel & Subsistence,Official Receiver Services,Staff Payment,900014528,13.45,
BEIS,The Insolvency Service,17/02/2020,Travel & Subsistence,Official Receiver Services,Staff Payment,900014528,65.25,
BEIS,The Insolvency Service,17/02/2020,Travel & Subsistence,Official Receiver Services,Staff Payment,900014528,65.25,
BEIS,The Insolvency Service,17/02/2020,Travel & Subsistence,Official Receiver Services,Staff Payment,900014528,4.30,
BEIS,The Insolvency Service,17/02/2020,Travel & Subsistence,Investigations & Enforcement Services,Staff Payment,900014482,9.10,
BEIS,The Insolvency Service,17/02/2020,Travel & Subsistence,Investigations & Enforcement Services,Staff Payment,900014482,11.20,
BEIS,The Insolvency Service,17/02/2020,Travel & Subsistence,Investigations & Enforcement Services,Staff Payment,900014482,10.95,
BEIS,The Insolvency Service,17/02/2020,Travel & Subsistence,Investigations & Enforcement Services,Staff Payment,900014482,5.00,
BEIS,The Insolvency Service,17/02/2020,Travel & Subsistence,Investigations & Enforcement Services,Staff Payment,900014482,14.65,
BEIS,The Insolvency Service,17/02/2020,Travel & Subsistence,Investigations & Enforcement Services,Staff Payment,900014482,10.20,
BEIS,The Insolvency Service,17/02/2020,Travel & Subsistence,Investigations & Enforcement Services,Staff Payment,900014482,11.20,
BEIS,The Insolvency Service,17/02/2020,Travel & Subsistence,Investigations & Enforcement Services,Staff Payment,900014482,1.50,
BEIS,The Insolvency Service,17/02/2020,Travel & Subsistence,Investigations & Enforcement Services,Staff Payment,900014482,9.00,
BEIS,The Insolvency Service,17/02/2020,Travel & Subsistence,Investigations & Enforcement Services,Staff Payment,900014482,48.50,
BEIS,The Insolvency Service,17/02/2020,Travel & Subsistence,Investigations & Enforcement Services,Staff Payment,900014477,4.25,
BEIS,The Insolvency Service,17/02/2020,Travel & Subsistence,Investigations & Enforcement Services,Staff Payment,900014479,5.00,
BEIS,The Insolvency Service,17/02/2020,Travel & Subsistence,Investigations & Enforcement Services,Staff Payment,900014480,5.00,
BEIS,The Insolvency Service,17/02/2020,Travel & Subsistence,Investigations & Enforcement Services,Staff Payment,900014481,5.00,
BEIS,The Insolvency Service,17/02/2020,Travel & Subsistence,Strategy & Change,Staff Payment,900014062,1.50,
BEIS,The Insolvency Service,17/02/2020,Travel & Subsistence,Strategy & Change,Staff Payment,900014062,2.40,
BEIS,The Insolvency Service,17/02/2020,Travel & Subsistence,Strategy & Change,Staff Payment,900014508,2.40,
BEIS,The Insolvency Service,17/02/2020,Travel & Subsistence,Chief Executive Office,Staff Payment,900014075,5.00,
BEIS,The Insolvency Service,17/02/2020,Travel & Subsistence,Chief Executive Office,Staff Payment,900014075,11.90,
BEIS,The Insolvency Service,17/02/2020,Travel & Subsistence,Chief Executive Office,Staff Payment,900014075,5.00,
BEIS,The Insolvency Service,17/02/2020,Travel & Subsistence,Chief Executive Office,Staff Payment,900014514,4.80,
BEIS,The Insolvency Service,17/02/2020,Travel & Subsistence,Official Receiver Services,Staff Payment,900014525,17.28,
BEIS,The Insolvency Service,17/02/2020,Travel & Subsistence,Official Receiver Services,Staff Payment,900014525,3.10,
BEIS,The Insolvency Service,17/02/2020,Travel & Subsistence,Strategy & Change,Staff Payment,900014469,14.85,
BEIS,The Insolvency Service,17/02/2020,Travel & Subsistence,Official Receiver Services,Staff Payment,900014392,10.00,
BEIS,The Insolvency Service,17/02/2020,Travel & Subsistence,Official Receiver Services,Staff Payment,900014520,24.00,
BEIS,The Insolvency Service,17/02/2020,Travel & Subsistence,Official Receiver Services,Staff Payment,900014520,20.70,
BEIS,The Insolvency Service,17/02/2020,Travel & Subsistence,Official Receiver Services,Staff Payment,900014520,5.00,
BEIS,The Insolvency Service,17/02/2020,Travel & Subsistence,Official Receiver Services,Staff Payment,900014520,5.00,
BEIS,The Insolvency Service,17/02/2020,Travel & Subsistence,Official Receiver Services,Staff Payment,900014520,15.00,
BEIS,The Insolvency Service,17/02/2020,Travel & Subsistence,Official Receiver Services,Staff Payment,900013943,10.04,
BEIS,The Insolvency Service,17/02/2020,Travel & Subsistence,Official Receiver Services,Staff Payment,900013943,5.00,
BEIS,The Insolvency Service,17/02/2020,Travel & Subsistence,Official Receiver Services,Staff Payment,900013943,3.59,
BEIS,The Insolvency Service,17/02/2020,Travel & Subsistence,Investigations & Enforcement Services,Staff Payment,900014319,7.00,
BEIS,The Insolvency Service,17/02/2020,Travel & Subsistence,Investigations & Enforcement Services,Staff Payment,900014319,7.00,
BEIS,The Insolvency Service,17/02/2020,Travel & Subsistence,Investigations & Enforcement Services,Staff Payment,900014319,7.00,
BEIS,The Insolvency Service,17/02/2020,Travel & Subsistence,Investigations & Enforcement Services,Staff Payment,900014319,7.00,
BEIS,The Insolvency Service,17/02/2020,Travel & Subsistence,Investigations & Enforcement Services,Staff Payment,900014319,7.00,
BEIS,The Insolvency Service,17/02/2020,Travel & Subsistence,Investigations & Enforcement Services,Staff Payment,900014319,7.00,
BEIS,The Insolvency Service,17/02/2020,Travel & Subsistence,Finance & Commercial,Staff Payment,900014365,5.00,
BEIS,The Insolvency Service,17/02/2020,Travel & Subsistence,Finance & Commercial,Staff Payment,900014365,14.90,
BEIS,The Insolvency Service,17/02/2020,Travel & Subsistence,Finance & Commercial,Staff Payment,900014365,4.55,
BEIS,The Insolvency Service,17/02/2020,Travel & Subsistence,Finance & Commercial,Staff Payment,900014365,8.44,
BEIS,The Insolvency Service,17/02/2020,Travel & Subsistence,Finance & Commercial,Staff Payment,900014365,12.00,
BEIS,The Insolvency Service,17/02/2020,Travel & Subsistence,Finance & Commercial,Staff Payment,900014365,2.40,
BEIS,The Insolvency Service,17/02/2020,Travel & Subsistence,Finance & Commercial,Staff Payment,900014365,2.40,
BEIS,The Insolvency Service,17/02/2020,Travel & Subsistence,Official Receiver Services,Staff Payment,900014404,5.00,
BEIS,The Insolvency Service,17/02/2020,Travel & Subsistence,Official Receiver Services,Staff Payment,900014404,15.00,
BEIS,The Insolvency Service,17/02/2020,Travel & Subsistence,Official Receiver Services,Staff Payment,900014404,43.60,
BEIS,The Insolvency Service,17/02/2020,Travel & Subsistence,Official Receiver Services,Staff Payment,900014404,10.00,
BEIS,The Insolvency Service,17/02/2020,Travel & Subsistence,Official Receiver Services,Staff Payment,900014516,13.90,
BEIS,The Insolvency Service,17/02/2020,Travel & Subsistence,Official Receiver Services,Staff Payment,900014516,92.70,
BEIS,The Insolvency Service,17/02/2020,Travel & Subsistence,Official Receiver Services,Staff Payment,900014516,27.45,
BEIS,The Insolvency Service,17/02/2020,Travel & Subsistence,Official Receiver Services,Staff Payment,900014516,58.95,
BEIS,The Insolvency Service,17/02/2020,Travel & Subsistence,Official Receiver Services,Staff Payment,900014516,12.00,
BEIS,The Insolvency Service,17/02/2020,Travel & Subsistence,Official Receiver Services,Staff Payment,900014516,4.70,
BEIS,The Insolvency Service,17/02/2020,Travel & Subsistence,Official Receiver Services,Staff Payment,900014516,26.00,
BEIS,The Insolvency Service,17/02/2020,Travel & Subsistence,Official Receiver Services,Staff Payment,900014516,25.00,
BEIS,The Insolvency Service,17/02/2020,Travel & Subsistence,Official Receiver Services,Staff Payment,900014516,20.00,
BEIS,The Insolvency Service,17/02/2020,Travel & Subsistence,Official Receiver Services,Staff Payment,900014516,19.94,
BEIS,The Insolvency Service,17/02/2020,Travel & Subsistence,Official Receiver Services,Staff Payment,900014516,16.19,
BEIS,The Insolvency Service,17/02/2020,Travel & Subsistence,Official Receiver Services,Staff Payment,900014516,39.37,
BEIS,The Insolvency Service,17/02/2020,Travel & Subsistence,Official Receiver Services,Staff Payment,900014516,5.00,
BEIS,The Insolvency Service,17/02/2020,Travel & Subsistence,Official Receiver Services,Staff Payment,900014516,5.00,
BEIS,The Insolvency Service,17/02/2020,Travel & Subsistence,Official Receiver Services,Staff Payment,900014516,4.60,
BEIS,The Insolvency Service,17/02/2020,Travel & Subsistence,Official Receiver Services,Staff Payment,900014516,5.00,
BEIS,The Insolvency Service,17/02/2020,Travel & Subsistence,Official Receiver Services,Staff Payment,900014516,102.15,
BEIS,The Insolvency Service,17/02/2020,Travel & Subsistence,Official Receiver Services,Staff Payment,900014517,1.80,
BEIS,The Insolvency Service,17/02/2020,Travel & Subsistence,Official Receiver Services,Staff Payment,900014304,5.00,
BEIS,The Insolvency Service,17/02/2020,Travel & Subsistence,Official Receiver Services,Staff Payment,900014305,5.00,
BEIS,The Insolvency Service,17/02/2020,Travel & Subsistence,Official Receiver Services,Staff Payment,900014306,5.00,
BEIS,The Insolvency Service,17/02/2020,Travel & Subsistence,Official Receiver Services,Staff Payment,900014407,5.50,
BEIS,The Insolvency Service,17/02/2020,Travel & Subsistence,People & Capability,Staff Payment,900014532,5.00,
BEIS,The Insolvency Service,17/02/2020,Travel & Subsistence,Official Receiver Services,Staff Payment,900014461,4.84,
BEIS,The Insolvency Service,17/02/2020,Travel & Subsistence,Business Service Division,Staff Payment,900014526,5.70,
BEIS,The Insolvency Service,17/02/2020,Travel & Subsistence,Business Service Division,Staff Payment,900014526,4.20,
BEIS,The Insolvency Service,17/02/2020,Travel & Subsistence,Business Service Division,Staff Payment,900014526,15.00,
BEIS,The Insolvency Service,17/02/2020,Travel & Subsistence,Business Service Division,Staff Payment,900014526,5.00,
BEIS,The Insolvency Service,17/02/2020,Travel & Subsistence,Legal Services Division,Staff Payment,900014506,15.00,
BEIS,The Insolvency Service,17/02/2020,Travel & Subsistence,Legal Services Division,Staff Payment,900014506,5.00,
BEIS,The Insolvency Service,17/02/2020,Travel & Subsistence,Legal Services Division,Staff Payment,900014506,5.00,
BEIS,The Insolvency Service,17/02/2020,Travel & Subsistence,Legal Services Division,Staff Payment,900014506,15.00,
BEIS,The Insolvency Service,17/02/2020,Travel & Subsistence,Business Service Division,Staff Payment,900014524,10.00,
BEIS,The Insolvency Service,17/02/2020,Travel & Subsistence,Business Service Division,Staff Payment,900014524,15.00,
BEIS,The Insolvency Service,17/02/2020,Travel & Subsistence,Business Service Division,Staff Payment,900014524,5.00,
BEIS,The Insolvency Service,17/02/2020,Travel & Subsistence,Business Service Division,Staff Payment,900014524,3.40,
BEIS,The Insolvency Service,17/02/2020,Travel & Subsistence,Investigations & Enforcement Services,Staff Payment,900014510,5.00,
BEIS,The Insolvency Service,17/02/2020,Travel & Subsistence,Finance & Commercial,Staff Payment,900014511,33.00,
BEIS,The Insolvency Service,17/02/2020,Travel & Subsistence,Finance & Commercial,Staff Payment,900014511,9.45,
BEIS,The Insolvency Service,17/02/2020,Travel & Subsistence,Finance & Commercial,Staff Payment,900014511,1.70,
BEIS,The Insolvency Service,17/02/2020,Travel & Subsistence,Finance & Commercial,Staff Payment,900014512,4.50,
BEIS,The Insolvency Service,17/02/2020,Travel & Subsistence,Finance & Commercial,Staff Payment,900014512,5.00,
BEIS,The Insolvency Service,17/02/2020,Travel & Subsistence,Finance & Commercial,Staff Payment,900014512,33.00,
BEIS,The Insolvency Service,17/02/2020,Travel & Subsistence,Finance & Commercial,Staff Payment,900014512,33.00,
BEIS,The Insolvency Service,17/02/2020,Travel & Subsistence,Finance & Commercial,Staff Payment,900014512,3.20,
BEIS,The Insolvency Service,17/02/2020,Travel & Subsistence,Finance & Commercial,Staff Payment,900014513,33.00,
BEIS,The Insolvency Service,17/02/2020,Travel & Subsistence,Finance & Commercial,Staff Payment,900014513,33.00,
BEIS,The Insolvency Service,17/02/2020,Travel & Subsistence,Finance & Commercial,Staff Payment,900014513,4.50,
BEIS,The Insolvency Service,17/02/2020,Travel & Subsistence,Finance & Commercial,Staff Payment,900014513,5.00,
BEIS,The Insolvency Service,17/02/2020,Travel & Subsistence,Finance & Commercial,Staff Payment,900014513,3.20,
BEIS,The Insolvency Service,17/02/2020,Travel & Subsistence,Finance & Commercial,Staff Payment,900014519,10.55,
BEIS,The Insolvency Service,17/02/2020,Travel & Subsistence,Investigations & Enforcement Services,Staff Payment,900014530,5.00,
BEIS,The Insolvency Service,17/02/2020,Travel & Subsistence,Investigations & Enforcement Services,Staff Payment,900014530,38.25,
BEIS,The Insolvency Service,17/02/2020,Travel & Subsistence,Investigations & Enforcement Services,Staff Payment,900014530,38.25,
BEIS,The Insolvency Service,17/02/2020,Training,Investigations & Enforcement Services,SUNDRY SUPPLIER,300018099,4500.00,
BEIS,The Insolvency Service,18/02/2020,Estates - Property,Business Service Division,Access 2 Comfort Ltd,300018144,1565.50,980253321
BEIS,The Insolvency Service,18/02/2020,Staff Costs - Non-Perms,Finance & Commercial,ALEXANDER MANN SOLUTIONS,300018136,51178.25,7444926120
BEIS,The Insolvency Service,18/02/2020,HR,People & Capability,Cabinet Office,300018093,54.00,888801080
BEIS,The Insolvency Service,18/02/2020,HR,People & Capability,Cabinet Office,300018093,276.00,888801080
BEIS,The Insolvency Service,18/02/2020,HR,People & Capability,Cabinet Office,300018094,40.50,888801080
BEIS,The Insolvency Service,18/02/2020,HR,People & Capability,Cabinet Office,300018094,207.00,888801080
BEIS,The Insolvency Service,18/02/2020,Civil Litigation Disqualifications,Legal Services Division,Howes Percival,300017953,7781.50,119523573
BEIS,The Insolvency Service,18/02/2020,Investigation & Enforcement,Official Receiver Services,Howes Percival,300018054,6036.71,119523573
BEIS,The Insolvency Service,18/02/2020,ICT,Strategy & Change,Insight Direct (UK) Ltd,300018135,197.40,746075129
BEIS,The Insolvency Service,18/02/2020,Legal - Live Investigations,Investigations & Enforcement Services,Mendip Media Group Ltd (Now Trading As Appen) - (Transcri),300018134,559.45,609546425
BEIS,The Insolvency Service,18/02/2020,Other Costs,Official Receiver Services,Sirs (Europe) Ltd,300018142,21307.87,990834974
BEIS,The Insolvency Service,18/02/2020,Civil Litigation Disqualifications,Legal Services Division,St Philips Barristers,300018067,1188.00,614053968
BEIS,The Insolvency Service,18/02/2020,Travel & Subsistence,Investigations & Enforcement Services,Staff Payment,900014468,6.75,
BEIS,The Insolvency Service,18/02/2020,Travel & Subsistence,Investigations & Enforcement Services,Staff Payment,900014577,7.00,
BEIS,The Insolvency Service,18/02/2020,Travel & Subsistence,Investigations & Enforcement Services,Staff Payment,900014405,7.00,
BEIS,The Insolvency Service,18/02/2020,Travel & Subsistence,Investigations & Enforcement Services,Staff Payment,900014405,7.00,
BEIS,The Insolvency Service,18/02/2020,Travel & Subsistence,Investigations & Enforcement Services,Staff Payment,900014405,7.00,
BEIS,The Insolvency Service,18/02/2020,Travel & Subsistence,Investigations & Enforcement Services,Staff Payment,900014478,6.60,
BEIS,The Insolvency Service,18/02/2020,Travel & Subsistence,Investigations & Enforcement Services,Staff Payment,900014478,6.60,
BEIS,The Insolvency Service,18/02/2020,Travel & Subsistence,Investigations & Enforcement Services,Staff Payment,900014478,10.00,
BEIS,The Insolvency Service,18/02/2020,Travel & Subsistence,Official Receiver Services,Staff Payment,900014541,6.75,
BEIS,The Insolvency Service,18/02/2020,Travel & Subsistence,Official Receiver Services,Staff Payment,900014541,19.80,
BEIS,The Insolvency Service,18/02/2020,Travel & Subsistence,Investigations & Enforcement Services,Staff Payment,900014553,8.20,
BEIS,The Insolvency Service,18/02/2020,Travel & Subsistence,Investigations & Enforcement Services,Staff Payment,900014553,15.00,
BEIS,The Insolvency Service,18/02/2020,Travel & Subsistence,Investigations & Enforcement Services,Staff Payment,900014553,5.00,
BEIS,The Insolvency Service,18/02/2020,Travel & Subsistence,Investigations & Enforcement Services,Staff Payment,900014553,49.27,
BEIS,The Insolvency Service,18/02/2020,Travel & Subsistence,Investigations & Enforcement Services,Staff Payment,900014554,10.00,
BEIS,The Insolvency Service,18/02/2020,Travel & Subsistence,Investigations & Enforcement Services,Staff Payment,900014554,14.40,
BEIS,The Insolvency Service,18/02/2020,Travel & Subsistence,Investigations & Enforcement Services,Staff Payment,900014554,5.00,
BEIS,The Insolvency Service,18/02/2020,Travel & Subsistence,Official Receiver Services,Staff Payment,900014419,10.00,
BEIS,The Insolvency Service,18/02/2020,Travel & Subsistence,Official Receiver Services,Staff Payment,900014419,15.00,
BEIS,The Insolvency Service,18/02/2020,Travel & Subsistence,Official Receiver Services,Staff Payment,900014419,5.00,
BEIS,The Insolvency Service,18/02/2020,Travel & Subsistence,Official Receiver Services,Staff Payment,900014419,2.90,
BEIS,The Insolvency Service,18/02/2020,Travel & Subsistence,Official Receiver Services,Staff Payment,900014419,15.00,
BEIS,The Insolvency Service,18/02/2020,Travel & Subsistence,Official Receiver Services,Staff Payment,900014419,5.00,
BEIS,The Insolvency Service,18/02/2020,Travel & Subsistence,Official Receiver Services,Staff Payment,900014419,5.00,
BEIS,The Insolvency Service,18/02/2020,Travel & Subsistence,People & Capability,Staff Payment,900014565,8.30,
BEIS,The Insolvency Service,18/02/2020,Travel & Subsistence,People & Capability,Staff Payment,900014565,6.00,
BEIS,The Insolvency Service,18/02/2020,Travel & Subsistence,People & Capability,Staff Payment,900014565,3.70,
BEIS,The Insolvency Service,18/02/2020,Travel & Subsistence,People & Capability,Staff Payment,900014565,5.00,
BEIS,The Insolvency Service,18/02/2020,Travel & Subsistence,Investigations & Enforcement Services,Staff Payment,900014336,11.43,
BEIS,The Insolvency Service,18/02/2020,Travel & Subsistence,Official Receiver Services,Staff Payment,900013757,15.00,
BEIS,The Insolvency Service,18/02/2020,Travel & Subsistence,Official Receiver Services,Staff Payment,900013757,5.00,
BEIS,The Insolvency Service,18/02/2020,Travel & Subsistence,Official Receiver Services,Staff Payment,900013757,5.00,
BEIS,The Insolvency Service,18/02/2020,Travel & Subsistence,Official Receiver Services,Staff Payment,900014571,35.00,
BEIS,The Insolvency Service,18/02/2020,Travel & Subsistence,Official Receiver Services,Staff Payment,900014571,15.00,
BEIS,The Insolvency Service,18/02/2020,Travel & Subsistence,Official Receiver Services,Staff Payment,900014571,15.00,
BEIS,The Insolvency Service,18/02/2020,Travel & Subsistence,Official Receiver Services,Staff Payment,900014564,5.00,
BEIS,The Insolvency Service,18/02/2020,Travel & Subsistence,Official Receiver Services,Staff Payment,900014566,4.79,
BEIS,The Insolvency Service,18/02/2020,Travel & Subsistence,Official Receiver Services,Staff Payment,900014568,9.58,
BEIS,The Insolvency Service,18/02/2020,Travel & Subsistence,Official Receiver Services,Staff Payment,900014569,4.79,
BEIS,The Insolvency Service,18/02/2020,Travel & Subsistence,Investigations & Enforcement Services,Staff Payment,900014448,5.00,
BEIS,The Insolvency Service,18/02/2020,Travel & Subsistence,Investigations & Enforcement Services,Staff Payment,900014448,22.70,
BEIS,The Insolvency Service,18/02/2020,Travel & Subsistence,Official Receiver Services,Staff Payment,900014570,4.75,
BEIS,The Insolvency Service,18/02/2020,Travel & Subsistence,Investigations & Enforcement Services,Staff Payment,900014403,13.40,
BEIS,The Insolvency Service,18/02/2020,Travel & Subsistence,Investigations & Enforcement Services,Staff Payment,900014403,5.00,
BEIS,The Insolvency Service,18/02/2020,Travel & Subsistence,Investigations & Enforcement Services,Staff Payment,900014403,9.00,
BEIS,The Insolvency Service,18/02/2020,Travel & Subsistence,Investigations & Enforcement Services,Staff Payment,900014403,7.00,
BEIS,The Insolvency Service,18/02/2020,Travel & Subsistence,Investigations & Enforcement Services,Staff Payment,900014403,7.00,
BEIS,The Insolvency Service,18/02/2020,Travel & Subsistence,Investigations & Enforcement Services,Staff Payment,900014403,5.00,
BEIS,The Insolvency Service,18/02/2020,Travel & Subsistence,Investigations & Enforcement Services,Staff Payment,900014353,5.00,
BEIS,The Insolvency Service,18/02/2020,Travel & Subsistence,Investigations & Enforcement Services,Staff Payment,900014353,13.50,
BEIS,The Insolvency Service,18/02/2020,Travel & Subsistence,Investigations & Enforcement Services,Staff Payment,900014353,0.10,
BEIS,The Insolvency Service,18/02/2020,Travel & Subsistence,Investigations & Enforcement Services,Staff Payment,900014353,5.85,
BEIS,The Insolvency Service,18/02/2020,Travel & Subsistence,Investigations & Enforcement Services,Staff Payment,900014353,5.63,
BEIS,The Insolvency Service,18/02/2020,Travel & Subsistence,Investigations & Enforcement Services,Staff Payment,900014353,2.00,
BEIS,The Insolvency Service,18/02/2020,Travel & Subsistence,Investigations & Enforcement Services,Staff Payment,900014353,2.00,
BEIS,The Insolvency Service,18/02/2020,Travel & Subsistence,Investigations & Enforcement Services,Staff Payment,900014353,13.00,
BEIS,The Insolvency Service,18/02/2020,Travel & Subsistence,Investigations & Enforcement Services,Staff Payment,900014522,6.30,
BEIS,The Insolvency Service,18/02/2020,Travel & Subsistence,Investigations & Enforcement Services,Staff Payment,900014522,61.50,
BEIS,The Insolvency Service,18/02/2020,Travel & Subsistence,Investigations & Enforcement Services,Staff Payment,900014522,28.00,
BEIS,The Insolvency Service,18/02/2020,Travel & Subsistence,Investigations & Enforcement Services,Staff Payment,900014522,44.00,
BEIS,The Insolvency Service,18/02/2020,Travel & Subsistence,Investigations & Enforcement Services,Staff Payment,900014522,6.30,
BEIS,The Insolvency Service,18/02/2020,Travel & Subsistence,Investigations & Enforcement Services,Staff Payment,900014522,5.00,
BEIS,The Insolvency Service,18/02/2020,Travel & Subsistence,Investigations & Enforcement Services,Staff Payment,900014522,5.00,
BEIS,The Insolvency Service,18/02/2020,Travel & Subsistence,Strategy & Change,Staff Payment,900014536,12.00,
BEIS,The Insolvency Service,18/02/2020,Travel & Subsistence,Strategy & Change,Staff Payment,900014536,4.50,
BEIS,The Insolvency Service,18/02/2020,Travel & Subsistence,Strategy & Change,Staff Payment,900014537,5.00,
BEIS,The Insolvency Service,18/02/2020,Travel & Subsistence,Strategy & Change,Staff Payment,900014537,6.00,
BEIS,The Insolvency Service,18/02/2020,Travel & Subsistence,Strategy & Change,Staff Payment,900014537,30.00,
BEIS,The Insolvency Service,18/02/2020,Travel & Subsistence,Strategy & Change,Staff Payment,900014537,2.50,
BEIS,The Insolvency Service,18/02/2020,Travel & Subsistence,Investigations & Enforcement Services,Staff Payment,900014414,19.79,
BEIS,The Insolvency Service,18/02/2020,Travel & Subsistence,Investigations & Enforcement Services,Staff Payment,900014414,5.00,
BEIS,The Insolvency Service,18/02/2020,Travel & Subsistence,Investigations & Enforcement Services,Staff Payment,900014414,4.50,
BEIS,The Insolvency Service,18/02/2020,Travel & Subsistence,Investigations & Enforcement Services,Staff Payment,900014414,6.75,
BEIS,The Insolvency Service,18/02/2020,Travel & Subsistence,Investigations & Enforcement Services,Staff Payment,900014414,24.00,
BEIS,The Insolvency Service,18/02/2020,Travel & Subsistence,Business Service Division,Staff Payment,900014463,5.00,
BEIS,The Insolvency Service,18/02/2020,Travel & Subsistence,Business Service Division,Staff Payment,900014362,5.00,
BEIS,The Insolvency Service,18/02/2020,Travel & Subsistence,Business Service Division,Staff Payment,900014363,5.00,
BEIS,The Insolvency Service,18/02/2020,Travel & Subsistence,Investigations & Enforcement Services,Staff Payment,900014576,25.00,
BEIS,The Insolvency Service,18/02/2020,Travel & Subsistence,Investigations & Enforcement Services,Staff Payment,900014576,3.60,
BEIS,The Insolvency Service,18/02/2020,Travel & Subsistence,Investigations & Enforcement Services,Staff Payment,900014576,5.00,
BEIS,The Insolvency Service,18/02/2020,Travel & Subsistence,Investigations & Enforcement Services,Staff Payment,900014576,5.00,
BEIS,The Insolvency Service,18/02/2020,Travel & Subsistence,Investigations & Enforcement Services,Staff Payment,900014576,15.00,
BEIS,The Insolvency Service,18/02/2020,Travel & Subsistence,Official Receiver Services,Staff Payment,900014549,2.00,
BEIS,The Insolvency Service,18/02/2020,Travel & Subsistence,Official Receiver Services,Staff Payment,900014549,30.00,
BEIS,The Insolvency Service,18/02/2020,Travel & Subsistence,Official Receiver Services,Staff Payment,900014549,1.35,
BEIS,The Insolvency Service,18/02/2020,Travel & Subsistence,Official Receiver Services,Staff Payment,900014549,15.00,
BEIS,The Insolvency Service,18/02/2020,Travel & Subsistence,Official Receiver Services,Staff Payment,900014549,3.29,
BEIS,The Insolvency Service,18/02/2020,Travel & Subsistence,Official Receiver Services,Staff Payment,900014549,3.90,
BEIS,The Insolvency Service,18/02/2020,Travel & Subsistence,Official Receiver Services,Staff Payment,900014550,3.69,
BEIS,The Insolvency Service,18/02/2020,Travel & Subsistence,Official Receiver Services,Staff Payment,900014550,4.55,
BEIS,The Insolvency Service,18/02/2020,Travel & Subsistence,Official Receiver Services,Staff Payment,900014550,15.00,
BEIS,The Insolvency Service,18/02/2020,Travel & Subsistence,Official Receiver Services,Staff Payment,900014550,4.95,
BEIS,The Insolvency Service,18/02/2020,Travel & Subsistence,Official Receiver Services,Staff Payment,900014555,9.60,
BEIS,The Insolvency Service,18/02/2020,Travel & Subsistence,Investigations & Enforcement Services,Staff Payment,900014370,5.00,
BEIS,The Insolvency Service,18/02/2020,Travel & Subsistence,Investigations & Enforcement Services,Staff Payment,900014370,15.00,
BEIS,The Insolvency Service,18/02/2020,Travel & Subsistence,Investigations & Enforcement Services,Staff Payment,900014370,5.00,
BEIS,The Insolvency Service,18/02/2020,Travel & Subsistence,Investigations & Enforcement Services,Staff Payment,900014370,5.00,
BEIS,The Insolvency Service,18/02/2020,Travel & Subsistence,Official Receiver Services,Staff Payment,900014529,23.09,
BEIS,The Insolvency Service,18/02/2020,Travel & Subsistence,Official Receiver Services,Staff Payment,900014529,3.31,
BEIS,The Insolvency Service,18/02/2020,Travel & Subsistence,Chief Executive Office,Staff Payment,900014450,9.96,
BEIS,The Insolvency Service,18/02/2020,Travel & Subsistence,Chief Executive Office,Staff Payment,900014450,5.58,
BEIS,The Insolvency Service,18/02/2020,Travel & Subsistence,Chief Executive Office,Staff Payment,900014450,5.00,
BEIS,The Insolvency Service,18/02/2020,Travel & Subsistence,Chief Executive Office,Staff Payment,900014551,4.98,
BEIS,The Insolvency Service,18/02/2020,Travel & Subsistence,Chief Executive Office,Staff Payment,900014518,7.20,
BEIS,The Insolvency Service,18/02/2020,Travel & Subsistence,Chief Executive Office,Staff Payment,900014518,8.70,
BEIS,The Insolvency Service,18/02/2020,Travel & Subsistence,Chief Executive Office,Staff Payment,900014518,3.49,
BEIS,The Insolvency Service,18/02/2020,Travel & Subsistence,Chief Executive Office,Staff Payment,900014518,5.00,
BEIS,The Insolvency Service,18/02/2020,Travel & Subsistence,Chief Executive Office,Staff Payment,900014521,5.00,
BEIS,The Insolvency Service,18/02/2020,Travel & Subsistence,Chief Executive Office,Staff Payment,900014521,15.00,
BEIS,The Insolvency Service,18/02/2020,Travel & Subsistence,Chief Executive Office,Staff Payment,900014521,5.00,
BEIS,The Insolvency Service,18/02/2020,Travel & Subsistence,Chief Executive Office,Staff Payment,900014521,3.50,
BEIS,The Insolvency Service,18/02/2020,Travel & Subsistence,Official Receiver Services,Staff Payment,900014574,23.95,
BEIS,The Insolvency Service,18/02/2020,Travel & Subsistence,Official Receiver Services,Staff Payment,900014575,3.99,
BEIS,The Insolvency Service,18/02/2020,Travel & Subsistence,Official Receiver Services,Staff Payment,900014575,20.00,
BEIS,The Insolvency Service,18/02/2020,Travel & Subsistence,Investigations & Enforcement Services,Staff Payment,900013742,5.00,
BEIS,The Insolvency Service,18/02/2020,Travel & Subsistence,Investigations & Enforcement Services,Staff Payment,900013742,12.60,
BEIS,The Insolvency Service,18/02/2020,Travel & Subsistence,Investigations & Enforcement Services,Staff Payment,900013742,13.23,
BEIS,The Insolvency Service,18/02/2020,Travel & Subsistence,Investigations & Enforcement Services,Staff Payment,900013742,5.00,
BEIS,The Insolvency Service,18/02/2020,Travel & Subsistence,Investigations & Enforcement Services,Staff Payment,900013742,5.00,
BEIS,The Insolvency Service,18/02/2020,Travel & Subsistence,Investigations & Enforcement Services,Staff Payment,900013830,6.30,
BEIS,The Insolvency Service,18/02/2020,Travel & Subsistence,Investigations & Enforcement Services,Staff Payment,900014255,3.99,
BEIS,The Insolvency Service,18/02/2020,Travel & Subsistence,Investigations & Enforcement Services,Staff Payment,900014255,14.70,
BEIS,The Insolvency Service,18/02/2020,Travel & Subsistence,Investigations & Enforcement Services,Staff Payment,900014255,5.00,
BEIS,The Insolvency Service,18/02/2020,Travel & Subsistence,Investigations & Enforcement Services,Staff Payment,900014255,2.80,
BEIS,The Insolvency Service,18/02/2020,Travel & Subsistence,Investigations & Enforcement Services,Staff Payment,900014255,5.00,
BEIS,The Insolvency Service,18/02/2020,Travel & Subsistence,Investigations & Enforcement Services,Staff Payment,900014311,6.30,
BEIS,The Insolvency Service,18/02/2020,Travel & Subsistence,Investigations & Enforcement Services,Staff Payment,900014311,5.00,
BEIS,The Insolvency Service,18/02/2020,Travel & Subsistence,Legal Services Division,Staff Payment,900014556,15.00,
BEIS,The Insolvency Service,18/02/2020,Travel & Subsistence,Legal Services Division,Staff Payment,900014556,5.00,
BEIS,The Insolvency Service,18/02/2020,Travel & Subsistence,Legal Services Division,Staff Payment,900014556,5.00,
BEIS,The Insolvency Service,18/02/2020,Travel & Subsistence,Business Service Division,Staff Payment,900014201,10.00,
BEIS,The Insolvency Service,18/02/2020,Travel & Subsistence,Business Service Division,Staff Payment,900014201,13.94,
BEIS,The Insolvency Service,18/02/2020,Travel & Subsistence,Business Service Division,Staff Payment,900014201,5.00,
BEIS,The Insolvency Service,18/02/2020,Travel & Subsistence,Legal Services Division,Staff Payment,900014439,149.30,
BEIS,The Insolvency Service,18/02/2020,Compensation/Disbursements,Business Service Division,SUNDRY SUPPLIER,300018098,50.00,
BEIS,The Insolvency Service,18/02/2020,Compensation/Disbursements,Business Service Division,SUNDRY SUPPLIER,300018128,50.00,
BEIS,The Insolvency Service,18/02/2020,Compensation/Disbursements,Business Service Division,SUNDRY SUPPLIER,300018129,100.00,
BEIS,The Insolvency Service,18/02/2020,Other Costs,Chief Executive Office,SUNDRY SUPPLIER,300018143,1128.00,
BEIS,The Insolvency Service,18/02/2020,Training,People & Capability,The Whitehall & Industry Group,300018141,6120.00,667832004
BEIS,The Insolvency Service,19/02/2020,Estates - Property,Finance & Commercial,Acenes House Ltd,300018133,3830.00,182696958
BEIS,The Insolvency Service,19/02/2020,ICT,Strategy & Change,Atos It Services Uk Ltd,300018178,14016.52,232327983
BEIS,The Insolvency Service,19/02/2020,Estates - Property,Finance & Commercial,British Gas Business,300018132,9.70,684966762
BEIS,The Insolvency Service,19/02/2020,Estates - Property,Finance & Commercial,British Gas Business,300018132,193.52,684966762
BEIS,The Insolvency Service,19/02/2020,HR,People & Capability,Cabinet Office,300017978,18595.20,888801080
BEIS,The Insolvency Service,19/02/2020,Training,Finance & Commercial,Capita Business Services Ltd,300017987,495.11,618184140
BEIS,The Insolvency Service,19/02/2020,Off-Site Storage,Official Receiver Services,Crown Records Management,300018187,868.19,902181658
BEIS,The Insolvency Service,19/02/2020,Off-Site Storage,Official Receiver Services,File Centre,300018185,300.90,885439474
BEIS,The Insolvency Service,19/02/2020,Staff Costs - Non-Perms,Finance & Commercial,Hays Specialist Recruitment Ltd,300018176,1556.64,773695871
BEIS,The Insolvency Service,19/02/2020,Other Fee Funded Activity,Official Receiver Services,John Pye & Sons Limited,300018146,36.00,117777249
BEIS,The Insolvency Service,19/02/2020,Legal - Live Investigations,Investigations & Enforcement Services,Mills & Reeve LLP,300018102,5307.00,104834588
BEIS,The Insolvency Service,19/02/2020,Legal - Live Investigations,Investigations & Enforcement Services,Mills & Reeve LLP,300018102,3977.45,104834588
BEIS,The Insolvency Service,19/02/2020,Legal - Live Investigations,Investigations & Enforcement Services,Mills & Reeve LLP,300018103,5279.98,104834588
BEIS,The Insolvency Service,19/02/2020,Legal - Live Investigations,Investigations & Enforcement Services,Mills & Reeve LLP,300018103,2049.80,104834588
BEIS,The Insolvency Service,19/02/2020,"Printing, Stationary & Postage",Business Service Division,Neopost Limited,300018184,275.98,
BEIS,The Insolvency Service,19/02/2020,Staff Costs - Non-Perms,Finance & Commercial,Pertemps Recruitment Partnership Limited,300018174,387.07,844278800
BEIS,The Insolvency Service,19/02/2020,Staff Costs - Non-Perms,Finance & Commercial,Pertemps Recruitment Partnership Limited,300018175,395.14,844278800
BEIS,The Insolvency Service,19/02/2020,Staff Costs - Non-Perms,Information & Technology,SmartSourcing,300018091,3450.00,788507869
BEIS,The Insolvency Service,19/02/2020,Staff Costs - Non-Perms,Strategy & Change,SmartSourcing,300018188,3600.00,788507869
BEIS,The Insolvency Service,19/02/2020,Staff Costs - Non-Perms,Strategy & Change,SmartSourcing,300018189,3750.00,788507869
BEIS,The Insolvency Service,19/02/2020,Staff Costs - Non-Perms,Strategy & Change,SmartSourcing,300018190,3300.00,788507869
BEIS,The Insolvency Service,19/02/2020,Staff Costs - Non-Perms,Strategy & Change,SmartSourcing,300018191,2784.00,788507869
BEIS,The Insolvency Service,19/02/2020,Staff Costs - Non-Perms,Strategy & Change,SmartSourcing,300018192,3480.00,788507869
BEIS,The Insolvency Service,19/02/2020,Staff Costs - Non-Perms,Strategy & Change,SmartSourcing,300018193,4500.00,788507869
BEIS,The Insolvency Service,19/02/2020,Staff Costs - Non-Perms,Strategy & Change,SmartSourcing,300018194,4500.00,788507869
BEIS,The Insolvency Service,19/02/2020,Staff Costs - Non-Perms,Strategy & Change,SmartSourcing,300018195,3570.00,788507869
BEIS,The Insolvency Service,19/02/2020,Staff Costs - Non-Perms,Strategy & Change,SmartSourcing,300018196,190.80,788507869
BEIS,The Insolvency Service,19/02/2020,Staff Costs - Non-Perms,Strategy & Change,SmartSourcing,300018197,4020.00,788507869
BEIS,The Insolvency Service,19/02/2020,Staff Costs - Non-Perms,Strategy & Change,SmartSourcing,300018198,27.06,788507869
BEIS,The Insolvency Service,19/02/2020,Travel & Subsistence,Official Receiver Services,Staff Payment,900014572,14.50,
BEIS,The Insolvency Service,19/02/2020,Travel & Subsistence,Official Receiver Services,Staff Payment,900014572,4.50,
BEIS,The Insolvency Service,19/02/2020,Travel & Subsistence,Legal Services Division,Staff Payment,900014283,7.90,
BEIS,The Insolvency Service,19/02/2020,Travel & Subsistence,Legal Services Division,Staff Payment,900014283,7.90,
BEIS,The Insolvency Service,19/02/2020,Travel & Subsistence,Official Receiver Services,Staff Payment,900013911,3.00,
BEIS,The Insolvency Service,19/02/2020,Travel & Subsistence,Official Receiver Services,Staff Payment,900013911,3.15,
BEIS,The Insolvency Service,19/02/2020,Travel & Subsistence,Official Receiver Services,Staff Payment,900014558,10.00,
BEIS,The Insolvency Service,19/02/2020,Travel & Subsistence,Official Receiver Services,Staff Payment,900014558,10.00,
BEIS,The Insolvency Service,19/02/2020,Travel & Subsistence,Official Receiver Services,Staff Payment,900014558,5.00,
BEIS,The Insolvency Service,19/02/2020,Travel & Subsistence,Official Receiver Services,Staff Payment,900014558,15.00,
BEIS,The Insolvency Service,19/02/2020,Travel & Subsistence,Official Receiver Services,Staff Payment,900014558,5.00,
BEIS,The Insolvency Service,19/02/2020,Travel & Subsistence,Official Receiver Services,Staff Payment,900014558,4.90,
BEIS,The Insolvency Service,19/02/2020,Travel & Subsistence,Official Receiver Services,Staff Payment,900013984,15.00,
BEIS,The Insolvency Service,19/02/2020,Travel & Subsistence,Official Receiver Services,Staff Payment,900013984,30.00,
BEIS,The Insolvency Service,19/02/2020,Travel & Subsistence,Official Receiver Services,Staff Payment,900013984,10.00,
BEIS,The Insolvency Service,19/02/2020,Travel & Subsistence,Official Receiver Services,Staff Payment,900013984,15.00,
BEIS,The Insolvency Service,19/02/2020,Travel & Subsistence,Official Receiver Services,Staff Payment,900013984,5.00,
BEIS,The Insolvency Service,19/02/2020,Travel & Subsistence,Legal Services Division,Staff Payment,900014542,15.00,
BEIS,The Insolvency Service,19/02/2020,Travel & Subsistence,Official Receiver Services,Staff Payment,900014586,8.60,
BEIS,The Insolvency Service,19/02/2020,Travel & Subsistence,Official Receiver Services,Staff Payment,900014586,15.00,
